Workbook

Sheet Masque de saisie

Sheet Recap
A1: Descriptif | L1: Niveau d'avancement de l'audit | AS1: Mise en place du plan d'action | AY1: Suivi du plan d'action | CX1: Commentaires et Observations
A2: Dénomination de l'audit | B2: Type d'audit | C2: Nature de l'audit | D2: Organisme audité | E2: PNA | F2: Période | G2: Prestataire | H2: Directeurs de Mission | I2: Auditeurs | J2: Date de début de mission | K2: Date de fin de mission | L2: Debut de la mission | O2: Remise du diagnostic préalable | R2: Début phase terrain | U2: Remise des synthèses locales | X2: Validation Interne | AA2: Remise du rapport provisoire | AD2: Validation Interne | AG2: Fin de phase contradictoire | AJ2: Remise du rapport définitif | AM2: Diffusion du rapport | AP2: Seminaire de restitution | AS2: Projet du plan d'action | AV2: Validation du plan | AY2: Suivi du plan - Semestre 1 | BB2: Suivi du plan - Semestre 2 | BE2: Suivi du plan - Semestre 3 | BH2: Suivi du plan - Semestre 4
L3: Prévisionnel | M3: Réel | N3: Ecart | O3: Prévisionnel | P3: Réel | Q3: Ecart | R3: Prévisionnel | S3: Réel | T3: Ecart | U3: Prévisionnel | V3: Réel | W3: Ecart | X3: Prévisionnel | Y3: Réel | Z3: Ecart | AA3: Prévisionnel | AB3: Réel | AC3: Ecart | AD3: Prévisionnel | AE3: Réel | AF3: Ecart | AG3: Prévisionnel | AH3: Réel | AI3: Ecart | AJ3: Prévisionnel | AK3: Réel | AL3: Ecart | AM3: Prévisionnel | AN3: Réel | AO3: Ecart | AP3: Prévisionnel | AQ3: Réel | AR3: Ecart | AS3: Prévisionnel | AT3: Réel | AU3: Ecart | AV3: Prévisionnel | AW3: Réel | AX3: Ecart | AY3: Prévisionnel | AZ3: Réel | BA3: Ecart | BB3: Prévisionnel | BC3: Réel | BD3: Ecart | BE3: Prévisionnel | BF3: Réel | BG3: Ecart | BH3: Prévisionnel | BI3: Réel | BJ3: Ecart
A4: Dénomination de l'audit | B4: Type d'audit | C4: Nature de l'audit | D4: Organisme audité | E4: PNA | F4: Période | G4: Prestataire | H4: Directeurs de Mission | I4: Auditeurs | J4: Date de début de mission | K4: Date de fin de mission | L4: Prévisionnel | M4: Réel | N4: Ecart | O4: Prévisionnel2 | P4: Réel2 | Q4: Ecart2 | R4: Ecart24 | S4: Ecart25 | T4: Ecart26 | U4: Ecart27 | V4: Ecart275 | W4: Ecart274 | X4: Ecart273 | Y4: Ecart272 | Z4: Ecart28 | AA4: Ecart23 | AB4: Ecart22 | AC4: Ecart3 | AD4: Remise du RP | AE4: Colonne4 | AF4: Colonne3 | AG4: Contradictoire | AH4: Colonne6 | AI4: Colonne5 | AJ4: Rapport définitif | AK4: Colonne8 | AL4: Colonne7 | AM4: Diffusion | AN4: Colonne10 | AO4: Colonne9 | AP4: Seminaire de restitution | AQ4: Colonne12 | AR4: Colonne11 | AS4: Projet du plan d'action | AT4: Colonne14 | AU4: Colonne13 | AV4: Validation du plan | AW4: Colonne16 | AX4: Colonne15 | AY4: Suivi des reco Semestre 1 | AZ4: Suivi des reco Semestre 13 | BA4: Suivi des reco Semestre 12 | BB4: Suivi des reco Semestre 2 | BC4: Suivi des reco Semestre 23 | BD4: Suivi des reco Semestre 22 | BE4: Suivi des reco Semestre 3 | BF4: Suivi des reco Semestre 33 | BG4: Suivi des reco Semestre 32 | BH4: Suivi des reco Semestre 4 | BI4: Suivi des reco Semestre 42 | BJ4: Suivi des reco Semestre 5 | BK4: N.SEMAINE | BL4: auditeur1 | BM4: auditeur2 | BN4: auditeur3 | BO4: auditeur4 | BP4: Debut mission | BQ4: Remise DP | BR4: Début PT | BS4: Remise Synth Loc | BT4: VI SL | BU4: Remise RP | BV4: VI RP | BW4: Fin de PC | BX4: Remsie RD | BY4: Diff | BZ4: Sem | CA4: Prop PA | CB4: Val PA | CC4: Colonne1 | CD4: Junior (<3) | CE4: Senior (3<5) | CF4: Manager (>5) | CG4: Nombre de défauts | CH4: M1 | CI4: M2 | CJ4: M3 | CK4: M4 | CL4: M5 | CM4: M6 | CN4: M7 | CO4: M8 | CP4: M9 | CQ4: M10 | CR4: M11 | CS4: hebergement | CT4: nbj | CU4: nbpersonne | CV4: debut | CW4: fin | CX4: Observation | CY4: Debut mission2 | CZ4: Remise DP3 | DA4: Début PT4 | DB4: Remise Synth Loc5 | DC4: VI SL6 | DD4: Remise RP8 | DE4: VI RP9 | DF4: Fin de PC2 | DG4: Remsie RD10 | DH4: Diff11 | DI4: Sem12 | DJ4: Prop PA13 | DK4: V PA12 | DL4: Aud1 | DM4: Aud2 | DN4: Aud3 | DO4: Aud4
A5: a | B5: Flash | C5: a | D5: a | E5: a | F5: a | G5: a | H5: a | I5: a | J5: 2012-03-01 | K5: =Tableau5[[#This Row],[Rapport définitif]] -> 2012-06-13 | L5: =Tableau5[Date de début de mission] -> 2012-03-01 | N5: =IF(Tableau5[[#This Row],[Réel]]="","",Tableau5[[#This Row],[Réel]]-Tableau5[[#This Row],[Prévisionnel]]) ->  | O5: =IF(Tableau5[[#This Row],[Type d''audit]]="Structure",Tableau5[[#This Row],[Prévisionnel]]+'Table délais'!$B$3,IF(Tableau5[[#This Row],[Type d''audit]]="Thématique",Tableau5[[#This Row],[Prévisionnel]]+'Table délais'!$E$3,IF(Tableau5[[#This Row],[Type d''audit]]="Flash",Tableau5[[#This Row],[Prévisionnel]]+'Table délais'!$H$3,""))) -> 2012-03-31 | Q5: =IF(Tableau5[[#This Row],[Réel2]]="","",Tableau5[[#This Row],[Réel2]]-Tableau5[[#This Row],[Prévisionnel2]]) ->  | R5: =IF(Tableau5[[#This Row],[Type d''audit]]="Structure",Tableau5[[#This Row],[Prévisionnel2]]+'Table délais'!$B$4,IF(Tableau5[[#This Row],[Type d''audit]]="Thématique",Tableau5[[#This Row],[Prévisionnel2]]+'Table délais'!$E$4,IF(Tableau5[[#This Row],[Type d''audit]]="Flash",Tableau5[[#This Row],[Prévisionnel2]]+'Table délais'!$H$4,""))) -> 2012-04-07 | U5: =IF(Tableau5[[#This Row],[Type d''audit]]="Structure","",IF(Tableau5[[#This Row],[Type d''audit]]="Thématique",Tableau5[[#This Row],[Ecart24]]+'Table délais'!$E$5,IF(Tableau5[[#This Row],[Type d''audit]]="Flash","",""))) ->  | X5: =IF(Tableau5[[#This Row],[Ecart27]]="","",Tableau5[[#This Row],[Ecart27]]+'Table délais'!$E$6) ->  | AA5: =IF(Tableau5[[#This Row],[Type d''audit]]="Structure",Tableau5[[#This Row],[Ecart24]]+'Table délais'!$B$7,IF(Tableau5[[#This Row],[Type d''audit]]="Thématique",Tableau5[[#This Row],[Ecart273]]+'Table délais'!$E$7,IF(Tableau5[[#This Row],[Type d''audit]]="Flash",Tableau5[[#This Row],[Ecart24]]+'Table délais'!$H$7,""))) -> 2012-05-14 | AC5: =IF(Tableau5[[#This Row],[Ecart22]]="","",Tableau5[[#This Row],[Ecart22]]-Tableau5[[#This Row],[Ecart23]]) ->  | AD5: =IF(Tableau5[[#This Row],[Type d''audit]]="Structure",Tableau5[[#This Row],[Ecart23]]+'Table délais'!$B$8,IF(Tableau5[[#This Row],[Type d''audit]]="Thématique",Tableau5[[#This Row],[Ecart23]]+'Table délais'!$E$8,IF(Tableau5[[#This Row],[Type d''audit]]="Flash",Tableau5[[#This Row],[Ecart23]]+'Table délais'!$H$8,""))) -> 2012-05-29 | AF5: =IF(Tableau5[[#This Row],[Colonne4]]="","",Tableau5[[#This Row],[Colonne4]]-Tableau5[[#This Row],[Remise du RP]]) ->  | AG5: =IF(Tableau5[[#This Row],[Type d''audit]]="Structure",Tableau5[[#This Row],[Remise du RP]]+'Table délais'!$B$9,IF(Tableau5[[#This Row],[Type d''audit]]="Thématique",Tableau5[[#This Row],[Remise du RP]]+'Table délais'!$E$9,"")) ->  | AI5: =IF(Tableau5[[#This Row],[Colonne6]]="","",Tableau5[[#This Row],[Colonne6]]-Tableau5[[#This Row],[Contradictoire]]) ->  | AJ5: =IF(Tableau5[[#This Row],[Type d''audit]]="Structure",Tableau5[[#This Row],[Contradictoire]]+'Table délais'!$B$10,IF(Tableau5[[#This Row],[Type d''audit]]="Thématique",Tableau5[[#This Row],[Contradictoire]]+'Table délais'!$E$10,IF(Tableau5[[#This Row],[Type d''audit]]="Flash",Tableau5[Remise du RP]+'Table délais'!$H$10,""))) -> 2012-06-13 | AL5: =IF(Tableau5[[#This Row],[Colonne8]]="","",Tableau5[[#This Row],[Colonne8]]-Tableau5[[#This Row],[Rapport définitif]]) ->  | AM5: =IF(Tableau5[[#This Row],[Type d''audit]]="Structure",Tableau5[[#This Row],[Rapport définitif]]+'Table délais'!$B$11,IF(Tableau5[[#This Row],[Type d''audit]]="Thématique",Tableau5[[#This Row],[Rapport définitif]]+'Table délais'!$E$11,IF(Tableau5[[#This Row],[Type d''audit]]="Flash",Tableau5[[#This Row],[Rapport définitif]]+'Table délais'!$H$11,""))) -> 2012-06-28 | AO5: =IF(Tableau5[[#This Row],[Colonne10]]="","",Tableau5[[#This Row],[Colonne10]]-Tableau5[[#This Row],[Diffusion]]) ->  | AP5: =IF(Tableau5[[#This Row],[Type d''audit]]="Structure",Tableau5[[#This Row],[Diffusion]]+'Table délais'!$B$12,"") ->  | AR5: =IF(Tableau5[[#This Row],[Colonne12]]="","",Tableau5[[#This Row],[Colonne12]]-Tableau5[[#This Row],[Seminaire de restitution]]) ->  | AS5: =IF(Tableau5[[#This Row],[Type d''audit]]="Structure",Tableau5[[#This Row],[Seminaire de restitution]]+'Table délais'!$B$13,IF(Tableau5[[#This Row],[Type d''audit]]="Thématique",Tableau5[[#This Row],[Diffusion]]+'Table délais'!$E$13,IF(Tableau5[[#This Row],[Type d''audit]]="Flash",Tableau5[[#This Row],[Diffusion]]+'Table délais'!$H$13,""))) -> 2012-08-27 | AU5: =IF(Tableau5[[#This Row],[Colonne14]]="","",Tableau5[[#This Row],[Colonne14]]-Tableau5[[#This Row],[Projet du plan d''action]]) ->  | AV5: =IF(Tableau5[[#This Row],[Type d''audit]]="Structure",Tableau5[[#This Row],[Projet du plan d''action]]+'Table délais'!$B$14,IF(Tableau5[[#This Row],[Type d''audit]]="Thématique",Tableau5[[#This Row],[Projet du plan d''action]]+'Table délais'!$E$14,IF(Tableau5[[#This Row],[Type d''audit]]="Flash",Tableau5[[#This Row],[Diffusion]]+'Table délais'!$H$14,""))) -> 2012-07-28 | AX5: =IF(Tableau5[[#This Row],[Colonne16]]="","",Tableau5[[#This Row],[Colonne16]]-Tableau5[[#This Row],[Validation du plan]]) ->  | AY5: =IF(Tableau5[[#This Row],[Type d''audit]]="Structure",Tableau5[[#This Row],[Validation du plan]]+'Table délais'!$B$15,IF(Tableau5[[#This Row],[Type d''audit]]="Thématique",Tableau5[[#This Row],[Validation du plan]]+'Table délais'!$E$15,IF(Tableau5[[#This Row],[Type d''audit]]="Flash",Tableau5[[#This Row],[Validation du plan]]+'Table délais'!$H$15,""))) -> 2013-01-24 | BA5: =IF(Tableau5[[#This Row],[Suivi des reco Semestre 13]]="","",Tableau5[[#This Row],[Suivi des reco Semestre 13]]-Tableau5[[#This Row],[Suivi des reco Semestre 1]]) ->  | BB5: =IF(Tableau5[[#This Row],[Type d''audit]]="Structure",Tableau5[[#This Row],[Suivi des reco Semestre 1]]+'Table délais'!$B$16,IF(Tableau5[[#This Row],[Type d''audit]]="Thématique",Tableau5[[#This Row],[Suivi des reco Semestre 1]]+'Table délais'!$E$16,IF(Tableau5[[#This Row],[Type d''audit]]="Flash",Tableau5[[#This Row],[Suivi des reco Semestre 1]]+'Table délais'!$H$16,""))) -> 2013-07-23 | BD5: =IF(Tableau5[[#This Row],[Suivi des reco Semestre 23]]="","",Tableau5[[#This Row],[Suivi des reco Semestre 23]]-Tableau5[[#This Row],[Suivi des reco Semestre 2]]) ->  | BE5: =IF(Tableau5[[#This Row],[Type d''audit]]="Structure",Tableau5[[#This Row],[Suivi des reco Semestre 2]]+'Table délais'!$B$17,IF(Tableau5[[#This Row],[Type d''audit]]="Thématique",Tableau5[[#This Row],[Suivi des reco Semestre 2]]+'Table délais'!$E$17,IF(Tableau5[[#This Row],[Type d''audit]]="Flash",Tableau5[[#This Row],[Suivi des reco Semestre 2]]+'Table délais'!$H$17,""))) -> 2014-01-19 | BG5: =IF(Tableau5[[#This Row],[Suivi des reco Semestre 33]]="","",Tableau5[[#This Row],[Suivi des reco Semestre 33]]-Tableau5[[#This Row],[Suivi des reco Semestre 3]]) ->  | BH5: =IF(Tableau5[[#This Row],[Type d''audit]]="Structure",Tableau5[[#This Row],[Suivi des reco Semestre 3]]+'Table délais'!$B$18,IF(Tableau5[[#This Row],[Type d''audit]]="Thématique",Tableau5[[#This Row],[Suivi des reco Semestre 3]]+'Table délais'!$E$18,IF(Tableau5[[#This Row],[Type d''audit]]="Flash",Tableau5[[#This Row],[Suivi des reco Semestre 3]]+'Table délais'!$H$18,""))) -> 2014-07-18 | BJ5: =IF(Tableau5[[#This Row],[Suivi des reco Semestre 42]]="","",Tableau5[[#This Row],[Suivi des reco Semestre 42]]-Tableau5[[#This Row],[Suivi des reco Semestre 4]]) ->  | BK5: =WEEKNUM(Tableau5[[#This Row],[Rapport définitif]]) -> 24 | BP5: =IF(Tableau5[[#This Row],[Réel]]="","",WEEKNUM(Tableau5[[#This Row],[Réel]])) ->  | BQ5: =IF(Tableau5[[#This Row],[Réel2]]="","",WEEKNUM(Tableau5[[#This Row],[Réel2]])) ->  | BR5: =IF(Tableau5[[#This Row],[Ecart25]]="","",WEEKNUM(Tableau5[[#This Row],[Ecart25]])) ->  | BS5: =IF(Tableau5[[#This Row],[Ecart275]]="","",WEEKNUM(Tableau5[[#This Row],[Ecart275]])) ->  | BT5: =IF(Tableau5[[#This Row],[Ecart272]]="","",WEEKNUM(Tableau5[[#This Row],[Ecart272]])) ->  | BU5: =IF(Tableau5[[#This Row],[Ecart22]]="","",WEEKNUM(Tableau5[[#This Row],[Ecart22]])) ->  | BV5: =IF(Tableau5[[#This Row],[Colonne4]]="","",WEEKNUM(Tableau5[[#This Row],[Colonne4]])) ->  | BW5: =IF(Tableau5[[#This Row],[Colonne6]]="","",WEEKNUM(Tableau5[[#This Row],[Colonne6]])) ->  | BX5: =IF(Tableau5[[#This Row],[Colonne8]]="","",WEEKNUM(Tableau5[[#This Row],[Colonne8]])) ->  | BY5: =IF(Tableau5[[#This Row],[Colonne10]]="","",WEEKNUM(Tableau5[[#This Row],[Colonne10]])) ->  | BZ5: =IF(Tableau5[[#This Row],[Colonne12]]="","",WEEKNUM(Tableau5[[#This Row],[Colonne12]])) ->  | CA5: =IF(Tableau5[[#This Row],[Colonne14]]="","",WEEKNUM(Tableau5[[#This Row],[Colonne14]])) ->  | CB5: =IF(Tableau5[[#This Row],[Colonne16]]="","",WEEKNUM(Tableau5[[#This Row],[Colonne16]])) ->  | CC5: =IF(Tableau5[[#This Row],[Type d''audit]]="Thématique",CONCATENATE(Tableau5[[#This Row],[Type d''audit]]," - ",Tableau5[[#This Row],[Dénomination de l''audit]]," - ",Tableau5[PNA]),IF(Tableau5[[#This Row],[Type d''audit]]="Flash",CONCATENATE(Tableau5[[#This Row],[Type d''audit]]," - ",Tableau5[[#This Row],[Dénomination de l''audit]]," - ",Tableau5[PNA]),CONCATENATE(Tableau5[[#This Row],[Type d''audit]]," - ",Tableau5[[#This Row],[Organisme audité]]," - ",Tableau5[PNA]))) -> Flash - a - a | CD5: a | CE5: a | CF5: a | CG5: a | CH5: a | CI5: a | CJ5: a | CK5: a | CL5: a | CM5: a | CN5: a | CO5: a | CP5: a | CQ5: a | CR5: a | CS5: a | CT5: a | CU5: a | CV5: =Tableau5[[#This Row],[Prévisionnel2]] -> 2012-03-31 | CW5: =Tableau5[[#This Row],[Ecart23]] -> 2012-05-14 | CY5: =IF(Tableau5[[#This Row],[Prévisionnel]]="","",WEEKNUM(Tableau5[[#This Row],[Prévisionnel]])) -> 9 | CZ5: =IF(Tableau5[[#This Row],[Prévisionnel2]]="","",WEEKNUM(Tableau5[[#This Row],[Prévisionnel2]])) -> 13 | DA5: =IF(Tableau5[[#This Row],[Ecart24]]="","",WEEKNUM(Tableau5[[#This Row],[Ecart24]])) -> 14 | DB5: =IF(Tableau5[[#This Row],[Ecart27]]="","",WEEKNUM(Tableau5[[#This Row],[Ecart27]])) ->  | DC5: =IF(Tableau5[[#This Row],[Ecart273]]="","",WEEKNUM(Tableau5[[#This Row],[Ecart273]])) ->  | DD5: =IF(Tableau5[[#This Row],[Ecart23]]="","",WEEKNUM(Tableau5[[#This Row],[Ecart23]])) -> 20 | DE5: =IF(Tableau5[[#This Row],[Remise du RP]]="","",WEEKNUM(Tableau5[[#This Row],[Remise du RP]])) -> 22 | DF5: =IF(Tableau5[[#This Row],[Contradictoire]]="","",WEEKNUM(Tableau5[[#This Row],[Contradictoire]])) ->  | DG5: =IF(Tableau5[[#This Row],[Rapport définitif]]="","",WEEKNUM(Tableau5[[#This Row],[Rapport définitif]])) -> 24 | DH5: =IF(Tableau5[[#This Row],[Diffusion]]="","",WEEKNUM(Tableau5[[#This Row],[Diffusion]])) -> 26 | DI5: =IF(Tableau5[[#This Row],[Seminaire de restitution]]="","",WEEKNUM(Tableau5[[#This Row],[Seminaire de restitution]])) ->  | DJ5: =IF(Tableau5[[#This Row],[Projet du plan d''action]]="","",WEEKNUM(Tableau5[[#This Row],[Projet du plan d''action]])) -> 35 | DK5: =IF(Tableau5[[#This Row],[Validation du plan]]="","",WEEKNUM(Tableau5[[#This Row],[Validation du plan]])) -> 30 | DL5: =IF(Tableau5[[#This Row],[auditeur1]]="","",Tableau5[[#This Row],[auditeur1]]) ->  | DM5: =IF(Tableau5[[#This Row],[auditeur2]]="","",Tableau5[[#This Row],[auditeur2]]) ->  | DN5: =IF(Tableau5[[#This Row],[auditeur3]]="","",Tableau5[[#This Row],[auditeur3]]) ->  | DO5: =IF(Tableau5[[#This Row],[auditeur4]]="","",Tableau5[[#This Row],[auditeur4]]) -> 
A6: Audit Test | B6: Thématique | C6: Initial | D6: Multiples organismes | E6: 2016 | F6: 2eme semestre | G6: Interne | H6: ab | I6: a b c d | J6: 10/11/2016 | K6: =Tableau5[[#This Row],[Rapport définitif]] -> 2017-04-16 | L6: =Tableau5[Date de début de mission] -> 10/11/2016 | N6: =IF(Tableau5[[#This Row],[Réel]]="","",Tableau5[[#This Row],[Réel]]-Tableau5[[#This Row],[Prévisionnel]]) ->  | O6: =IF(Tableau5[[#This Row],[Type d''audit]]="Structure",Tableau5[[#This Row],[Prévisionnel]]+'Table délais'!$B$3,IF(Tableau5[[#This Row],[Type d''audit]]="Thématique",Tableau5[[#This Row],[Prévisionnel]]+'Table délais'!$E$3,IF(Tableau5[[#This Row],[Type d''audit]]="Flash",Tableau5[[#This Row],[Prévisionnel]]+'Table délais'!$H$3,""))) -> 2016-12-10 | Q6: =IF(Tableau5[[#This Row],[Réel2]]="","",Tableau5[[#This Row],[Réel2]]-Tableau5[[#This Row],[Prévisionnel2]]) ->  | R6: =IF(Tableau5[[#This Row],[Type d''audit]]="Structure",Tableau5[[#This Row],[Prévisionnel2]]+'Table délais'!$B$4,IF(Tableau5[[#This Row],[Type d''audit]]="Thématique",Tableau5[[#This Row],[Prévisionnel2]]+'Table délais'!$E$4,IF(Tableau5[[#This Row],[Type d''audit]]="Flash",Tableau5[[#This Row],[Prévisionnel2]]+'Table délais'!$H$4,""))) -> 2016-12-25 | U6: =IF(Tableau5[[#This Row],[Type d''audit]]="Structure","",IF(Tableau5[[#This Row],[Type d''audit]]="Thématique",Tableau5[[#This Row],[Ecart24]]+'Table délais'!$E$5,IF(Tableau5[[#This Row],[Type d''audit]]="Flash","",""))) -> 2017-01-31 | X6: =IF(Tableau5[[#This Row],[Ecart27]]="","",Tableau5[[#This Row],[Ecart27]]+'Table délais'!$E$6) -> 2017-02-15 | AA6: =IF(Tableau5[[#This Row],[Type d''audit]]="Structure",Tableau5[[#This Row],[Ecart24]]+'Table délais'!$B$7,IF(Tableau5[[#This Row],[Type d''audit]]="Thématique",Tableau5[[#This Row],[Ecart273]]+'Table délais'!$E$7,IF(Tableau5[[#This Row],[Type d''audit]]="Flash",Tableau5[[#This Row],[Ecart24]]+'Table délais'!$H$7,""))) -> 2017-03-02 | AC6: =IF(Tableau5[[#This Row],[Ecart22]]="","",Tableau5[[#This Row],[Ecart22]]-Tableau5[[#This Row],[Ecart23]]) ->  | AD6: =IF(Tableau5[[#This Row],[Type d''audit]]="Structure",Tableau5[[#This Row],[Ecart23]]+'Table délais'!$B$8,IF(Tableau5[[#This Row],[Type d''audit]]="Thématique",Tableau5[[#This Row],[Ecart23]]+'Table délais'!$E$8,IF(Tableau5[[#This Row],[Type d''audit]]="Flash",Tableau5[[#This Row],[Ecart23]]+'Table délais'!$H$8,""))) -> 2017-03-17 | AF6: =IF(Tableau5[[#This Row],[Colonne4]]="","",Tableau5[[#This Row],[Colonne4]]-Tableau5[[#This Row],[Remise du RP]]) ->  | AG6: =IF(Tableau5[[#This Row],[Type d''audit]]="Structure",Tableau5[[#This Row],[Remise du RP]]+'Table délais'!$B$9,IF(Tableau5[[#This Row],[Type d''audit]]="Thématique",Tableau5[[#This Row],[Remise du RP]]+'Table délais'!$E$9,"")) -> 2017-04-01 | AI6: =IF(Tableau5[[#This Row],[Colonne6]]="","",Tableau5[[#This Row],[Colonne6]]-Tableau5[[#This Row],[Contradictoire]]) ->  | AJ6: =IF(Tableau5[[#This Row],[Type d''audit]]="Structure",Tableau5[[#This Row],[Contradictoire]]+'Table délais'!$B$10,IF(Tableau5[[#This Row],[Type d''audit]]="Thématique",Tableau5[[#This Row],[Contradictoire]]+'Table délais'!$E$10,IF(Tableau5[[#This Row],[Type d''audit]]="Flash",Tableau5[Remise du RP]+'Table délais'!$H$10,""))) -> 2017-04-16 | AL6: =IF(Tableau5[[#This Row],[Colonne8]]="","",Tableau5[[#This Row],[Colonne8]]-Tableau5[[#This Row],[Rapport définitif]]) ->  | AM6: =IF(Tableau5[[#This Row],[Type d''audit]]="Structure",Tableau5[[#This Row],[Rapport définitif]]+'Table délais'!$B$11,IF(Tableau5[[#This Row],[Type d''audit]]="Thématique",Tableau5[[#This Row],[Rapport définitif]]+'Table délais'!$E$11,IF(Tableau5[[#This Row],[Type d''audit]]="Flash",Tableau5[[#This Row],[Rapport définitif]]+'Table délais'!$H$11,""))) -> 2017-05-01 | AO6: =IF(Tableau5[[#This Row],[Colonne10]]="","",Tableau5[[#This Row],[Colonne10]]-Tableau5[[#This Row],[Diffusion]]) ->  | AP6: =IF(Tableau5[[#This Row],[Type d''audit]]="Structure",Tableau5[[#This Row],[Diffusion]]+'Table délais'!$B$12,"") ->  | AR6: =IF(Tableau5[[#This Row],[Colonne12]]="","",Tableau5[[#This Row],[Colonne12]]-Tableau5[[#This Row],[Seminaire de restitution]]) ->  | AS6: =IF(Tableau5[[#This Row],[Type d''audit]]="Structure",Tableau5[[#This Row],[Seminaire de restitution]]+'Table délais'!$B$13,IF(Tableau5[[#This Row],[Type d''audit]]="Thématique",Tableau5[[#This Row],[Diffusion]]+'Table délais'!$E$13,IF(Tableau5[[#This Row],[Type d''audit]]="Flash",Tableau5[[#This Row],[Diffusion]]+'Table délais'!$H$13,""))) -> 2017-06-30 | AU6: =IF(Tableau5[[#This Row],[Colonne14]]="","",Tableau5[[#This Row],[Colonne14]]-Tableau5[[#This Row],[Projet du plan d''action]]) ->  | AV6: =IF(Tableau5[[#This Row],[Type d''audit]]="Structure",Tableau5[[#This Row],[Projet du plan d''action]]+'Table délais'!$B$14,IF(Tableau5[[#This Row],[Type d''audit]]="Thématique",Tableau5[[#This Row],[Projet du plan d''action]]+'Table délais'!$E$14,IF(Tableau5[[#This Row],[Type d''audit]]="Flash",Tableau5[[#This Row],[Diffusion]]+'Table délais'!$H$14,""))) -> 2017-07-30 | AX6: =IF(Tableau5[[#This Row],[Colonne16]]="","",Tableau5[[#This Row],[Colonne16]]-Tableau5[[#This Row],[Validation du plan]]) ->  | AY6: =IF(Tableau5[[#This Row],[Type d''audit]]="Structure",Tableau5[[#This Row],[Validation du plan]]+'Table délais'!$B$15,IF(Tableau5[[#This Row],[Type d''audit]]="Thématique",Tableau5[[#This Row],[Validation du plan]]+'Table délais'!$E$15,IF(Tableau5[[#This Row],[Type d''audit]]="Flash",Tableau5[[#This Row],[Validation du plan]]+'Table délais'!$H$15,""))) -> 2018-01-26 | BA6: =IF(Tableau5[[#This Row],[Suivi des reco Semestre 13]]="","",Tableau5[[#This Row],[Suivi des reco Semestre 13]]-Tableau5[[#This Row],[Suivi des reco Semestre 1]]) ->  | BB6: =IF(Tableau5[[#This Row],[Type d''audit]]="Structure",Tableau5[[#This Row],[Suivi des reco Semestre 1]]+'Table délais'!$B$16,IF(Tableau5[[#This Row],[Type d''audit]]="Thématique",Tableau5[[#This Row],[Suivi des reco Semestre 1]]+'Table délais'!$E$16,IF(Tableau5[[#This Row],[Type d''audit]]="Flash",Tableau5[[#This Row],[Suivi des reco Semestre 1]]+'Table délais'!$H$16,""))) -> 2018-07-25 | BD6: =IF(Tableau5[[#This Row],[Suivi des reco Semestre 23]]="","",Tableau5[[#This Row],[Suivi des reco Semestre 23]]-Tableau5[[#This Row],[Suivi des reco Semestre 2]]) ->  | BE6: =IF(Tableau5[[#This Row],[Type d''audit]]="Structure",Tableau5[[#This Row],[Suivi des reco Semestre 2]]+'Table délais'!$B$17,IF(Tableau5[[#This Row],[Type d''audit]]="Thématique",Tableau5[[#This Row],[Suivi des reco Semestre 2]]+'Table délais'!$E$17,IF(Tableau5[[#This Row],[Type d''audit]]="Flash",Tableau5[[#This Row],[Suivi des reco Semestre 2]]+'Table délais'!$H$17,""))) -> 2019-01-21 | BG6: =IF(Tableau5[[#This Row],[Suivi des reco Semestre 33]]="","",Tableau5[[#This Row],[Suivi des reco Semestre 33]]-Tableau5[[#This Row],[Suivi des reco Semestre 3]]) ->  | BH6: =IF(Tableau5[[#This Row],[Type d''audit]]="Structure",Tableau5[[#This Row],[Suivi des reco Semestre 3]]+'Table délais'!$B$18,IF(Tableau5[[#This Row],[Type d''audit]]="Thématique",Tableau5[[#This Row],[Suivi des reco Semestre 3]]+'Table délais'!$E$18,IF(Tableau5[[#This Row],[Type d''audit]]="Flash",Tableau5[[#This Row],[Suivi des reco Semestre 3]]+'Table délais'!$H$18,""))) -> 2019-07-20 | BJ6: =IF(Tableau5[[#This Row],[Suivi des reco Semestre 42]]="","",Tableau5[[#This Row],[Suivi des reco Semestre 42]]-Tableau5[[#This Row],[Suivi des reco Semestre 4]]) ->  | BK6: =WEEKNUM(AJ6) -> 16 | BL6: a | BM6: b | BN6: c | BO6: d | BP6: =IF(Tableau5[[#This Row],[Réel]]="","",WEEKNUM(Tableau5[[#This Row],[Réel]])) ->  | BQ6: =IF(Tableau5[[#This Row],[Réel2]]="","",WEEKNUM(Tableau5[[#This Row],[Réel2]])) ->  | BR6: =IF(Tableau5[[#This Row],[Ecart25]]="","",WEEKNUM(Tableau5[[#This Row],[Ecart25]])) ->  | BS6: =IF(Tableau5[[#This Row],[Ecart275]]="","",WEEKNUM(Tableau5[[#This Row],[Ecart275]])) ->  | BT6: =IF(Tableau5[[#This Row],[Ecart272]]="","",WEEKNUM(Tableau5[[#This Row],[Ecart272]])) ->  | BU6: =IF(Tableau5[[#This Row],[Ecart22]]="","",WEEKNUM(Tableau5[[#This Row],[Ecart22]])) ->  | BV6: =IF(Tableau5[[#This Row],[Colonne4]]="","",WEEKNUM(Tableau5[[#This Row],[Colonne4]])) ->  | BW6: =IF(Tableau5[[#This Row],[Colonne6]]="","",WEEKNUM(Tableau5[[#This Row],[Colonne6]])) ->  | BX6: =IF(Tableau5[[#This Row],[Colonne8]]="","",WEEKNUM(Tableau5[[#This Row],[Colonne8]])) ->  | BY6: =IF(Tableau5[[#This Row],[Colonne10]]="","",WEEKNUM(Tableau5[[#This Row],[Colonne10]])) ->  | BZ6: =IF(Tableau5[[#This Row],[Colonne12]]="","",WEEKNUM(Tableau5[[#This Row],[Colonne12]])) ->  | CA6: =IF(Tableau5[[#This Row],[Colonne14]]="","",WEEKNUM(Tableau5[[#This Row],[Colonne14]])) ->  | CB6: =IF(Tableau5[[#This Row],[Colonne16]]="","",WEEKNUM(Tableau5[[#This Row],[Colonne16]])) ->  | CC6: =IF(Tableau5[[#This Row],[Type d''audit]]="Thématique",CONCATENATE(Tableau5[[#This Row],[Type d''audit]]," - ",Tableau5[[#This Row],[Dénomination de l''audit]]," - ",Tableau5[PNA]),IF(Tableau5[[#This Row],[Type d''audit]]="Flash",CONCATENATE(Tableau5[[#This Row],[Type d''audit]]," - ",Tableau5[[#This Row],[Dénomination de l''audit]]," - ",Tableau5[PNA]),CONCATENATE(Tableau5[[#This Row],[Type d''audit]]," - ",Tableau5[[#This Row],[Organisme audité]]," - ",Tableau5[PNA]))) -> Thématique - Audit Test - 2016 | CV6: =Tableau5[[#This Row],[Prévisionnel2]] -> 2016-12-10 | CW6: =Tableau5[[#This Row],[Ecart23]] -> 2017-03-02 | CY6: =IF(Tableau5[[#This Row],[Prévisionnel]]="","",WEEKNUM(Tableau5[[#This Row],[Prévisionnel]])) -> 46 | CZ6: =IF(Tableau5[[#This Row],[Prévisionnel2]]="","",WEEKNUM(Tableau5[[#This Row],[Prévisionnel2]])) -> 50 | DA6: =IF(Tableau5[[#This Row],[Ecart24]]="","",WEEKNUM(Tableau5[[#This Row],[Ecart24]])) -> 53 | DB6: =IF(Tableau5[[#This Row],[Ecart27]]="","",WEEKNUM(Tableau5[[#This Row],[Ecart27]])) -> 5 | DC6: =IF(Tableau5[[#This Row],[Ecart273]]="","",WEEKNUM(Tableau5[[#This Row],[Ecart273]])) -> 7 | DD6: =IF(Tableau5[[#This Row],[Ecart23]]="","",WEEKNUM(Tableau5[[#This Row],[Ecart23]])) -> 9 | DE6: =IF(Tableau5[[#This Row],[Remise du RP]]="","",WEEKNUM(Tableau5[[#This Row],[Remise du RP]])) -> 11 | DF6: =IF(Tableau5[[#This Row],[Contradictoire]]="","",WEEKNUM(Tableau5[[#This Row],[Contradictoire]])) -> 13 | DG6: =IF(Tableau5[[#This Row],[Rapport définitif]]="","",WEEKNUM(Tableau5[[#This Row],[Rapport définitif]])) -> 16 | DH6: =IF(Tableau5[[#This Row],[Diffusion]]="","",WEEKNUM(Tableau5[[#This Row],[Diffusion]])) -> 18 | DI6: =IF(Tableau5[[#This Row],[Seminaire de restitution]]="","",WEEKNUM(Tableau5[[#This Row],[Seminaire de restitution]])) ->  | DJ6: =IF(Tableau5[[#This Row],[Projet du plan d''action]]="","",WEEKNUM(Tableau5[[#This Row],[Projet du plan d''action]])) -> 26 | DK6: =IF(Tableau5[[#This Row],[Validation du plan]]="","",WEEKNUM(Tableau5[[#This Row],[Validation du plan]])) -> 31 | DL6: Alain SPAENLE | DM6: Christine PREVOT | DN6: Corinne GALODE | DO6: Mathias DIEZ

Sheet Données (hidden)
A1: Alain PERROT | E1: Multiples organismes
A2: Alain SPAENLE | E2: CARSAT Alsace Moselle
A3: Alexandre LE CORRE | E3: CARSAT Aquitaine
A4: Arnaud MUDRY | E4: CARSAT Auvergne
A5: Corinne GALODE | E5: CARSAT Bourgogne Franche-Compté
A6: Joel MOSSARD | E6: CARSAT Bretagne
A7: Loic LE DEUNFF | E7: CARSAT Centre
A8: Mathias DIEZ | E8: CARSAT Centre-Ouest
A9: Oliviana PIAZZA | E9: CARSAT Languedoc Roussillon
A10: Patricia DAVANNE | E10: CARSAT Midi-Pyrénées
A11: Pierre Jean BONNOIT | E11: CARSAT Nord Est
A12: Said BOUNOUA | E12: CARSAT Nord Picardie
A13: Sylvie ZEILIG | E13: CARSAT Normandie
E14: CARSAT Pays de la Loire
A15: Anne Sanchez | E15: CARSAT Rhône-Alpes
A16: Francine SCHERPEREEL | E16: CARSAT Sud-Est
A17: Jacqueline PEREZ | E17: CRAMIF
A18: Jean-Michel VALLET | E18: CCSS Lozère
A19: Externe | E19: CGSS Guadeloupe
E20: CGSS Guyane
A21: Structure | E21: CGSS Martinique
A22: Thématique | E22: CGSS Réunion
A23: Flash | E23: CICOA
A24: BearingPoint | E24: CPAM Charente-Maritime
A25: Eurogroup | E25: CPAM Haute-Loire
A26: Grant Thornton | E26: CPAM Ain
A27: Interne | E27: CPAM Aisne
A28: Mazars | E28: CPAM Allier
E29: CPAM Alpes-de-Haute-Provence
A30: 1er semestre | E30: CPAM Alpes-Maritimes
A31: 2eme semestre | E31: CPAM Ardèche
E32: CPAM Ardennes
A33: Initial | E33: CPAM Ariège
A34: Suivi | E34: CPAM Artois
E35: CPAM Aube
E36: CPAM Aude
E37: CPAM Aveyron
E38: CPAM Bas-Rhin
E39: CPAM Bayonne
E40: CPAM Boûches-du-Rhône
E41: CPAM Calvados
E42: CPAM Cantal
E43: CPAM Charente
E44: CPAM Cher
E45: CPAM Corrèze
E46: CPAM Corse-du-sud
E47: CPAM Côte d'Armor
E48: CPAM Côte-d'Opale
E49: CPAM Côte-d'Or
E50: CPAM Creuse
E51: CPAM Deux-Sèvres
E52: CPAM Dordogne
E53: CPAM Doubs
E54: CPAM Drôme
E55: CPAM Essonne
E56: CPAM Eure
E57: CPAM Eure-et-Loir
E58: CPAM Finistère
E59: CPAM Flandres-Dunkerque-Armentières
E60: CPAM Gard
E61: CPAM Gers
E62: CPAM Gironde
E63: CPAM Hainaut
E64: CPAM Haute-Corse
E65: CPAM Haute-Garonne
E66: CPAM Haute-Marne
E67: CPAM Hautes-Alpes
E68: CPAM Haute-Saône
E69: CPAM Haute-Savoie
E70: CPAM Hautes-Pyrénées
E71: CPAM Haute-Vienne
E72: CPAM Haut-Rhin
E73: CPAM Hauts-de-Seine
E74: CPAM Hérault
E75: CPAM Ille-et-Vilaine
E76: CPAM Indre
E77: CPAM Indre-et-Loire
E78: CPAM Isère
E79: CPAM Jura
E80: CPAM Landes
E81: CPAM Le Havre
E82: CPAM Lille-Douai
E83: CPAM Loire
E84: CPAM Loire-Atlantique
E85: CPAM Loiret
E86: CPAM Loir-et-Cher
E87: CPAM Lot
E88: CPAM Lot-et-Garonne
E89: CPAM Maine-et-Loir
E90: CPAM Manche
E91: CPAM Marne
E92: CPAM Mayenne
E93: CPAM Meurthe-et-Moselle
E94: CPAM Meuse
E95: CPAM Morbihan
E96: CPAM Moselle
E97: CPAM Nièvre
E98: CPAM Oise
E99: CPAM Orne
E100: CPAM Paris
E101: CPAM Pau
E102: CPAM Puy-de-Dôme
E103: CPAM Pyrénées-Orientales
E104: CPAM Rhône
E105: CPAM Roubaix-Tourcoing
E106: CPAM Rouen-Elbeuf-Dieppe-Seine-Maritime
E107: CPAM Saône-et-Loire
E108: CPAM Sarthe
E109: CPAM Savoie
E110: CPAM Seine-et-Marne
E111: CPAM Seine-Saint-Denis
E112: CPAM Somme
E113: CPAM Tarn
E114: CPAM Tarn-et-Garonne
E115: CPAM Territoire-de-Belfort
E116: CPAM Val-de-Marne
E117: CPAM Val-d'Oise
E118: CPAM Var
E119: CPAM Vaucluse
E120: CPAM Vendée
E121: CPAM Vienne
E122: CPAM Vosges
E123: CPAM Yonne
E124: CPAM Yvelines
E125: CSSM Mayotte
E126: CTI Bretagne - Pays de Loire
E127: CTI Grand Est
E128: CTI PACAC
E129: CTI Rhône Alpes Auvergne
E130: CTI NP-NP
E131: CTI Sud Toulouse
E132: DRSM Alsace-Moselle
E133: DRSM Aquitaine
E134: DRSM Auvergne
E135: DRSM Bourgogne-Franche-Comté
E136: DRSM Bretagne
E137: DRSM Centre
E138: DRSM Centre-Ouest
E139: DRSM Guadeloupe
E140: DRSM Guyane
E141: DRSM Ile de France
E142: DRSM La Réunion
E143: DRSM Languedoc-Rousillon
E144: DRSM Martinique
E145: DRSM Midi-Pyrénées
E146: DRSM Nord-Est
E147: DRSM Nord-Picardie
E148: DRSM Normandie
E149: DRSM Pays de Loire
E150: DRSM Rhône-Alpes
E151: DRSM Sud-Est-Corse
E152: CESTIF
E153: UGECAM Alsace
E154: UGECAM Aquitaine
E155: UGECAM Auvergne Limousin Poitou-Charente
E156: UGECAM Bourgogne Franche-Compté
E157: UGECAM Bretagne Pays de la Loire
E158: UGECAM Centre
E159: UGECAM Ile-de-France
E160: UGECAM Languedoc-Roussillon Midi-Pyrénées
E161: UGECAM Nord Pas-de-Calais Picardie
E162: UGECAM Nord-Est
E163: UGECAM Normandie
E164: UGECAM PACA-Corse
E165: UGECAM Rhône Alpes

Sheet Table délais (hidden)
A1: Audit de structure | D1: Audit thématique | G1: Audit Flash
A2: Début de mission (réception des 1er documents) | B2: Nbj | C2: Nbs | D2: Début de mission (réception des 1er documents) | E2: Nbj | F2: Nbs | G2: Début de mission (réception des 1er documents) | H2: Nbj | I2: Nbs
A3: Remise du diagnostic préalable | B3: 30 | C3: 4 | D3: Remise du diagnostic préalable | E3: 30 | F3: 4 | G3: Remise du diagnostic préalable | H3: 30 | I3: 4
A4: Début de la phase terrain | B4: 7 | C4: 1 | D4: Début de la phase terrain | E4: 15 | F4: 2 | G4: Début de la phase terrain | H4: 7 | I4: 1
D5: Remise des synthèses locales | E5: 37 | F5: 5
D6: Validation interne | E6: 15 | F6: 2
A7: Remise du rapport provisoire | B7: 21 | C7: 3 | D7: Remise du rapport provisoire | E7: 15 | G7: Remise du rapport provisoire | H7: 37 | I7: 5
A8: Validation interne | B8: 15 | C8: 2 | D8: Validation interne | E8: 15 | F8: 2 | G8: Validation interne | H8: 15 | I8: 2
A9: Fin de phase contradictoire | B9: 21 | C9: 3 | D9: Fin de phase contradictoire | E9: 15 | F9: 2
A10: Remise du rapport définitif | B10: 15 | C10: 2 | D10: Remise du rapport définitif | E10: 15 | F10: 2 | G10: Remise du rapport définitif | H10: 15 | I10: 2
A11: Diffusion aux organismes | B11: 15 | C11: 2 | D11: Diffusion aux organismes | E11: 15 | F11: 2 | G11: Diffusion aux organismes | H11: 15 | I11: 2
A12: Séminaire de restitution | B12: 15 | C12: 2
A13: Proposition de plan d ‘action | B13: 60 | C13: 8 | D13: Proposition de plan d ‘action | E13: 60 | F13: 8 | G13: Proposition de plan d ‘action | H13: 60 | I13: 8
A14: Validation du plan d’action | B14: 30 | C14: 4 | D14: Validation du plan d’action | E14: 30 | F14: 4 | G14: Validation du plan d’action | H14: 30 | I14: 4
A15: Suivi du plan (Semestre 1) | B15: 180 | C15: 24 | D15: Suivi du plan (Semestre 1) | E15: 180 | F15: 24 | G15: Suivi du plan (Semestre 1) | H15: 180 | I15: 24
A16: Suivi du plan (Semestre 2) | B16: 180 | C16: 24 | D16: Suivi du plan (Semestre 2) | E16: 180 | F16: 24 | G16: Suivi du plan (Semestre 2) | H16: 180 | I16: 24
A17: Suivi du plan (Semestre 3) | B17: 180 | C17: 24 | D17: Suivi du plan (Semestre 3) | E17: 180 | F17: 24 | G17: Suivi du plan (Semestre 3) | H17: 180 | I17: 24
A18: Suivi du plan (Semestre 4) | B18: 180 | C18: 24 | D18: Suivi du plan (Semestre 4) | E18: 180 | F18: 24 | G18: Suivi du plan (Semestre 4) | H18: 180 | I18: 24

Sheet Macro-planning
A1: Dénomination | B1: Organisme | C1: DM | D1: PNA | E1: fin mission | F1: Début mission | G1: Remise DP | H1: Début PT | I1: Remise SL | J1: VI SL | K1: Fin de PC | L1: Remise RP | M1: VI RP | N1: Remise RD | O1: Diffusion | P1: Seminaire | Q1: Proposition PA | R1: Valid PA | AR1: Année N | CS1: Année N+1
S2: janvier | X2: février | AB2: mars | AG2: avril | AK2: mai | AO2: juin | AT2: juillet | AX2: août | BC2: septembre | BG2: octobre | BK2: novembre | BP2: décembre | BT2: janvier | BY2: février | CC2: mars | CH2: avril | CL2: mai | CP2: juin | CU2: juillet | CY2: août | DD2: septembre | DH2: octobre | DL2: novembre | DQ2: décembre
S3: S1 | T3: S2 | U3: S3 | V3: S4 | W3: S5 | X3: S1 | Y3: S2 | Z3: S3 | AA3: S4 | AB3: S1 | AC3: S2 | AD3: S3 | AE3: S4 | AF3: S5 | AG3: S1 | AH3: S2 | AI3: S3 | AJ3: S4 | AK3: S1 | AL3: S2 | AM3: S3 | AN3: S4 | AO3: S1 | AP3: S2 | AQ3: S3 | AR3: S4 | AS3: S5 | AT3: S1 | AU3: S2 | AV3: S3 | AW3: S4 | AX3: S1 | AY3: S2 | AZ3: S3 | BA3: S4 | BB3: S5 | BC3: S1 | BD3: S2 | BE3: S3 | BF3: S4 | BG3: S1 | BH3: S2 | BI3: S3 | BJ3: S4 | BK3: S1 | BL3: S2 | BM3: S3 | BN3: S4 | BO3: S5 | BP3: S1 | BQ3: S2 | BR3: S3 | BS3: S4 | BT3: S1 | BU3: S2 | BV3: S3 | BW3: S4 | BX3: S5 | BY3: S1 | BZ3: S2 | CA3: S3 | CB3: S4 | CC3: S1 | CD3: S2 | CE3: S3 | CF3: S4 | CG3: S5 | CH3: S1 | CI3: S2 | CJ3: S3 | CK3: S4 | CL3: S1 | CM3: S2 | CN3: S3 | CO3: S4 | CP3: S1 | CQ3: S2 | CR3: S3 | CS3: S4 | CT3: S5 | CU3: S1 | CV3: S2 | CW3: S3 | CX3: S4 | CY3: S1 | CZ3: S2 | DA3: S3 | DB3: S4 | DC3: S5 | DD3: S1 | DE3: S2 | DF3: S3 | DG3: S4 | DH3: S1 | DI3: S2 | DJ3: S3 | DK3: S4 | DL3: S1 | DM3: S2 | DN3: S3 | DO3: S4 | DP3: S5 | DQ3: S1 | DR3: S2 | DS3: S3 | DT3: S4
S4: 1 | T4: 2 | U4: 3 | V4: 4 | W4: 5 | X4: 6 | Y4: 7 | Z4: 8 | AA4: 9 | AB4: 10 | AC4: 11 | AD4: 12 | AE4: 13 | AF4: 14 | AG4: 15 | AH4: 16 | AI4: 17 | AJ4: 18 | AK4: 19 | AL4: 20 | AM4: 21 | AN4: 22 | AO4: 23 | AP4: 24 | AQ4: 25 | AR4: 26 | AS4: 27 | AT4: 28 | AU4: 29 | AV4: 30 | AW4: 31 | AX4: 32 | AY4: 33 | AZ4: 34 | BA4: 35 | BB4: 36 | BC4: 37 | BD4: 38 | BE4: 39 | BF4: 40 | BG4: 41 | BH4: 42 | BI4: 43 | BJ4: 44 | BK4: 45 | BL4: 46 | BM4: 47 | BN4: 48 | BO4: 49 | BP4: 50 | BQ4: 51 | BR4: 52 | BS4: 53 | BT4: 54 | BU4: 55 | BV4: 56 | BW4: 57 | BX4: 58 | BY4: 59 | BZ4: 60 | CA4: 61 | CB4: 62 | CC4: 63 | CD4: 64 | CE4: 65 | CF4: 66 | CG4: 67 | CH4: 68 | CI4: 69 | CJ4: 70 | CK4: 71 | CL4: 72 | CM4: 73 | CN4: 74 | CO4: 75 | CP4: 76 | CQ4: 77 | CR4: 78 | CS4: 79 | CT4: 80 | CU4: 81 | CV4: 82 | CW4: 83 | CX4: 84 | CY4: 85 | CZ4: 86 | DA4: 87 | DB4: 88 | DC4: 89 | DD4: 90 | DE4: 91 | DF4: 92 | DG4: 93 | DH4: 94 | DI4: 95 | DJ4: 96 | DK4: 97 | DL4: 98 | DM4: 99 | DN4: 100 | DO4: 101 | DP4: 102 | DQ4: 103 | DR4: 104 | DS4: 105 | DT4: 106
A5: a | B5: a | C5: a | D5: a | E5: =Recap!BK5 -> 24 | F5: =Recap!CY5 -> 9 | G5: =Recap!CZ5 -> 13 | H5: =Recap!DA5 -> 14 | I5: =Recap!DB5 ->  | J5: =Recap!DC5 ->  | K5: =Recap!DD5 -> 20 | L5: =Recap!DE5 -> 22 | M5: =Recap!DF5 ->  | N5: =Recap!DG5 -> 24 | O5: =Recap!DH5 -> 26
F7: =Recap!BP5 ->  | G7: =Recap!BQ5 ->  | H7: =Recap!BR5 ->  | I7: =Recap!BS5 ->  | J7: =Recap!BT5 ->  | K7: =Recap!BU5 ->  | L7: =Recap!BV5 ->  | M7: =Recap!BW5 ->  | N7: =Recap!BX5 ->  | O7: =Recap!BY5 -> 
F8: =IF(ISNA(VLOOKUP($A8,Recap!$A:$DK,103,FALSE)),"",VLOOKUP($A8,Recap!$A:$DK,103,FALSE)) ->  | G8: =IF(ISNA(VLOOKUP($A8,Recap!$A:$DK,104,FALSE)),"",VLOOKUP($A8,Recap!$A:$DK,104,FALSE)) ->  | H8: =IF(ISNA(VLOOKUP($A8,Recap!$A:$DK,105,FALSE)),"",VLOOKUP($A8,Recap!$A:$DK,105,FALSE)) ->  | I8: =IF(ISNA(VLOOKUP($A8,Recap!$A:$DK,106,FALSE)),"",VLOOKUP($A8,Recap!$A:$DK,106,FALSE)) ->  | J8: =IF(ISNA(VLOOKUP($A8,Recap!$A:$DK,107,FALSE)),"",VLOOKUP($A8,Recap!$A:$DK,107,FALSE)) ->  | K8: =IF(ISNA(VLOOKUP($A8,Recap!$A:$DK,108,FALSE)),"",VLOOKUP($A8,Recap!$A:$DK,108,FALSE)) ->  | L8: =IF(ISNA(VLOOKUP($A8,Recap!$A:$DK,109,FALSE)),"",VLOOKUP($A8,Recap!$A:$DK,109,FALSE)) ->  | M8: =IF(ISNA(VLOOKUP($A8,Recap!$A:$DK,110,FALSE)),"",VLOOKUP($A8,Recap!$A:$DK,110,FALSE)) ->  | N8: =IF(ISNA(VLOOKUP($A8,Recap!$A:$DK,111,FALSE)),"",VLOOKUP($A8,Recap!$A:$DK,111,FALSE)) ->  | O8: =IF(ISNA(VLOOKUP($A8,Recap!$A:$DK,112,FALSE)),"",VLOOKUP($A8,Recap!$A:$DK,112,FALSE)) ->  | P8: =IF(ISNA(VLOOKUP($A8,Recap!$A:$DK,113,FALSE)),"",VLOOKUP($A8,Recap!$A:$DK,113,FALSE)) ->  | Q8: =IF(ISNA(VLOOKUP($A8,Recap!$A:$DK,114,FALSE)),"",VLOOKUP($A8,Recap!$A:$DK,114,FALSE)) ->  | R8: =IF(ISNA(VLOOKUP($A8,Recap!$A:$DK,115,FALSE)),"",VLOOKUP($A8,Recap!$A:$DK,115,FALSE)) -> 
F9: =IF(ISNA(VLOOKUP($A8,Recap!$A:$DK,68,FALSE)),"",VLOOKUP($A8,Recap!$A:$DK,68,FALSE)) ->  | G9: =IF(ISNA(VLOOKUP($A8,Recap!$A:$DK,69,FALSE)),"",VLOOKUP($A8,Recap!$A:$DK,69,FALSE)) ->  | H9: =IF(ISNA(VLOOKUP($A8,Recap!$A:$DK,70,FALSE)),"",VLOOKUP($A8,Recap!$A:$DK,70,FALSE)) ->  | I9: =IF(ISNA(VLOOKUP($A8,Recap!$A:$DK,71,FALSE)),"",VLOOKUP($A8,Recap!$A:$DK,71,FALSE)) ->  | J9: =IF(ISNA(VLOOKUP($A8,Recap!$A:$DK,72,FALSE)),"",VLOOKUP($A8,Recap!$A:$DK,72,FALSE)) ->  | K9: =IF(ISNA(VLOOKUP($A8,Recap!$A:$DK,73,FALSE)),"",VLOOKUP($A8,Recap!$A:$DK,73,FALSE)) ->  | L9: =IF(ISNA(VLOOKUP($A8,Recap!$A:$DK,74,FALSE)),"",VLOOKUP($A8,Recap!$A:$DK,74,FALSE)) ->  | M9: =IF(ISNA(VLOOKUP($A8,Recap!$A:$DK,75,FALSE)),"",VLOOKUP($A8,Recap!$A:$DK,75,FALSE)) ->  | N9: =IF(ISNA(VLOOKUP($A8,Recap!$A:$DK,76,FALSE)),"",VLOOKUP($A8,Recap!$A:$DK,76,FALSE)) ->  | O9: =IF(ISNA(VLOOKUP($A8,Recap!$A:$DK,77,FALSE)),"",VLOOKUP($A8,Recap!$A:$DK,77,FALSE)) ->  | P9: =IF(ISNA(VLOOKUP($A8,Recap!$A:$DK,78,FALSE)),"",VLOOKUP($A8,Recap!$A:$DK,78,FALSE)) ->  | Q9: =IF(ISNA(VLOOKUP($A8,Recap!$A:$DK,79,FALSE)),"",VLOOKUP($A8,Recap!$A:$DK,79,FALSE)) ->  | R9: =IF(ISNA(VLOOKUP($A8,Recap!$A:$DK,80,FALSE)),"",VLOOKUP($A8,Recap!$A:$DK,80,FALSE)) -> 
F10: =IF(ISNA(VLOOKUP($A10,Recap!$A:$DK,103,FALSE)),"",VLOOKUP($A10,Recap!$A:$DK,103,FALSE)) ->  | G10: =IF(ISNA(VLOOKUP($A10,Recap!$A:$DK,104,FALSE)),"",VLOOKUP($A10,Recap!$A:$DK,104,FALSE)) ->  | H10: =IF(ISNA(VLOOKUP($A10,Recap!$A:$DK,105,FALSE)),"",VLOOKUP($A10,Recap!$A:$DK,105,FALSE)) ->  | I10: =IF(ISNA(VLOOKUP($A10,Recap!$A:$DK,106,FALSE)),"",VLOOKUP($A10,Recap!$A:$DK,106,FALSE)) ->  | J10: =IF(ISNA(VLOOKUP($A10,Recap!$A:$DK,107,FALSE)),"",VLOOKUP($A10,Recap!$A:$DK,107,FALSE)) ->  | K10: =IF(ISNA(VLOOKUP($A10,Recap!$A:$DK,108,FALSE)),"",VLOOKUP($A10,Recap!$A:$DK,108,FALSE)) ->  | L10: =IF(ISNA(VLOOKUP($A10,Recap!$A:$DK,109,FALSE)),"",VLOOKUP($A10,Recap!$A:$DK,109,FALSE)) ->  | M10: =IF(ISNA(VLOOKUP($A10,Recap!$A:$DK,110,FALSE)),"",VLOOKUP($A10,Recap!$A:$DK,110,FALSE)) ->  | N10: =IF(ISNA(VLOOKUP($A10,Recap!$A:$DK,111,FALSE)),"",VLOOKUP($A10,Recap!$A:$DK,111,FALSE)) ->  | O10: =IF(ISNA(VLOOKUP($A10,Recap!$A:$DK,112,FALSE)),"",VLOOKUP($A10,Recap!$A:$DK,112,FALSE)) ->  | P10: =IF(ISNA(VLOOKUP($A10,Recap!$A:$DK,113,FALSE)),"",VLOOKUP($A10,Recap!$A:$DK,113,FALSE)) ->  | Q10: =IF(ISNA(VLOOKUP($A10,Recap!$A:$DK,114,FALSE)),"",VLOOKUP($A10,Recap!$A:$DK,114,FALSE)) ->  | R10: =IF(ISNA(VLOOKUP($A10,Recap!$A:$DK,115,FALSE)),"",VLOOKUP($A10,Recap!$A:$DK,115,FALSE)) -> 
F11: =IF(ISNA(VLOOKUP($A10,Recap!$A:$DK,68,FALSE)),"",VLOOKUP($A10,Recap!$A:$DK,68,FALSE)) ->  | G11: =IF(ISNA(VLOOKUP($A10,Recap!$A:$DK,69,FALSE)),"",VLOOKUP($A10,Recap!$A:$DK,69,FALSE)) ->  | H11: =IF(ISNA(VLOOKUP($A10,Recap!$A:$DK,70,FALSE)),"",VLOOKUP($A10,Recap!$A:$DK,70,FALSE)) ->  | I11: =IF(ISNA(VLOOKUP($A10,Recap!$A:$DK,71,FALSE)),"",VLOOKUP($A10,Recap!$A:$DK,71,FALSE)) ->  | J11: =IF(ISNA(VLOOKUP($A10,Recap!$A:$DK,72,FALSE)),"",VLOOKUP($A10,Recap!$A:$DK,72,FALSE)) ->  | K11: =IF(ISNA(VLOOKUP($A10,Recap!$A:$DK,73,FALSE)),"",VLOOKUP($A10,Recap!$A:$DK,73,FALSE)) ->  | L11: =IF(ISNA(VLOOKUP($A10,Recap!$A:$DK,74,FALSE)),"",VLOOKUP($A10,Recap!$A:$DK,74,FALSE)) ->  | M11: =IF(ISNA(VLOOKUP($A10,Recap!$A:$DK,75,FALSE)),"",VLOOKUP($A10,Recap!$A:$DK,75,FALSE)) ->  | N11: =IF(ISNA(VLOOKUP($A10,Recap!$A:$DK,76,FALSE)),"",VLOOKUP($A10,Recap!$A:$DK,76,FALSE)) ->  | O11: =IF(ISNA(VLOOKUP($A10,Recap!$A:$DK,77,FALSE)),"",VLOOKUP($A10,Recap!$A:$DK,77,FALSE)) ->  | P11: =IF(ISNA(VLOOKUP($A10,Recap!$A:$DK,78,FALSE)),"",VLOOKUP($A10,Recap!$A:$DK,78,FALSE)) ->  | Q11: =IF(ISNA(VLOOKUP($A10,Recap!$A:$DK,79,FALSE)),"",VLOOKUP($A10,Recap!$A:$DK,79,FALSE)) ->  | R11: =IF(ISNA(VLOOKUP($A10,Recap!$A:$DK,80,FALSE)),"",VLOOKUP($A10,Recap!$A:$DK,80,FALSE)) -> 
F12: =IF(ISNA(VLOOKUP($A12,Recap!$A:$DK,103,FALSE)),"",VLOOKUP($A12,Recap!$A:$DK,103,FALSE)) ->  | G12: =IF(ISNA(VLOOKUP($A12,Recap!$A:$DK,104,FALSE)),"",VLOOKUP($A12,Recap!$A:$DK,104,FALSE)) ->  | H12: =IF(ISNA(VLOOKUP($A12,Recap!$A:$DK,105,FALSE)),"",VLOOKUP($A12,Recap!$A:$DK,105,FALSE)) ->  | I12: =IF(ISNA(VLOOKUP($A12,Recap!$A:$DK,106,FALSE)),"",VLOOKUP($A12,Recap!$A:$DK,106,FALSE)) ->  | J12: =IF(ISNA(VLOOKUP($A12,Recap!$A:$DK,107,FALSE)),"",VLOOKUP($A12,Recap!$A:$DK,107,FALSE)) ->  | K12: =IF(ISNA(VLOOKUP($A12,Recap!$A:$DK,108,FALSE)),"",VLOOKUP($A12,Recap!$A:$DK,108,FALSE)) ->  | L12: =IF(ISNA(VLOOKUP($A12,Recap!$A:$DK,109,FALSE)),"",VLOOKUP($A12,Recap!$A:$DK,109,FALSE)) ->  | M12: =IF(ISNA(VLOOKUP($A12,Recap!$A:$DK,110,FALSE)),"",VLOOKUP($A12,Recap!$A:$DK,110,FALSE)) ->  | N12: =IF(ISNA(VLOOKUP($A12,Recap!$A:$DK,111,FALSE)),"",VLOOKUP($A12,Recap!$A:$DK,111,FALSE)) ->  | O12: =IF(ISNA(VLOOKUP($A12,Recap!$A:$DK,112,FALSE)),"",VLOOKUP($A12,Recap!$A:$DK,112,FALSE)) ->  | P12: =IF(ISNA(VLOOKUP($A12,Recap!$A:$DK,113,FALSE)),"",VLOOKUP($A12,Recap!$A:$DK,113,FALSE)) ->  | Q12: =IF(ISNA(VLOOKUP($A12,Recap!$A:$DK,114,FALSE)),"",VLOOKUP($A12,Recap!$A:$DK,114,FALSE)) ->  | R12: =IF(ISNA(VLOOKUP($A12,Recap!$A:$DK,113,FALSE)),"",VLOOKUP($A12,Recap!$A:$DK,113,FALSE)) -> 
F13: =IF(ISNA(VLOOKUP($A12,Recap!$A:$DK,68,FALSE)),"",VLOOKUP($A12,Recap!$A:$DK,68,FALSE)) ->  | G13: =IF(ISNA(VLOOKUP($A12,Recap!$A:$DK,69,FALSE)),"",VLOOKUP($A12,Recap!$A:$DK,69,FALSE)) ->  | H13: =IF(ISNA(VLOOKUP($A12,Recap!$A:$DK,70,FALSE)),"",VLOOKUP($A12,Recap!$A:$DK,70,FALSE)) ->  | I13: =IF(ISNA(VLOOKUP($A12,Recap!$A:$DK,71,FALSE)),"",VLOOKUP($A12,Recap!$A:$DK,71,FALSE)) ->  | J13: =IF(ISNA(VLOOKUP($A12,Recap!$A:$DK,72,FALSE)),"",VLOOKUP($A12,Recap!$A:$DK,72,FALSE)) ->  | K13: =IF(ISNA(VLOOKUP($A12,Recap!$A:$DK,73,FALSE)),"",VLOOKUP($A12,Recap!$A:$DK,73,FALSE)) ->  | L13: =IF(ISNA(VLOOKUP($A12,Recap!$A:$DK,74,FALSE)),"",VLOOKUP($A12,Recap!$A:$DK,74,FALSE)) ->  | M13: =IF(ISNA(VLOOKUP($A12,Recap!$A:$DK,75,FALSE)),"",VLOOKUP($A12,Recap!$A:$DK,75,FALSE)) ->  | N13: =IF(ISNA(VLOOKUP($A12,Recap!$A:$DK,76,FALSE)),"",VLOOKUP($A12,Recap!$A:$DK,76,FALSE)) ->  | O13: =IF(ISNA(VLOOKUP($A12,Recap!$A:$DK,77,FALSE)),"",VLOOKUP($A12,Recap!$A:$DK,77,FALSE)) ->  | P13: =IF(ISNA(VLOOKUP($A12,Recap!$A:$DK,78,FALSE)),"",VLOOKUP($A12,Recap!$A:$DK,78,FALSE)) ->  | Q13: =IF(ISNA(VLOOKUP($A12,Recap!$A:$DK,79,FALSE)),"",VLOOKUP($A12,Recap!$A:$DK,79,FALSE)) ->  | R13: =IF(ISNA(VLOOKUP($A12,Recap!$A:$DK,80,FALSE)),"",VLOOKUP($A12,Recap!$A:$DK,80,FALSE)) -> 
E14: =IF(ISNA(VLOOKUP(A14,Recap!A:BK,54,FALSE)),"",VLOOKUP(A14,Recap!A:BK,54,FALSE)) ->  | F14: =IF(ISNA(VLOOKUP($A14,Recap!$A:$DK,103,FALSE)),"",VLOOKUP($A14,Recap!$A:$DK,103,FALSE)) ->  | G14: =IF(ISNA(VLOOKUP($A14,Recap!$A:$DK,104,FALSE)),"",VLOOKUP($A14,Recap!$A:$DK,104,FALSE)) ->  | H14: =IF(ISNA(VLOOKUP($A14,Recap!$A:$DK,105,FALSE)),"",VLOOKUP($A14,Recap!$A:$DK,105,FALSE)) ->  | I14: =IF(ISNA(VLOOKUP($A14,Recap!$A:$DK,106,FALSE)),"",VLOOKUP($A14,Recap!$A:$DK,106,FALSE)) ->  | J14: =IF(ISNA(VLOOKUP($A14,Recap!$A:$DK,107,FALSE)),"",VLOOKUP($A14,Recap!$A:$DK,107,FALSE)) ->  | K14: =IF(ISNA(VLOOKUP($A14,Recap!$A:$DK,108,FALSE)),"",VLOOKUP($A14,Recap!$A:$DK,108,FALSE)) ->  | L14: =IF(ISNA(VLOOKUP($A14,Recap!$A:$DK,109,FALSE)),"",VLOOKUP($A14,Recap!$A:$DK,109,FALSE)) ->  | M14: =IF(ISNA(VLOOKUP($A14,Recap!$A:$DK,110,FALSE)),"",VLOOKUP($A14,Recap!$A:$DK,110,FALSE)) ->  | N14: =IF(ISNA(VLOOKUP($A14,Recap!$A:$DK,111,FALSE)),"",VLOOKUP($A14,Recap!$A:$DK,111,FALSE)) ->  | O14: =IF(ISNA(VLOOKUP($A14,Recap!$A:$DK,112,FALSE)),"",VLOOKUP($A14,Recap!$A:$DK,112,FALSE)) ->  | P14: =IF(ISNA(VLOOKUP($A14,Recap!$A:$DK,113,FALSE)),"",VLOOKUP($A14,Recap!$A:$DK,113,FALSE)) ->  | Q14: =IF(ISNA(VLOOKUP($A14,Recap!$A:$DK,114,FALSE)),"",VLOOKUP($A14,Recap!$A:$DK,114,FALSE)) ->  | R14: =IF(ISNA(VLOOKUP($A14,Recap!$A:$DK,113,FALSE)),"",VLOOKUP($A14,Recap!$A:$DK,113,FALSE)) -> 
F15: =IF(ISNA(VLOOKUP($A14,Recap!$A:$DK,68,FALSE)),"",VLOOKUP($A14,Recap!$A:$DK,68,FALSE)) ->  | G15: =IF(ISNA(VLOOKUP($A14,Recap!$A:$DK,69,FALSE)),"",VLOOKUP($A14,Recap!$A:$DK,69,FALSE)) ->  | H15: =IF(ISNA(VLOOKUP($A14,Recap!$A:$DK,70,FALSE)),"",VLOOKUP($A14,Recap!$A:$DK,70,FALSE)) ->  | I15: =IF(ISNA(VLOOKUP($A14,Recap!$A:$DK,71,FALSE)),"",VLOOKUP($A14,Recap!$A:$DK,71,FALSE)) ->  | J15: =IF(ISNA(VLOOKUP($A14,Recap!$A:$DK,72,FALSE)),"",VLOOKUP($A14,Recap!$A:$DK,72,FALSE)) ->  | K15: =IF(ISNA(VLOOKUP($A14,Recap!$A:$DK,73,FALSE)),"",VLOOKUP($A14,Recap!$A:$DK,73,FALSE)) ->  | L15: =IF(ISNA(VLOOKUP($A14,Recap!$A:$DK,74,FALSE)),"",VLOOKUP($A14,Recap!$A:$DK,74,FALSE)) ->  | M15: =IF(ISNA(VLOOKUP($A14,Recap!$A:$DK,75,FALSE)),"",VLOOKUP($A14,Recap!$A:$DK,75,FALSE)) ->  | N15: =IF(ISNA(VLOOKUP($A14,Recap!$A:$DK,76,FALSE)),"",VLOOKUP($A14,Recap!$A:$DK,76,FALSE)) ->  | O15: =IF(ISNA(VLOOKUP($A14,Recap!$A:$DK,77,FALSE)),"",VLOOKUP($A14,Recap!$A:$DK,77,FALSE)) ->  | P15: =IF(ISNA(VLOOKUP($A14,Recap!$A:$DK,78,FALSE)),"",VLOOKUP($A14,Recap!$A:$DK,78,FALSE)) ->  | Q15: =IF(ISNA(VLOOKUP($A14,Recap!$A:$DK,79,FALSE)),"",VLOOKUP($A14,Recap!$A:$DK,79,FALSE)) ->  | R15: =IF(ISNA(VLOOKUP($A14,Recap!$A:$DK,80,FALSE)),"",VLOOKUP($A14,Recap!$A:$DK,80,FALSE)) -> 
E16: =IF(ISNA(VLOOKUP(A16,Recap!A:BK,54,FALSE)),"",VLOOKUP(A16,Recap!A:BK,54,FALSE)) ->  | F16: =IF(ISNA(VLOOKUP($A16,Recap!$A:$DK,103,FALSE)),"",VLOOKUP($A16,Recap!$A:$DK,103,FALSE)) ->  | G16: =IF(ISNA(VLOOKUP($A16,Recap!$A:$DK,104,FALSE)),"",VLOOKUP($A16,Recap!$A:$DK,104,FALSE)) ->  | H16: =IF(ISNA(VLOOKUP($A16,Recap!$A:$DK,105,FALSE)),"",VLOOKUP($A16,Recap!$A:$DK,105,FALSE)) ->  | I16: =IF(ISNA(VLOOKUP($A16,Recap!$A:$DK,106,FALSE)),"",VLOOKUP($A16,Recap!$A:$DK,106,FALSE)) ->  | J16: =IF(ISNA(VLOOKUP($A16,Recap!$A:$DK,107,FALSE)),"",VLOOKUP($A16,Recap!$A:$DK,107,FALSE)) ->  | K16: =IF(ISNA(VLOOKUP($A16,Recap!$A:$DK,108,FALSE)),"",VLOOKUP($A16,Recap!$A:$DK,108,FALSE)) ->  | L16: =IF(ISNA(VLOOKUP($A16,Recap!$A:$DK,109,FALSE)),"",VLOOKUP($A16,Recap!$A:$DK,109,FALSE)) ->  | M16: =IF(ISNA(VLOOKUP($A16,Recap!$A:$DK,110,FALSE)),"",VLOOKUP($A16,Recap!$A:$DK,110,FALSE)) ->  | N16: =IF(ISNA(VLOOKUP($A16,Recap!$A:$DK,111,FALSE)),"",VLOOKUP($A16,Recap!$A:$DK,111,FALSE)) ->  | O16: =IF(ISNA(VLOOKUP($A16,Recap!$A:$DK,112,FALSE)),"",VLOOKUP($A16,Recap!$A:$DK,112,FALSE)) ->  | P16: =IF(ISNA(VLOOKUP($A16,Recap!$A:$DK,113,FALSE)),"",VLOOKUP($A16,Recap!$A:$DK,113,FALSE)) ->  | Q16: =IF(ISNA(VLOOKUP($A16,Recap!$A:$DK,114,FALSE)),"",VLOOKUP($A16,Recap!$A:$DK,114,FALSE)) ->  | R16: =IF(ISNA(VLOOKUP($A16,Recap!$A:$DK,113,FALSE)),"",VLOOKUP($A16,Recap!$A:$DK,113,FALSE)) -> 
F17: =IF(ISNA(VLOOKUP($A16,Recap!$A:$DK,68,FALSE)),"",VLOOKUP($A16,Recap!$A:$DK,68,FALSE)) ->  | G17: =IF(ISNA(VLOOKUP($A16,Recap!$A:$DK,69,FALSE)),"",VLOOKUP($A16,Recap!$A:$DK,69,FALSE)) ->  | H17: =IF(ISNA(VLOOKUP($A16,Recap!$A:$DK,70,FALSE)),"",VLOOKUP($A16,Recap!$A:$DK,70,FALSE)) ->  | I17: =IF(ISNA(VLOOKUP($A16,Recap!$A:$DK,71,FALSE)),"",VLOOKUP($A16,Recap!$A:$DK,71,FALSE)) ->  | J17: =IF(ISNA(VLOOKUP($A16,Recap!$A:$DK,72,FALSE)),"",VLOOKUP($A16,Recap!$A:$DK,72,FALSE)) ->  | K17: =IF(ISNA(VLOOKUP($A16,Recap!$A:$DK,73,FALSE)),"",VLOOKUP($A16,Recap!$A:$DK,73,FALSE)) ->  | L17: =IF(ISNA(VLOOKUP($A16,Recap!$A:$DK,74,FALSE)),"",VLOOKUP($A16,Recap!$A:$DK,74,FALSE)) ->  | M17: =IF(ISNA(VLOOKUP($A16,Recap!$A:$DK,75,FALSE)),"",VLOOKUP($A16,Recap!$A:$DK,75,FALSE)) ->  | N17: =IF(ISNA(VLOOKUP($A16,Recap!$A:$DK,76,FALSE)),"",VLOOKUP($A16,Recap!$A:$DK,76,FALSE)) ->  | O17: =IF(ISNA(VLOOKUP($A16,Recap!$A:$DK,77,FALSE)),"",VLOOKUP($A16,Recap!$A:$DK,77,FALSE)) ->  | P17: =IF(ISNA(VLOOKUP($A16,Recap!$A:$DK,78,FALSE)),"",VLOOKUP($A16,Recap!$A:$DK,78,FALSE)) ->  | Q17: =IF(ISNA(VLOOKUP($A16,Recap!$A:$DK,79,FALSE)),"",VLOOKUP($A16,Recap!$A:$DK,79,FALSE)) ->  | R17: =IF(ISNA(VLOOKUP($A16,Recap!$A:$DK,80,FALSE)),"",VLOOKUP($A16,Recap!$A:$DK,80,FALSE)) -> 
F18: =IF(ISNA(VLOOKUP($A18,Recap!$A:$DK,103,FALSE)),"",VLOOKUP($A18,Recap!$A:$DK,103,FALSE)) ->  | G18: =IF(ISNA(VLOOKUP($A18,Recap!$A:$DK,104,FALSE)),"",VLOOKUP($A18,Recap!$A:$DK,104,FALSE)) ->  | H18: =IF(ISNA(VLOOKUP($A18,Recap!$A:$DK,105,FALSE)),"",VLOOKUP($A18,Recap!$A:$DK,105,FALSE)) ->  | I18: =IF(ISNA(VLOOKUP($A18,Recap!$A:$DK,106,FALSE)),"",VLOOKUP($A18,Recap!$A:$DK,106,FALSE)) ->  | J18: =IF(ISNA(VLOOKUP($A18,Recap!$A:$DK,107,FALSE)),"",VLOOKUP($A18,Recap!$A:$DK,107,FALSE)) ->  | K18: =IF(ISNA(VLOOKUP($A18,Recap!$A:$DK,108,FALSE)),"",VLOOKUP($A18,Recap!$A:$DK,108,FALSE)) ->  | L18: =IF(ISNA(VLOOKUP($A18,Recap!$A:$DK,109,FALSE)),"",VLOOKUP($A18,Recap!$A:$DK,109,FALSE)) ->  | M18: =IF(ISNA(VLOOKUP($A18,Recap!$A:$DK,110,FALSE)),"",VLOOKUP($A18,Recap!$A:$DK,110,FALSE)) ->  | N18: =IF(ISNA(VLOOKUP($A18,Recap!$A:$DK,111,FALSE)),"",VLOOKUP($A18,Recap!$A:$DK,111,FALSE)) ->  | O18: =IF(ISNA(VLOOKUP($A18,Recap!$A:$DK,112,FALSE)),"",VLOOKUP($A18,Recap!$A:$DK,112,FALSE)) ->  | P18: =IF(ISNA(VLOOKUP($A18,Recap!$A:$DK,113,FALSE)),"",VLOOKUP($A18,Recap!$A:$DK,113,FALSE)) ->  | Q18: =IF(ISNA(VLOOKUP($A18,Recap!$A:$DK,114,FALSE)),"",VLOOKUP($A18,Recap!$A:$DK,114,FALSE)) ->  | R18: =IF(ISNA(VLOOKUP($A18,Recap!$A:$DK,113,FALSE)),"",VLOOKUP($A18,Recap!$A:$DK,113,FALSE)) -> 
F19: =IF(ISNA(VLOOKUP($A18,Recap!$A:$DK,68,FALSE)),"",VLOOKUP($A18,Recap!$A:$DK,68,FALSE)) ->  | G19: =IF(ISNA(VLOOKUP($A18,Recap!$A:$DK,69,FALSE)),"",VLOOKUP($A18,Recap!$A:$DK,69,FALSE)) ->  | H19: =IF(ISNA(VLOOKUP($A18,Recap!$A:$DK,70,FALSE)),"",VLOOKUP($A18,Recap!$A:$DK,70,FALSE)) ->  | I19: =IF(ISNA(VLOOKUP($A18,Recap!$A:$DK,71,FALSE)),"",VLOOKUP($A18,Recap!$A:$DK,71,FALSE)) ->  | J19: =IF(ISNA(VLOOKUP($A18,Recap!$A:$DK,72,FALSE)),"",VLOOKUP($A18,Recap!$A:$DK,72,FALSE)) ->  | K19: =IF(ISNA(VLOOKUP($A18,Recap!$A:$DK,73,FALSE)),"",VLOOKUP($A18,Recap!$A:$DK,73,FALSE)) ->  | L19: =IF(ISNA(VLOOKUP($A18,Recap!$A:$DK,74,FALSE)),"",VLOOKUP($A18,Recap!$A:$DK,74,FALSE)) ->  | M19: =IF(ISNA(VLOOKUP($A18,Recap!$A:$DK,75,FALSE)),"",VLOOKUP($A18,Recap!$A:$DK,75,FALSE)) ->  | N19: =IF(ISNA(VLOOKUP($A18,Recap!$A:$DK,76,FALSE)),"",VLOOKUP($A18,Recap!$A:$DK,76,FALSE)) ->  | O19: =IF(ISNA(VLOOKUP($A18,Recap!$A:$DK,77,FALSE)),"",VLOOKUP($A18,Recap!$A:$DK,77,FALSE)) ->  | P19: =IF(ISNA(VLOOKUP($A18,Recap!$A:$DK,78,FALSE)),"",VLOOKUP($A18,Recap!$A:$DK,78,FALSE)) ->  | Q19: =IF(ISNA(VLOOKUP($A18,Recap!$A:$DK,79,FALSE)),"",VLOOKUP($A18,Recap!$A:$DK,79,FALSE)) ->  | R19: =IF(ISNA(VLOOKUP($A18,Recap!$A:$DK,80,FALSE)),"",VLOOKUP($A18,Recap!$A:$DK,80,FALSE)) -> 
F20: =IF(ISNA(VLOOKUP($A20,Recap!$A:$DK,103,FALSE)),"",VLOOKUP($A20,Recap!$A:$DK,103,FALSE)) ->  | G20: =IF(ISNA(VLOOKUP($A20,Recap!$A:$DK,104,FALSE)),"",VLOOKUP($A20,Recap!$A:$DK,104,FALSE)) ->  | H20: =IF(ISNA(VLOOKUP($A20,Recap!$A:$DK,105,FALSE)),"",VLOOKUP($A20,Recap!$A:$DK,105,FALSE)) ->  | I20: =IF(ISNA(VLOOKUP($A20,Recap!$A:$DK,106,FALSE)),"",VLOOKUP($A20,Recap!$A:$DK,106,FALSE)) ->  | J20: =IF(ISNA(VLOOKUP($A20,Recap!$A:$DK,107,FALSE)),"",VLOOKUP($A20,Recap!$A:$DK,107,FALSE)) ->  | K20: =IF(ISNA(VLOOKUP($A20,Recap!$A:$DK,108,FALSE)),"",VLOOKUP($A20,Recap!$A:$DK,108,FALSE)) ->  | L20: =IF(ISNA(VLOOKUP($A20,Recap!$A:$DK,109,FALSE)),"",VLOOKUP($A20,Recap!$A:$DK,109,FALSE)) ->  | M20: =IF(ISNA(VLOOKUP($A20,Recap!$A:$DK,110,FALSE)),"",VLOOKUP($A20,Recap!$A:$DK,110,FALSE)) ->  | N20: =IF(ISNA(VLOOKUP($A20,Recap!$A:$DK,111,FALSE)),"",VLOOKUP($A20,Recap!$A:$DK,111,FALSE)) ->  | O20: =IF(ISNA(VLOOKUP($A20,Recap!$A:$DK,112,FALSE)),"",VLOOKUP($A20,Recap!$A:$DK,112,FALSE)) ->  | P20: =IF(ISNA(VLOOKUP($A20,Recap!$A:$DK,113,FALSE)),"",VLOOKUP($A20,Recap!$A:$DK,113,FALSE)) ->  | Q20: =IF(ISNA(VLOOKUP($A20,Recap!$A:$DK,114,FALSE)),"",VLOOKUP($A20,Recap!$A:$DK,114,FALSE)) ->  | R20: =IF(ISNA(VLOOKUP($A20,Recap!$A:$DK,113,FALSE)),"",VLOOKUP($A20,Recap!$A:$DK,113,FALSE)) -> 
F21: =IF(ISNA(VLOOKUP($A20,Recap!$A:$DK,68,FALSE)),"",VLOOKUP($A20,Recap!$A:$DK,68,FALSE)) ->  | G21: =IF(ISNA(VLOOKUP($A20,Recap!$A:$DK,69,FALSE)),"",VLOOKUP($A20,Recap!$A:$DK,69,FALSE)) ->  | H21: =IF(ISNA(VLOOKUP($A20,Recap!$A:$DK,70,FALSE)),"",VLOOKUP($A20,Recap!$A:$DK,70,FALSE)) ->  | I21: =IF(ISNA(VLOOKUP($A20,Recap!$A:$DK,71,FALSE)),"",VLOOKUP($A20,Recap!$A:$DK,71,FALSE)) ->  | J21: =IF(ISNA(VLOOKUP($A20,Recap!$A:$DK,72,FALSE)),"",VLOOKUP($A20,Recap!$A:$DK,72,FALSE)) ->  | K21: =IF(ISNA(VLOOKUP($A20,Recap!$A:$DK,73,FALSE)),"",VLOOKUP($A20,Recap!$A:$DK,73,FALSE)) ->  | L21: =IF(ISNA(VLOOKUP($A20,Recap!$A:$DK,74,FALSE)),"",VLOOKUP($A20,Recap!$A:$DK,74,FALSE)) ->  | M21: =IF(ISNA(VLOOKUP($A20,Recap!$A:$DK,75,FALSE)),"",VLOOKUP($A20,Recap!$A:$DK,75,FALSE)) ->  | N21: =IF(ISNA(VLOOKUP($A20,Recap!$A:$DK,76,FALSE)),"",VLOOKUP($A20,Recap!$A:$DK,76,FALSE)) ->  | O21: =IF(ISNA(VLOOKUP($A20,Recap!$A:$DK,77,FALSE)),"",VLOOKUP($A20,Recap!$A:$DK,77,FALSE)) ->  | P21: =IF(ISNA(VLOOKUP($A20,Recap!$A:$DK,78,FALSE)),"",VLOOKUP($A20,Recap!$A:$DK,78,FALSE)) ->  | Q21: =IF(ISNA(VLOOKUP($A20,Recap!$A:$DK,79,FALSE)),"",VLOOKUP($A20,Recap!$A:$DK,79,FALSE)) ->  | R21: =IF(ISNA(VLOOKUP($A20,Recap!$A:$DK,80,FALSE)),"",VLOOKUP($A20,Recap!$A:$DK,80,FALSE)) -> 
F22: =IF(ISNA(VLOOKUP($A22,Recap!$A:$DK,103,FALSE)),"",VLOOKUP($A22,Recap!$A:$DK,103,FALSE)) ->  | G22: =IF(ISNA(VLOOKUP($A22,Recap!$A:$DK,104,FALSE)),"",VLOOKUP($A22,Recap!$A:$DK,104,FALSE)) ->  | H22: =IF(ISNA(VLOOKUP($A22,Recap!$A:$DK,105,FALSE)),"",VLOOKUP($A22,Recap!$A:$DK,105,FALSE)) ->  | I22: =IF(ISNA(VLOOKUP($A22,Recap!$A:$DK,106,FALSE)),"",VLOOKUP($A22,Recap!$A:$DK,106,FALSE)) ->  | J22: =IF(ISNA(VLOOKUP($A22,Recap!$A:$DK,107,FALSE)),"",VLOOKUP($A22,Recap!$A:$DK,107,FALSE)) ->  | K22: =IF(ISNA(VLOOKUP($A22,Recap!$A:$DK,108,FALSE)),"",VLOOKUP($A22,Recap!$A:$DK,108,FALSE)) ->  | L22: =IF(ISNA(VLOOKUP($A22,Recap!$A:$DK,109,FALSE)),"",VLOOKUP($A22,Recap!$A:$DK,109,FALSE)) ->  | M22: =IF(ISNA(VLOOKUP($A22,Recap!$A:$DK,110,FALSE)),"",VLOOKUP($A22,Recap!$A:$DK,110,FALSE)) ->  | N22: =IF(ISNA(VLOOKUP($A22,Recap!$A:$DK,111,FALSE)),"",VLOOKUP($A22,Recap!$A:$DK,111,FALSE)) ->  | O22: =IF(ISNA(VLOOKUP($A22,Recap!$A:$DK,112,FALSE)),"",VLOOKUP($A22,Recap!$A:$DK,112,FALSE)) ->  | P22: =IF(ISNA(VLOOKUP($A22,Recap!$A:$DK,113,FALSE)),"",VLOOKUP($A22,Recap!$A:$DK,113,FALSE)) ->  | Q22: =IF(ISNA(VLOOKUP($A22,Recap!$A:$DK,114,FALSE)),"",VLOOKUP($A22,Recap!$A:$DK,114,FALSE)) ->  | R22: =IF(ISNA(VLOOKUP($A22,Recap!$A:$DK,113,FALSE)),"",VLOOKUP($A22,Recap!$A:$DK,113,FALSE)) -> 
F23: =IF(ISNA(VLOOKUP($A22,Recap!$A:$DK,68,FALSE)),"",VLOOKUP($A22,Recap!$A:$DK,68,FALSE)) ->  | G23: =IF(ISNA(VLOOKUP($A22,Recap!$A:$DK,69,FALSE)),"",VLOOKUP($A22,Recap!$A:$DK,69,FALSE)) ->  | H23: =IF(ISNA(VLOOKUP($A22,Recap!$A:$DK,70,FALSE)),"",VLOOKUP($A22,Recap!$A:$DK,70,FALSE)) ->  | I23: =IF(ISNA(VLOOKUP($A22,Recap!$A:$DK,71,FALSE)),"",VLOOKUP($A22,Recap!$A:$DK,71,FALSE)) ->  | J23: =IF(ISNA(VLOOKUP($A22,Recap!$A:$DK,72,FALSE)),"",VLOOKUP($A22,Recap!$A:$DK,72,FALSE)) ->  | K23: =IF(ISNA(VLOOKUP($A22,Recap!$A:$DK,73,FALSE)),"",VLOOKUP($A22,Recap!$A:$DK,73,FALSE)) ->  | L23: =IF(ISNA(VLOOKUP($A22,Recap!$A:$DK,74,FALSE)),"",VLOOKUP($A22,Recap!$A:$DK,74,FALSE)) ->  | M23: =IF(ISNA(VLOOKUP($A22,Recap!$A:$DK,75,FALSE)),"",VLOOKUP($A22,Recap!$A:$DK,75,FALSE)) ->  | N23: =IF(ISNA(VLOOKUP($A22,Recap!$A:$DK,76,FALSE)),"",VLOOKUP($A22,Recap!$A:$DK,76,FALSE)) ->  | O23: =IF(ISNA(VLOOKUP($A22,Recap!$A:$DK,77,FALSE)),"",VLOOKUP($A22,Recap!$A:$DK,77,FALSE)) ->  | P23: =IF(ISNA(VLOOKUP($A22,Recap!$A:$DK,78,FALSE)),"",VLOOKUP($A22,Recap!$A:$DK,78,FALSE)) ->  | Q23: =IF(ISNA(VLOOKUP($A22,Recap!$A:$DK,79,FALSE)),"",VLOOKUP($A22,Recap!$A:$DK,79,FALSE)) ->  | R23: =IF(ISNA(VLOOKUP($A22,Recap!$A:$DK,80,FALSE)),"",VLOOKUP($A22,Recap!$A:$DK,80,FALSE)) -> 
F24: =IF(ISNA(VLOOKUP($A24,Recap!$A:$DK,103,FALSE)),"",VLOOKUP($A24,Recap!$A:$DK,103,FALSE)) ->  | G24: =IF(ISNA(VLOOKUP($A24,Recap!$A:$DK,104,FALSE)),"",VLOOKUP($A24,Recap!$A:$DK,104,FALSE)) ->  | H24: =IF(ISNA(VLOOKUP($A24,Recap!$A:$DK,105,FALSE)),"",VLOOKUP($A24,Recap!$A:$DK,105,FALSE)) ->  | I24: =IF(ISNA(VLOOKUP($A24,Recap!$A:$DK,106,FALSE)),"",VLOOKUP($A24,Recap!$A:$DK,106,FALSE)) ->  | J24: =IF(ISNA(VLOOKUP($A24,Recap!$A:$DK,107,FALSE)),"",VLOOKUP($A24,Recap!$A:$DK,107,FALSE)) ->  | K24: =IF(ISNA(VLOOKUP($A24,Recap!$A:$DK,108,FALSE)),"",VLOOKUP($A24,Recap!$A:$DK,108,FALSE)) ->  | L24: =IF(ISNA(VLOOKUP($A24,Recap!$A:$DK,109,FALSE)),"",VLOOKUP($A24,Recap!$A:$DK,109,FALSE)) ->  | M24: =IF(ISNA(VLOOKUP($A24,Recap!$A:$DK,110,FALSE)),"",VLOOKUP($A24,Recap!$A:$DK,110,FALSE)) ->  | N24: =IF(ISNA(VLOOKUP($A24,Recap!$A:$DK,111,FALSE)),"",VLOOKUP($A24,Recap!$A:$DK,111,FALSE)) ->  | O24: =IF(ISNA(VLOOKUP($A24,Recap!$A:$DK,112,FALSE)),"",VLOOKUP($A24,Recap!$A:$DK,112,FALSE)) ->  | P24: =IF(ISNA(VLOOKUP($A24,Recap!$A:$DK,113,FALSE)),"",VLOOKUP($A24,Recap!$A:$DK,113,FALSE)) ->  | Q24: =IF(ISNA(VLOOKUP($A24,Recap!$A:$DK,114,FALSE)),"",VLOOKUP($A24,Recap!$A:$DK,114,FALSE)) ->  | R24: =IF(ISNA(VLOOKUP($A24,Recap!$A:$DK,113,FALSE)),"",VLOOKUP($A24,Recap!$A:$DK,113,FALSE)) -> 
F25: =IF(ISNA(VLOOKUP($A24,Recap!$A:$DK,68,FALSE)),"",VLOOKUP($A24,Recap!$A:$DK,68,FALSE)) ->  | G25: =IF(ISNA(VLOOKUP($A24,Recap!$A:$DK,69,FALSE)),"",VLOOKUP($A24,Recap!$A:$DK,69,FALSE)) ->  | H25: =IF(ISNA(VLOOKUP($A24,Recap!$A:$DK,70,FALSE)),"",VLOOKUP($A24,Recap!$A:$DK,70,FALSE)) ->  | I25: =IF(ISNA(VLOOKUP($A24,Recap!$A:$DK,71,FALSE)),"",VLOOKUP($A24,Recap!$A:$DK,71,FALSE)) ->  | J25: =IF(ISNA(VLOOKUP($A24,Recap!$A:$DK,72,FALSE)),"",VLOOKUP($A24,Recap!$A:$DK,72,FALSE)) ->  | K25: =IF(ISNA(VLOOKUP($A24,Recap!$A:$DK,73,FALSE)),"",VLOOKUP($A24,Recap!$A:$DK,73,FALSE)) ->  | L25: =IF(ISNA(VLOOKUP($A24,Recap!$A:$DK,74,FALSE)),"",VLOOKUP($A24,Recap!$A:$DK,74,FALSE)) ->  | M25: =IF(ISNA(VLOOKUP($A24,Recap!$A:$DK,75,FALSE)),"",VLOOKUP($A24,Recap!$A:$DK,75,FALSE)) ->  | N25: =IF(ISNA(VLOOKUP($A24,Recap!$A:$DK,76,FALSE)),"",VLOOKUP($A24,Recap!$A:$DK,76,FALSE)) ->  | O25: =IF(ISNA(VLOOKUP($A24,Recap!$A:$DK,77,FALSE)),"",VLOOKUP($A24,Recap!$A:$DK,77,FALSE)) ->  | P25: =IF(ISNA(VLOOKUP($A24,Recap!$A:$DK,78,FALSE)),"",VLOOKUP($A24,Recap!$A:$DK,78,FALSE)) ->  | Q25: =IF(ISNA(VLOOKUP($A24,Recap!$A:$DK,79,FALSE)),"",VLOOKUP($A24,Recap!$A:$DK,79,FALSE)) ->  | R25: =IF(ISNA(VLOOKUP($A24,Recap!$A:$DK,80,FALSE)),"",VLOOKUP($A24,Recap!$A:$DK,80,FALSE)) -> 
F26: =IF(ISNA(VLOOKUP($A26,Recap!$A:$DK,103,FALSE)),"",VLOOKUP($A26,Recap!$A:$DK,103,FALSE)) ->  | G26: =IF(ISNA(VLOOKUP($A26,Recap!$A:$DK,104,FALSE)),"",VLOOKUP($A26,Recap!$A:$DK,104,FALSE)) ->  | H26: =IF(ISNA(VLOOKUP($A26,Recap!$A:$DK,105,FALSE)),"",VLOOKUP($A26,Recap!$A:$DK,105,FALSE)) ->  | I26: =IF(ISNA(VLOOKUP($A26,Recap!$A:$DK,106,FALSE)),"",VLOOKUP($A26,Recap!$A:$DK,106,FALSE)) ->  | J26: =IF(ISNA(VLOOKUP($A26,Recap!$A:$DK,107,FALSE)),"",VLOOKUP($A26,Recap!$A:$DK,107,FALSE)) ->  | K26: =IF(ISNA(VLOOKUP($A26,Recap!$A:$DK,108,FALSE)),"",VLOOKUP($A26,Recap!$A:$DK,108,FALSE)) ->  | L26: =IF(ISNA(VLOOKUP($A26,Recap!$A:$DK,109,FALSE)),"",VLOOKUP($A26,Recap!$A:$DK,109,FALSE)) ->  | M26: =IF(ISNA(VLOOKUP($A26,Recap!$A:$DK,110,FALSE)),"",VLOOKUP($A26,Recap!$A:$DK,110,FALSE)) ->  | N26: =IF(ISNA(VLOOKUP($A26,Recap!$A:$DK,111,FALSE)),"",VLOOKUP($A26,Recap!$A:$DK,111,FALSE)) ->  | O26: =IF(ISNA(VLOOKUP($A26,Recap!$A:$DK,112,FALSE)),"",VLOOKUP($A26,Recap!$A:$DK,112,FALSE)) ->  | P26: =IF(ISNA(VLOOKUP($A26,Recap!$A:$DK,113,FALSE)),"",VLOOKUP($A26,Recap!$A:$DK,113,FALSE)) ->  | Q26: =IF(ISNA(VLOOKUP($A26,Recap!$A:$DK,114,FALSE)),"",VLOOKUP($A26,Recap!$A:$DK,114,FALSE)) ->  | R26: =IF(ISNA(VLOOKUP($A26,Recap!$A:$DK,113,FALSE)),"",VLOOKUP($A26,Recap!$A:$DK,113,FALSE)) -> 
F27: =IF(ISNA(VLOOKUP($A26,Recap!$A:$DK,68,FALSE)),"",VLOOKUP($A26,Recap!$A:$DK,68,FALSE)) ->  | G27: =IF(ISNA(VLOOKUP($A26,Recap!$A:$DK,69,FALSE)),"",VLOOKUP($A26,Recap!$A:$DK,69,FALSE)) ->  | H27: =IF(ISNA(VLOOKUP($A26,Recap!$A:$DK,70,FALSE)),"",VLOOKUP($A26,Recap!$A:$DK,70,FALSE)) ->  | I27: =IF(ISNA(VLOOKUP($A26,Recap!$A:$DK,71,FALSE)),"",VLOOKUP($A26,Recap!$A:$DK,71,FALSE)) ->  | J27: =IF(ISNA(VLOOKUP($A26,Recap!$A:$DK,72,FALSE)),"",VLOOKUP($A26,Recap!$A:$DK,72,FALSE)) ->  | K27: =IF(ISNA(VLOOKUP($A26,Recap!$A:$DK,73,FALSE)),"",VLOOKUP($A26,Recap!$A:$DK,73,FALSE)) ->  | L27: =IF(ISNA(VLOOKUP($A26,Recap!$A:$DK,74,FALSE)),"",VLOOKUP($A26,Recap!$A:$DK,74,FALSE)) ->  | M27: =IF(ISNA(VLOOKUP($A26,Recap!$A:$DK,75,FALSE)),"",VLOOKUP($A26,Recap!$A:$DK,75,FALSE)) ->  | N27: =IF(ISNA(VLOOKUP($A26,Recap!$A:$DK,76,FALSE)),"",VLOOKUP($A26,Recap!$A:$DK,76,FALSE)) ->  | O27: =IF(ISNA(VLOOKUP($A26,Recap!$A:$DK,77,FALSE)),"",VLOOKUP($A26,Recap!$A:$DK,77,FALSE)) ->  | P27: =IF(ISNA(VLOOKUP($A26,Recap!$A:$DK,78,FALSE)),"",VLOOKUP($A26,Recap!$A:$DK,78,FALSE)) ->  | Q27: =IF(ISNA(VLOOKUP($A26,Recap!$A:$DK,79,FALSE)),"",VLOOKUP($A26,Recap!$A:$DK,79,FALSE)) ->  | R27: =IF(ISNA(VLOOKUP($A26,Recap!$A:$DK,80,FALSE)),"",VLOOKUP($A26,Recap!$A:$DK,80,FALSE)) -> 
F28: =IF(ISNA(VLOOKUP($A28,Recap!$A:$DK,103,FALSE)),"",VLOOKUP($A28,Recap!$A:$DK,103,FALSE)) ->  | G28: =IF(ISNA(VLOOKUP($A28,Recap!$A:$DK,104,FALSE)),"",VLOOKUP($A28,Recap!$A:$DK,104,FALSE)) ->  | H28: =IF(ISNA(VLOOKUP($A28,Recap!$A:$DK,105,FALSE)),"",VLOOKUP($A28,Recap!$A:$DK,105,FALSE)) ->  | I28: =IF(ISNA(VLOOKUP($A28,Recap!$A:$DK,106,FALSE)),"",VLOOKUP($A28,Recap!$A:$DK,106,FALSE)) ->  | J28: =IF(ISNA(VLOOKUP($A28,Recap!$A:$DK,107,FALSE)),"",VLOOKUP($A28,Recap!$A:$DK,107,FALSE)) ->  | K28: =IF(ISNA(VLOOKUP($A28,Recap!$A:$DK,108,FALSE)),"",VLOOKUP($A28,Recap!$A:$DK,108,FALSE)) ->  | L28: =IF(ISNA(VLOOKUP($A28,Recap!$A:$DK,109,FALSE)),"",VLOOKUP($A28,Recap!$A:$DK,109,FALSE)) ->  | M28: =IF(ISNA(VLOOKUP($A28,Recap!$A:$DK,110,FALSE)),"",VLOOKUP($A28,Recap!$A:$DK,110,FALSE)) ->  | N28: =IF(ISNA(VLOOKUP($A28,Recap!$A:$DK,111,FALSE)),"",VLOOKUP($A28,Recap!$A:$DK,111,FALSE)) ->  | O28: =IF(ISNA(VLOOKUP($A28,Recap!$A:$DK,112,FALSE)),"",VLOOKUP($A28,Recap!$A:$DK,112,FALSE)) ->  | P28: =IF(ISNA(VLOOKUP($A28,Recap!$A:$DK,113,FALSE)),"",VLOOKUP($A28,Recap!$A:$DK,113,FALSE)) ->  | Q28: =IF(ISNA(VLOOKUP($A28,Recap!$A:$DK,114,FALSE)),"",VLOOKUP($A28,Recap!$A:$DK,114,FALSE)) ->  | R28: =IF(ISNA(VLOOKUP($A28,Recap!$A:$DK,113,FALSE)),"",VLOOKUP($A28,Recap!$A:$DK,113,FALSE)) -> 
F29: =IF(ISNA(VLOOKUP($A28,Recap!$A:$DK,68,FALSE)),"",VLOOKUP($A28,Recap!$A:$DK,68,FALSE)) ->  | G29: =IF(ISNA(VLOOKUP($A28,Recap!$A:$DK,69,FALSE)),"",VLOOKUP($A28,Recap!$A:$DK,69,FALSE)) ->  | H29: =IF(ISNA(VLOOKUP($A28,Recap!$A:$DK,70,FALSE)),"",VLOOKUP($A28,Recap!$A:$DK,70,FALSE)) ->  | I29: =IF(ISNA(VLOOKUP($A28,Recap!$A:$DK,71,FALSE)),"",VLOOKUP($A28,Recap!$A:$DK,71,FALSE)) ->  | J29: =IF(ISNA(VLOOKUP($A28,Recap!$A:$DK,72,FALSE)),"",VLOOKUP($A28,Recap!$A:$DK,72,FALSE)) ->  | K29: =IF(ISNA(VLOOKUP($A28,Recap!$A:$DK,73,FALSE)),"",VLOOKUP($A28,Recap!$A:$DK,73,FALSE)) ->  | L29: =IF(ISNA(VLOOKUP($A28,Recap!$A:$DK,74,FALSE)),"",VLOOKUP($A28,Recap!$A:$DK,74,FALSE)) ->  | M29: =IF(ISNA(VLOOKUP($A28,Recap!$A:$DK,75,FALSE)),"",VLOOKUP($A28,Recap!$A:$DK,75,FALSE)) ->  | N29: =IF(ISNA(VLOOKUP($A28,Recap!$A:$DK,76,FALSE)),"",VLOOKUP($A28,Recap!$A:$DK,76,FALSE)) ->  | O29: =IF(ISNA(VLOOKUP($A28,Recap!$A:$DK,77,FALSE)),"",VLOOKUP($A28,Recap!$A:$DK,77,FALSE)) ->  | P29: =IF(ISNA(VLOOKUP($A28,Recap!$A:$DK,78,FALSE)),"",VLOOKUP($A28,Recap!$A:$DK,78,FALSE)) ->  | Q29: =IF(ISNA(VLOOKUP($A28,Recap!$A:$DK,79,FALSE)),"",VLOOKUP($A28,Recap!$A:$DK,79,FALSE)) ->  | R29: =IF(ISNA(VLOOKUP($A28,Recap!$A:$DK,80,FALSE)),"",VLOOKUP($A28,Recap!$A:$DK,80,FALSE)) -> 
F30: =IF(ISNA(VLOOKUP($A30,Recap!$A:$DK,103,FALSE)),"",VLOOKUP($A30,Recap!$A:$DK,103,FALSE)) ->  | G30: =IF(ISNA(VLOOKUP($A30,Recap!$A:$DK,104,FALSE)),"",VLOOKUP($A30,Recap!$A:$DK,104,FALSE)) ->  | H30: =IF(ISNA(VLOOKUP($A30,Recap!$A:$DK,105,FALSE)),"",VLOOKUP($A30,Recap!$A:$DK,105,FALSE)) ->  | I30: =IF(ISNA(VLOOKUP($A30,Recap!$A:$DK,106,FALSE)),"",VLOOKUP($A30,Recap!$A:$DK,106,FALSE)) ->  | J30: =IF(ISNA(VLOOKUP($A30,Recap!$A:$DK,107,FALSE)),"",VLOOKUP($A30,Recap!$A:$DK,107,FALSE)) ->  | K30: =IF(ISNA(VLOOKUP($A30,Recap!$A:$DK,108,FALSE)),"",VLOOKUP($A30,Recap!$A:$DK,108,FALSE)) ->  | L30: =IF(ISNA(VLOOKUP($A30,Recap!$A:$DK,109,FALSE)),"",VLOOKUP($A30,Recap!$A:$DK,109,FALSE)) ->  | M30: =IF(ISNA(VLOOKUP($A30,Recap!$A:$DK,110,FALSE)),"",VLOOKUP($A30,Recap!$A:$DK,110,FALSE)) ->  | N30: =IF(ISNA(VLOOKUP($A30,Recap!$A:$DK,111,FALSE)),"",VLOOKUP($A30,Recap!$A:$DK,111,FALSE)) ->  | O30: =IF(ISNA(VLOOKUP($A30,Recap!$A:$DK,112,FALSE)),"",VLOOKUP($A30,Recap!$A:$DK,112,FALSE)) ->  | P30: =IF(ISNA(VLOOKUP($A30,Recap!$A:$DK,113,FALSE)),"",VLOOKUP($A30,Recap!$A:$DK,113,FALSE)) ->  | Q30: =IF(ISNA(VLOOKUP($A30,Recap!$A:$DK,114,FALSE)),"",VLOOKUP($A30,Recap!$A:$DK,114,FALSE)) ->  | R30: =IF(ISNA(VLOOKUP($A30,Recap!$A:$DK,113,FALSE)),"",VLOOKUP($A30,Recap!$A:$DK,113,FALSE)) -> 
F31: =IF(ISNA(VLOOKUP($A30,Recap!$A:$DK,68,FALSE)),"",VLOOKUP($A30,Recap!$A:$DK,68,FALSE)) ->  | G31: =IF(ISNA(VLOOKUP($A30,Recap!$A:$DK,69,FALSE)),"",VLOOKUP($A30,Recap!$A:$DK,69,FALSE)) ->  | H31: =IF(ISNA(VLOOKUP($A30,Recap!$A:$DK,70,FALSE)),"",VLOOKUP($A30,Recap!$A:$DK,70,FALSE)) ->  | I31: =IF(ISNA(VLOOKUP($A30,Recap!$A:$DK,71,FALSE)),"",VLOOKUP($A30,Recap!$A:$DK,71,FALSE)) ->  | J31: =IF(ISNA(VLOOKUP($A30,Recap!$A:$DK,72,FALSE)),"",VLOOKUP($A30,Recap!$A:$DK,72,FALSE)) ->  | K31: =IF(ISNA(VLOOKUP($A30,Recap!$A:$DK,73,FALSE)),"",VLOOKUP($A30,Recap!$A:$DK,73,FALSE)) ->  | L31: =IF(ISNA(VLOOKUP($A30,Recap!$A:$DK,74,FALSE)),"",VLOOKUP($A30,Recap!$A:$DK,74,FALSE)) ->  | M31: =IF(ISNA(VLOOKUP($A30,Recap!$A:$DK,75,FALSE)),"",VLOOKUP($A30,Recap!$A:$DK,75,FALSE)) ->  | N31: =IF(ISNA(VLOOKUP($A30,Recap!$A:$DK,76,FALSE)),"",VLOOKUP($A30,Recap!$A:$DK,76,FALSE)) ->  | O31: =IF(ISNA(VLOOKUP($A30,Recap!$A:$DK,77,FALSE)),"",VLOOKUP($A30,Recap!$A:$DK,77,FALSE)) ->  | P31: =IF(ISNA(VLOOKUP($A30,Recap!$A:$DK,78,FALSE)),"",VLOOKUP($A30,Recap!$A:$DK,78,FALSE)) ->  | Q31: =IF(ISNA(VLOOKUP($A30,Recap!$A:$DK,79,FALSE)),"",VLOOKUP($A30,Recap!$A:$DK,79,FALSE)) ->  | R31: =IF(ISNA(VLOOKUP($A30,Recap!$A:$DK,80,FALSE)),"",VLOOKUP($A30,Recap!$A:$DK,80,FALSE)) -> 
F32: =IF(ISNA(VLOOKUP($A32,Recap!$A:$DK,103,FALSE)),"",VLOOKUP($A32,Recap!$A:$DK,103,FALSE)) ->  | G32: =IF(ISNA(VLOOKUP($A32,Recap!$A:$DK,104,FALSE)),"",VLOOKUP($A32,Recap!$A:$DK,104,FALSE)) ->  | H32: =IF(ISNA(VLOOKUP($A32,Recap!$A:$DK,105,FALSE)),"",VLOOKUP($A32,Recap!$A:$DK,105,FALSE)) ->  | I32: =IF(ISNA(VLOOKUP($A32,Recap!$A:$DK,106,FALSE)),"",VLOOKUP($A32,Recap!$A:$DK,106,FALSE)) ->  | J32: =IF(ISNA(VLOOKUP($A32,Recap!$A:$DK,107,FALSE)),"",VLOOKUP($A32,Recap!$A:$DK,107,FALSE)) ->  | K32: =IF(ISNA(VLOOKUP($A32,Recap!$A:$DK,108,FALSE)),"",VLOOKUP($A32,Recap!$A:$DK,108,FALSE)) ->  | L32: =IF(ISNA(VLOOKUP($A32,Recap!$A:$DK,109,FALSE)),"",VLOOKUP($A32,Recap!$A:$DK,109,FALSE)) ->  | M32: =IF(ISNA(VLOOKUP($A32,Recap!$A:$DK,110,FALSE)),"",VLOOKUP($A32,Recap!$A:$DK,110,FALSE)) ->  | N32: =IF(ISNA(VLOOKUP($A32,Recap!$A:$DK,111,FALSE)),"",VLOOKUP($A32,Recap!$A:$DK,111,FALSE)) ->  | O32: =IF(ISNA(VLOOKUP($A32,Recap!$A:$DK,112,FALSE)),"",VLOOKUP($A32,Recap!$A:$DK,112,FALSE)) ->  | P32: =IF(ISNA(VLOOKUP($A32,Recap!$A:$DK,113,FALSE)),"",VLOOKUP($A32,Recap!$A:$DK,113,FALSE)) ->  | Q32: =IF(ISNA(VLOOKUP($A32,Recap!$A:$DK,114,FALSE)),"",VLOOKUP($A32,Recap!$A:$DK,114,FALSE)) ->  | R32: =IF(ISNA(VLOOKUP($A32,Recap!$A:$DK,113,FALSE)),"",VLOOKUP($A32,Recap!$A:$DK,113,FALSE)) -> 
F33: =IF(ISNA(VLOOKUP($A32,Recap!$A:$DK,68,FALSE)),"",VLOOKUP($A32,Recap!$A:$DK,68,FALSE)) ->  | G33: =IF(ISNA(VLOOKUP($A32,Recap!$A:$DK,69,FALSE)),"",VLOOKUP($A32,Recap!$A:$DK,69,FALSE)) ->  | H33: =IF(ISNA(VLOOKUP($A32,Recap!$A:$DK,70,FALSE)),"",VLOOKUP($A32,Recap!$A:$DK,70,FALSE)) ->  | I33: =IF(ISNA(VLOOKUP($A32,Recap!$A:$DK,71,FALSE)),"",VLOOKUP($A32,Recap!$A:$DK,71,FALSE)) ->  | J33: =IF(ISNA(VLOOKUP($A32,Recap!$A:$DK,72,FALSE)),"",VLOOKUP($A32,Recap!$A:$DK,72,FALSE)) ->  | K33: =IF(ISNA(VLOOKUP($A32,Recap!$A:$DK,73,FALSE)),"",VLOOKUP($A32,Recap!$A:$DK,73,FALSE)) ->  | L33: =IF(ISNA(VLOOKUP($A32,Recap!$A:$DK,74,FALSE)),"",VLOOKUP($A32,Recap!$A:$DK,74,FALSE)) ->  | M33: =IF(ISNA(VLOOKUP($A32,Recap!$A:$DK,75,FALSE)),"",VLOOKUP($A32,Recap!$A:$DK,75,FALSE)) ->  | N33: =IF(ISNA(VLOOKUP($A32,Recap!$A:$DK,76,FALSE)),"",VLOOKUP($A32,Recap!$A:$DK,76,FALSE)) ->  | O33: =IF(ISNA(VLOOKUP($A32,Recap!$A:$DK,77,FALSE)),"",VLOOKUP($A32,Recap!$A:$DK,77,FALSE)) ->  | P33: =IF(ISNA(VLOOKUP($A32,Recap!$A:$DK,78,FALSE)),"",VLOOKUP($A32,Recap!$A:$DK,78,FALSE)) ->  | Q33: =IF(ISNA(VLOOKUP($A32,Recap!$A:$DK,79,FALSE)),"",VLOOKUP($A32,Recap!$A:$DK,79,FALSE)) ->  | R33: =IF(ISNA(VLOOKUP($A32,Recap!$A:$DK,80,FALSE)),"",VLOOKUP($A32,Recap!$A:$DK,80,FALSE)) -> 
F34: =IF(ISNA(VLOOKUP($A34,Recap!$A:$DK,103,FALSE)),"",VLOOKUP($A34,Recap!$A:$DK,103,FALSE)) ->  | G34: =IF(ISNA(VLOOKUP($A34,Recap!$A:$DK,104,FALSE)),"",VLOOKUP($A34,Recap!$A:$DK,104,FALSE)) ->  | H34: =IF(ISNA(VLOOKUP($A34,Recap!$A:$DK,105,FALSE)),"",VLOOKUP($A34,Recap!$A:$DK,105,FALSE)) ->  | I34: =IF(ISNA(VLOOKUP($A34,Recap!$A:$DK,106,FALSE)),"",VLOOKUP($A34,Recap!$A:$DK,106,FALSE)) ->  | J34: =IF(ISNA(VLOOKUP($A34,Recap!$A:$DK,107,FALSE)),"",VLOOKUP($A34,Recap!$A:$DK,107,FALSE)) ->  | K34: =IF(ISNA(VLOOKUP($A34,Recap!$A:$DK,108,FALSE)),"",VLOOKUP($A34,Recap!$A:$DK,108,FALSE)) ->  | L34: =IF(ISNA(VLOOKUP($A34,Recap!$A:$DK,109,FALSE)),"",VLOOKUP($A34,Recap!$A:$DK,109,FALSE)) ->  | M34: =IF(ISNA(VLOOKUP($A34,Recap!$A:$DK,110,FALSE)),"",VLOOKUP($A34,Recap!$A:$DK,110,FALSE)) ->  | N34: =IF(ISNA(VLOOKUP($A34,Recap!$A:$DK,111,FALSE)),"",VLOOKUP($A34,Recap!$A:$DK,111,FALSE)) ->  | O34: =IF(ISNA(VLOOKUP($A34,Recap!$A:$DK,112,FALSE)),"",VLOOKUP($A34,Recap!$A:$DK,112,FALSE)) ->  | P34: =IF(ISNA(VLOOKUP($A34,Recap!$A:$DK,113,FALSE)),"",VLOOKUP($A34,Recap!$A:$DK,113,FALSE)) ->  | Q34: =IF(ISNA(VLOOKUP($A34,Recap!$A:$DK,114,FALSE)),"",VLOOKUP($A34,Recap!$A:$DK,114,FALSE)) ->  | R34: =IF(ISNA(VLOOKUP($A34,Recap!$A:$DK,113,FALSE)),"",VLOOKUP($A34,Recap!$A:$DK,113,FALSE)) -> 
F35: =IF(ISNA(VLOOKUP($A34,Recap!$A:$DK,68,FALSE)),"",VLOOKUP($A34,Recap!$A:$DK,68,FALSE)) ->  | G35: =IF(ISNA(VLOOKUP($A34,Recap!$A:$DK,69,FALSE)),"",VLOOKUP($A34,Recap!$A:$DK,69,FALSE)) ->  | H35: =IF(ISNA(VLOOKUP($A34,Recap!$A:$DK,70,FALSE)),"",VLOOKUP($A34,Recap!$A:$DK,70,FALSE)) ->  | I35: =IF(ISNA(VLOOKUP($A34,Recap!$A:$DK,71,FALSE)),"",VLOOKUP($A34,Recap!$A:$DK,71,FALSE)) ->  | J35: =IF(ISNA(VLOOKUP($A34,Recap!$A:$DK,72,FALSE)),"",VLOOKUP($A34,Recap!$A:$DK,72,FALSE)) ->  | K35: =IF(ISNA(VLOOKUP($A34,Recap!$A:$DK,73,FALSE)),"",VLOOKUP($A34,Recap!$A:$DK,73,FALSE)) ->  | L35: =IF(ISNA(VLOOKUP($A34,Recap!$A:$DK,74,FALSE)),"",VLOOKUP($A34,Recap!$A:$DK,74,FALSE)) ->  | M35: =IF(ISNA(VLOOKUP($A34,Recap!$A:$DK,75,FALSE)),"",VLOOKUP($A34,Recap!$A:$DK,75,FALSE)) ->  | N35: =IF(ISNA(VLOOKUP($A34,Recap!$A:$DK,76,FALSE)),"",VLOOKUP($A34,Recap!$A:$DK,76,FALSE)) ->  | O35: =IF(ISNA(VLOOKUP($A34,Recap!$A:$DK,77,FALSE)),"",VLOOKUP($A34,Recap!$A:$DK,77,FALSE)) ->  | P35: =IF(ISNA(VLOOKUP($A34,Recap!$A:$DK,78,FALSE)),"",VLOOKUP($A34,Recap!$A:$DK,78,FALSE)) ->  | Q35: =IF(ISNA(VLOOKUP($A34,Recap!$A:$DK,79,FALSE)),"",VLOOKUP($A34,Recap!$A:$DK,79,FALSE)) ->  | R35: =IF(ISNA(VLOOKUP($A34,Recap!$A:$DK,80,FALSE)),"",VLOOKUP($A34,Recap!$A:$DK,80,FALSE)) -> 
E36: =IF(ISNA(VLOOKUP(A36,Recap!A:BK,54,FALSE)),"",VLOOKUP(A36,Recap!A:BK,54,FALSE)) ->  | F36: =IF(ISNA(VLOOKUP($A36,Recap!$A:$DK,103,FALSE)),"",VLOOKUP($A36,Recap!$A:$DK,103,FALSE)) ->  | G36: =IF(ISNA(VLOOKUP($A36,Recap!$A:$DK,104,FALSE)),"",VLOOKUP($A36,Recap!$A:$DK,104,FALSE)) ->  | H36: =IF(ISNA(VLOOKUP($A36,Recap!$A:$DK,105,FALSE)),"",VLOOKUP($A36,Recap!$A:$DK,105,FALSE)) ->  | I36: =IF(ISNA(VLOOKUP($A36,Recap!$A:$DK,106,FALSE)),"",VLOOKUP($A36,Recap!$A:$DK,106,FALSE)) ->  | J36: =IF(ISNA(VLOOKUP($A36,Recap!$A:$DK,107,FALSE)),"",VLOOKUP($A36,Recap!$A:$DK,107,FALSE)) ->  | K36: =IF(ISNA(VLOOKUP($A36,Recap!$A:$DK,108,FALSE)),"",VLOOKUP($A36,Recap!$A:$DK,108,FALSE)) ->  | L36: =IF(ISNA(VLOOKUP($A36,Recap!$A:$DK,109,FALSE)),"",VLOOKUP($A36,Recap!$A:$DK,109,FALSE)) ->  | M36: =IF(ISNA(VLOOKUP($A36,Recap!$A:$DK,110,FALSE)),"",VLOOKUP($A36,Recap!$A:$DK,110,FALSE)) ->  | N36: =IF(ISNA(VLOOKUP($A36,Recap!$A:$DK,111,FALSE)),"",VLOOKUP($A36,Recap!$A:$DK,111,FALSE)) ->  | O36: =IF(ISNA(VLOOKUP($A36,Recap!$A:$DK,112,FALSE)),"",VLOOKUP($A36,Recap!$A:$DK,112,FALSE)) ->  | P36: =IF(ISNA(VLOOKUP($A36,Recap!$A:$DK,113,FALSE)),"",VLOOKUP($A36,Recap!$A:$DK,113,FALSE)) ->  | Q36: =IF(ISNA(VLOOKUP($A36,Recap!$A:$DK,114,FALSE)),"",VLOOKUP($A36,Recap!$A:$DK,114,FALSE)) ->  | R36: =IF(ISNA(VLOOKUP($A36,Recap!$A:$DK,113,FALSE)),"",VLOOKUP($A36,Recap!$A:$DK,113,FALSE)) -> 
F37: =IF(ISNA(VLOOKUP($A36,Recap!$A:$DK,68,FALSE)),"",VLOOKUP($A36,Recap!$A:$DK,68,FALSE)) ->  | G37: =IF(ISNA(VLOOKUP($A36,Recap!$A:$DK,69,FALSE)),"",VLOOKUP($A36,Recap!$A:$DK,69,FALSE)) ->  | H37: =IF(ISNA(VLOOKUP($A36,Recap!$A:$DK,70,FALSE)),"",VLOOKUP($A36,Recap!$A:$DK,70,FALSE)) ->  | I37: =IF(ISNA(VLOOKUP($A36,Recap!$A:$DK,71,FALSE)),"",VLOOKUP($A36,Recap!$A:$DK,71,FALSE)) ->  | J37: =IF(ISNA(VLOOKUP($A36,Recap!$A:$DK,72,FALSE)),"",VLOOKUP($A36,Recap!$A:$DK,72,FALSE)) ->  | K37: =IF(ISNA(VLOOKUP($A36,Recap!$A:$DK,73,FALSE)),"",VLOOKUP($A36,Recap!$A:$DK,73,FALSE)) ->  | L37: =IF(ISNA(VLOOKUP($A36,Recap!$A:$DK,74,FALSE)),"",VLOOKUP($A36,Recap!$A:$DK,74,FALSE)) ->  | M37: =IF(ISNA(VLOOKUP($A36,Recap!$A:$DK,75,FALSE)),"",VLOOKUP($A36,Recap!$A:$DK,75,FALSE)) ->  | N37: =IF(ISNA(VLOOKUP($A36,Recap!$A:$DK,76,FALSE)),"",VLOOKUP($A36,Recap!$A:$DK,76,FALSE)) ->  | O37: =IF(ISNA(VLOOKUP($A36,Recap!$A:$DK,77,FALSE)),"",VLOOKUP($A36,Recap!$A:$DK,77,FALSE)) ->  | P37: =IF(ISNA(VLOOKUP($A36,Recap!$A:$DK,78,FALSE)),"",VLOOKUP($A36,Recap!$A:$DK,78,FALSE)) ->  | Q37: =IF(ISNA(VLOOKUP($A36,Recap!$A:$DK,79,FALSE)),"",VLOOKUP($A36,Recap!$A:$DK,79,FALSE)) ->  | R37: =IF(ISNA(VLOOKUP($A36,Recap!$A:$DK,80,FALSE)),"",VLOOKUP($A36,Recap!$A:$DK,80,FALSE)) -> 
U40: Analyse préalable
U41: Phase terrain
U42: Validation Interne
U43: Contradictoire
U44: Rapport définitif
U45: Diffusion
U46: Seminaire de restitution
U47: Projet du plan d'action
U48: Validation du plan d'action

Sheet Planning auditeurs
B1: Alain SPAENLE | D1: Alexandre LE CORRE | F1: Arnaud MUDRY | H1: Christine PREVOT | J1: Corinne GALODE | L1: Joel MOSSARD | N1: Loic LE DEUNFF | P1: Mathias DIEZ | R1: Oliviana PIAZZA | T1: Patricia DAVANNE | V1: Said BOUNOUA | X1: Teddy FEUILLASTRE | Z1: - | AB1: -
B2: Début | C2: Fin | D2: Début | E2: Fin | F2: Début | G2: Fin | H2: Début | I2: Fin | J2: Début | K2: Fin | L2: Début | M2: Fin | N2: Début | O2: Fin | P2: Début | Q2: Fin | R2: Début | S2: Fin | T2: Début | U2: Fin | V2: Début | W2: Fin | X2: Début | Y2: Fin | Z2: Début | AA2: Fin | AB2: Début | AC2: Fin
A3: Colonne1 | B3: Colonne2 | C3: Colonne3 | D3: Colonne4 | E3: Colonne5 | F3: Colonne6 | G3: Colonne7 | H3: Colonne8 | I3: Colonne9 | J3: Colonne10 | K3: Colonne11 | L3: Colonne12 | M3: Colonne13 | N3: Colonne14 | O3: Colonne15 | P3: Colonne16 | Q3: Colonne17 | R3: Colonne18 | S3: Colonne19 | T3: Colonne20 | U3: Colonne21 | V3: Colonne22 | W3: Colonne23 | X3: Colonne24 | Y3: Colonne25 | Z3: Colonne26 | AA3: Colonne27 | AB3: Colonne28 | AC3: Colonne29
A4: =IF(A48="","",A48) -> a - a - a | B4: =IF(B48="","",WEEKNUM(B48)) -> 
A5: =IF(A49="","",A49) -> Thématique - Audit CMU-C - 2016 | B5: =IF(B49="","",WEEKNUM(B49)) -> 
B6: =IF(B50="","",WEEKNUM(B50)) -> 
B7: =IF(B51="","",WEEKNUM(B51)) -> 
B8: =IF(B52="","",WEEKNUM(B52)) -> 
B9: =IF(B53="","",WEEKNUM(B53)) -> 
B10: =IF(B54="","",WEEKNUM(B54)) -> 
B11: =IF(B55="","",WEEKNUM(B55)) -> 
B12: =IF(B56="","",WEEKNUM(B56)) -> 
B13: =IF(B57="","",WEEKNUM(B57)) -> 
B14: =IF(B58="","",WEEKNUM(B58)) -> 
B15: =IF(B59="","",WEEKNUM(B59)) -> 
A16: =IF(A60="","",A60) ->  | B16: =IF(B60="","",WEEKNUM(B60)) -> 
B17: =IF(B61="","",WEEKNUM(B61)) -> 
B18: =IF(B62="","",WEEKNUM(B62)) -> 
B19: =IF(B63="","",WEEKNUM(B63)) -> 
B20: =IF(B64="","",WEEKNUM(B64)) -> 
B21: =IF(B65="","",WEEKNUM(B65)) -> 
B22: =IF(B66="","",WEEKNUM(B66)) -> 
B23: =IF(B67="","",WEEKNUM(B67)) -> 
B24: =IF(B68="","",WEEKNUM(B68)) -> 
B25: =IF(B69="","",WEEKNUM(B69)) -> 
B26: =IF(B70="","",WEEKNUM(B70)) -> 
B27: =IF(B71="","",WEEKNUM(B71)) -> 
B28: =IF(B72="","",WEEKNUM(B72)) -> 
B29: =IF(B73="","",WEEKNUM(B73)) -> 
B30: =IF(B74="","",WEEKNUM(B74)) -> 
B31: =IF(B75="","",WEEKNUM(B75)) -> 
B32: =IF(B76="","",WEEKNUM(B76)) -> 
B33: =IF(B77="","",WEEKNUM(B77)) -> 
B34: =IF(B78="","",WEEKNUM(B78)) -> 
B35: =IF(B79="","",WEEKNUM(B79)) -> 
B36: =IF(B80="","",WEEKNUM(B80)) -> 
B37: =IF(B81="","",WEEKNUM(B81)) -> 
B38: =IF(B82="","",WEEKNUM(B82)) -> 
B39: =IF(B83="","",WEEKNUM(B83)) -> 
B40: =IF(B84="","",WEEKNUM(B84)) -> 
B41: =IF(B85="","",WEEKNUM(B85)) -> 
B42: =IF(B86="","",WEEKNUM(B86)) -> 
B43: =IF(B87="","",WEEKNUM(B87)) -> 
B44: =IF(B88="","",WEEKNUM(B88)) -> 
B45: Alain SPAENLE | D45: Alexandre LE CORRE | F45: Arnaud MUDRY | H45: Christine PREVOT | J45: Corinne GALODE | L45: Joel MOSSARD | N45: Loic LE DEUNFF | P45: Mathias DIEZ | R45: Oliviana PIAZZA | T45: Patricia DAVANNE | V45: Said BOUNOUA | X45: Teddy FEUILLASTRE | Z45: - | AB45: -
B46: Début | C46: Fin | D46: Début | E46: Fin | F46: Début | G46: Fin | H46: Début | I46: Fin | J46: Début | K46: Fin | L46: Début | M46: Fin | N46: Début | O46: Fin | P46: Début | Q46: Fin | R46: Début | S46: Fin | T46: Début | U46: Fin | V46: Début | W46: Fin | X46: Début | Y46: Fin | Z46: Début | AA46: Fin | AB46: Début | AC46: Fin
A47: Colonne29 | B47: Colonne1 | C47: Colonne2 | D47: Colonne3 | E47: Colonne4 | F47: Colonne5 | G47: Colonne6 | H47: Colonne7 | I47: Colonne8 | J47: Colonne9 | K47: Colonne10 | L47: Colonne11 | M47: Colonne12 | N47: Colonne13 | O47: Colonne14 | P47: Colonne15 | Q47: Colonne16 | R47: Colonne17 | S47: Colonne18 | T47: Colonne19 | U47: Colonne20 | V47: Colonne21 | W47: Colonne22 | X47: Colonne23 | Y47: Colonne24 | Z47: Colonne25 | AA47: Colonne26 | AB47: Colonne27 | AC47: Colonne28
A48: a - a - a | B48: =IF(ISNA(IF(VLOOKUP(Tableau4[[#This Row],[Colonne29]],table,36,FALSE)=B$45,VLOOKUP(Tableau4[[#This Row],[Colonne29]],table,20),IF(VLOOKUP(Tableau4[[#This Row],[Colonne29]],table,37,FALSE)=B$45,VLOOKUP(Tableau4[[#This Row],[Colonne29]],table,20),IF(VLOOKUP(Tableau4[[#This Row],[Colonne29]],table,38,FALSE)=B$45,VLOOKUP(Tableau4[[#This Row],[Colonne29]],table,20),IF(VLOOKUP(Tableau4[[#This Row],[Colonne29]],table,39,FALSE)=B$45,VLOOKUP(Tableau4[[#This Row],[Colonne29]],table,20),""))))),"",IF(VLOOKUP(Tableau4[[#This Row],[Colonne29]],table,36,FALSE)=B$45,VLOOKUP(Tableau4[[#This Row],[Colonne29]],table,20),IF(VLOOKUP(Tableau4[[#This Row],[Colonne29]],table,37,FALSE)=B$45,VLOOKUP(Tableau4[[#This Row],[Colonne29]],table,20),IF(VLOOKUP(Tableau4[[#This Row],[Colonne29]],table,38,FALSE)=B$45,VLOOKUP(Tableau4[[#This Row],[Colonne29]],table,20),IF(VLOOKUP(Tableau4[[#This Row],[Colonne29]],table,39,FALSE)=B$45,VLOOKUP(Tableau4[[#This Row],[Colonne29]],table,20),""))))) ->  | C48: =IF(ISNA(IF(VLOOKUP(Tableau4[[#This Row],[Colonne29]],table,36,FALSE)=B$45,VLOOKUP(Tableau4[[#This Row],[Colonne29]],table,20),IF(VLOOKUP(Tableau4[[#This Row],[Colonne29]],table,37,FALSE)=B$45,VLOOKUP(Tableau4[[#This Row],[Colonne29]],table,20),IF(VLOOKUP(Tableau4[[#This Row],[Colonne29]],table,38,FALSE)=B$45,VLOOKUP(Tableau4[[#This Row],[Colonne29]],table,20),IF(VLOOKUP(Tableau4[[#This Row],[Colonne29]],table,39,FALSE)=B$45,VLOOKUP(Tableau4[[#This Row],[Colonne29]],table,20),""))))),"",IF(VLOOKUP(Tableau4[[#This Row],[Colonne29]],table,36,FALSE)=B$45,VLOOKUP(Tableau4[[#This Row],[Colonne29]],table,21),IF(VLOOKUP(Tableau4[[#This Row],[Colonne29]],table,37,FALSE)=B$45,VLOOKUP(Tableau4[[#This Row],[Colonne29]],table,21),IF(VLOOKUP(Tableau4[[#This Row],[Colonne29]],table,38,FALSE)=B$45,VLOOKUP(Tableau4[[#This Row],[Colonne29]],table,21),IF(VLOOKUP(Tableau4[[#This Row],[Colonne29]],table,39,FALSE)=B$45,VLOOKUP(Tableau4[[#This Row],[Colonne29]],table,21),""))))) ->  | D48: =IF(ISNA(IF(VLOOKUP(Tableau4[[#This Row],[Colonne29]],table,36,FALSE)=D$45,VLOOKUP(Tableau4[[#This Row],[Colonne29]],table,20),IF(VLOOKUP(Tableau4[[#This Row],[Colonne29]],table,37,FALSE)=D$45,VLOOKUP(Tableau4[[#This Row],[Colonne29]],table,20),IF(VLOOKUP(Tableau4[[#This Row],[Colonne29]],table,38,FALSE)=D$45,VLOOKUP(Tableau4[[#This Row],[Colonne29]],table,20),IF(VLOOKUP(Tableau4[[#This Row],[Colonne29]],table,39,FALSE)=D$45,VLOOKUP(Tableau4[[#This Row],[Colonne29]],table,20),""))))),"",IF(VLOOKUP(Tableau4[[#This Row],[Colonne29]],table,36,FALSE)=D$45,VLOOKUP(Tableau4[[#This Row],[Colonne29]],table,20),IF(VLOOKUP(Tableau4[[#This Row],[Colonne29]],table,37,FALSE)=D$45,VLOOKUP(Tableau4[[#This Row],[Colonne29]],table,20),IF(VLOOKUP(Tableau4[[#This Row],[Colonne29]],table,38,FALSE)=D$45,VLOOKUP(Tableau4[[#This Row],[Colonne29]],table,20),IF(VLOOKUP(Tableau4[[#This Row],[Colonne29]],table,39,FALSE)=D$45,VLOOKUP(Tableau4[[#This Row],[Colonne29]],table,20),""))))) ->  | E48: =IF(ISNA(IF(VLOOKUP(Tableau4[[#This Row],[Colonne29]],table,36,FALSE)=D$45,VLOOKUP(Tableau4[[#This Row],[Colonne29]],table,20),IF(VLOOKUP(Tableau4[[#This Row],[Colonne29]],table,37,FALSE)=D$45,VLOOKUP(Tableau4[[#This Row],[Colonne29]],table,20),IF(VLOOKUP(Tableau4[[#This Row],[Colonne29]],table,38,FALSE)=D$45,VLOOKUP(Tableau4[[#This Row],[Colonne29]],table,20),IF(VLOOKUP(Tableau4[[#This Row],[Colonne29]],table,39,FALSE)=D$45,VLOOKUP(Tableau4[[#This Row],[Colonne29]],table,20),""))))),"",IF(VLOOKUP(Tableau4[[#This Row],[Colonne29]],table,36,FALSE)=D$45,VLOOKUP(Tableau4[[#This Row],[Colonne29]],table,21),IF(VLOOKUP(Tableau4[[#This Row],[Colonne29]],table,37,FALSE)=D$45,VLOOKUP(Tableau4[[#This Row],[Colonne29]],table,21),IF(VLOOKUP(Tableau4[[#This Row],[Colonne29]],table,38,FALSE)=D$45,VLOOKUP(Tableau4[[#This Row],[Colonne29]],table,21),IF(VLOOKUP(Tableau4[[#This Row],[Colonne29]],table,39,FALSE)=D$45,VLOOKUP(Tableau4[[#This Row],[Colonne29]],table,21),""))))) ->  | F48: =IF(ISNA(IF(VLOOKUP(Tableau4[[#This Row],[Colonne29]],table,36,FALSE)=F$45,VLOOKUP(Tableau4[[#This Row],[Colonne29]],table,20),IF(VLOOKUP(Tableau4[[#This Row],[Colonne29]],table,37,FALSE)=F$45,VLOOKUP(Tableau4[[#This Row],[Colonne29]],table,20),IF(VLOOKUP(Tableau4[[#This Row],[Colonne29]],table,38,FALSE)=F$45,VLOOKUP(Tableau4[[#This Row],[Colonne29]],table,20),IF(VLOOKUP(Tableau4[[#This Row],[Colonne29]],table,39,FALSE)=F$45,VLOOKUP(Tableau4[[#This Row],[Colonne29]],table,20),""))))),"",IF(VLOOKUP(Tableau4[[#This Row],[Colonne29]],table,36,FALSE)=F$45,VLOOKUP(Tableau4[[#This Row],[Colonne29]],table,20),IF(VLOOKUP(Tableau4[[#This Row],[Colonne29]],table,37,FALSE)=F$45,VLOOKUP(Tableau4[[#This Row],[Colonne29]],table,20),IF(VLOOKUP(Tableau4[[#This Row],[Colonne29]],table,38,FALSE)=F$45,VLOOKUP(Tableau4[[#This Row],[Colonne29]],table,20),IF(VLOOKUP(Tableau4[[#This Row],[Colonne29]],table,39,FALSE)=F$45,VLOOKUP(Tableau4[[#This Row],[Colonne29]],table,20),""))))) ->  | G48: =IF(ISNA(IF(VLOOKUP(Tableau4[[#This Row],[Colonne29]],table,36,FALSE)=F$45,VLOOKUP(Tableau4[[#This Row],[Colonne29]],table,20),IF(VLOOKUP(Tableau4[[#This Row],[Colonne29]],table,37,FALSE)=F$45,VLOOKUP(Tableau4[[#This Row],[Colonne29]],table,20),IF(VLOOKUP(Tableau4[[#This Row],[Colonne29]],table,38,FALSE)=F$45,VLOOKUP(Tableau4[[#This Row],[Colonne29]],table,20),IF(VLOOKUP(Tableau4[[#This Row],[Colonne29]],table,39,FALSE)=F$45,VLOOKUP(Tableau4[[#This Row],[Colonne29]],table,20),""))))),"",IF(VLOOKUP(Tableau4[[#This Row],[Colonne29]],table,36,FALSE)=F$45,VLOOKUP(Tableau4[[#This Row],[Colonne29]],table,21),IF(VLOOKUP(Tableau4[[#This Row],[Colonne29]],table,37,FALSE)=F$45,VLOOKUP(Tableau4[[#This Row],[Colonne29]],table,21),IF(VLOOKUP(Tableau4[[#This Row],[Colonne29]],table,38,FALSE)=F$45,VLOOKUP(Tableau4[[#This Row],[Colonne29]],table,21),IF(VLOOKUP(Tableau4[[#This Row],[Colonne29]],table,39,FALSE)=F$45,VLOOKUP(Tableau4[[#This Row],[Colonne29]],table,21),""))))) ->  | H48: =IF(ISNA(IF(VLOOKUP(Tableau4[[#This Row],[Colonne29]],table,36,FALSE)=H$45,VLOOKUP(Tableau4[[#This Row],[Colonne29]],table,20),IF(VLOOKUP(Tableau4[[#This Row],[Colonne29]],table,37,FALSE)=H$45,VLOOKUP(Tableau4[[#This Row],[Colonne29]],table,20),IF(VLOOKUP(Tableau4[[#This Row],[Colonne29]],table,38,FALSE)=H$45,VLOOKUP(Tableau4[[#This Row],[Colonne29]],table,20),IF(VLOOKUP(Tableau4[[#This Row],[Colonne29]],table,39,FALSE)=H$45,VLOOKUP(Tableau4[[#This Row],[Colonne29]],table,20),""))))),"",IF(VLOOKUP(Tableau4[[#This Row],[Colonne29]],table,36,FALSE)=H$45,VLOOKUP(Tableau4[[#This Row],[Colonne29]],table,20),IF(VLOOKUP(Tableau4[[#This Row],[Colonne29]],table,37,FALSE)=H$45,VLOOKUP(Tableau4[[#This Row],[Colonne29]],table,20),IF(VLOOKUP(Tableau4[[#This Row],[Colonne29]],table,38,FALSE)=H$45,VLOOKUP(Tableau4[[#This Row],[Colonne29]],table,20),IF(VLOOKUP(Tableau4[[#This Row],[Colonne29]],table,39,FALSE)=H$45,VLOOKUP(Tableau4[[#This Row],[Colonne29]],table,20),""))))) ->  | I48: =IF(ISNA(IF(VLOOKUP(Tableau4[[#This Row],[Colonne29]],table,36,FALSE)=H$45,VLOOKUP(Tableau4[[#This Row],[Colonne29]],table,20),IF(VLOOKUP(Tableau4[[#This Row],[Colonne29]],table,37,FALSE)=H$45,VLOOKUP(Tableau4[[#This Row],[Colonne29]],table,20),IF(VLOOKUP(Tableau4[[#This Row],[Colonne29]],table,38,FALSE)=H$45,VLOOKUP(Tableau4[[#This Row],[Colonne29]],table,20),IF(VLOOKUP(Tableau4[[#This Row],[Colonne29]],table,39,FALSE)=H$45,VLOOKUP(Tableau4[[#This Row],[Colonne29]],table,20),""))))),"",IF(VLOOKUP(Tableau4[[#This Row],[Colonne29]],table,36,FALSE)=H$45,VLOOKUP(Tableau4[[#This Row],[Colonne29]],table,21),IF(VLOOKUP(Tableau4[[#This Row],[Colonne29]],table,37,FALSE)=H$45,VLOOKUP(Tableau4[[#This Row],[Colonne29]],table,21),IF(VLOOKUP(Tableau4[[#This Row],[Colonne29]],table,38,FALSE)=H$45,VLOOKUP(Tableau4[[#This Row],[Colonne29]],table,21),IF(VLOOKUP(Tableau4[[#This Row],[Colonne29]],table,39,FALSE)=H$45,VLOOKUP(Tableau4[[#This Row],[Colonne29]],table,21),""))))) ->  | J48: =IF(ISNA(IF(VLOOKUP(Tableau4[[#This Row],[Colonne29]],table,36,FALSE)=J$45,VLOOKUP(Tableau4[[#This Row],[Colonne29]],table,20),IF(VLOOKUP(Tableau4[[#This Row],[Colonne29]],table,37,FALSE)=J$45,VLOOKUP(Tableau4[[#This Row],[Colonne29]],table,20),IF(VLOOKUP(Tableau4[[#This Row],[Colonne29]],table,38,FALSE)=J$45,VLOOKUP(Tableau4[[#This Row],[Colonne29]],table,20),IF(VLOOKUP(Tableau4[[#This Row],[Colonne29]],table,39,FALSE)=J$45,VLOOKUP(Tableau4[[#This Row],[Colonne29]],table,20),""))))),"",IF(VLOOKUP(Tableau4[[#This Row],[Colonne29]],table,36,FALSE)=J$45,VLOOKUP(Tableau4[[#This Row],[Colonne29]],table,20),IF(VLOOKUP(Tableau4[[#This Row],[Colonne29]],table,37,FALSE)=J$45,VLOOKUP(Tableau4[[#This Row],[Colonne29]],table,20),IF(VLOOKUP(Tableau4[[#This Row],[Colonne29]],table,38,FALSE)=J$45,VLOOKUP(Tableau4[[#This Row],[Colonne29]],table,20),IF(VLOOKUP(Tableau4[[#This Row],[Colonne29]],table,39,FALSE)=J$45,VLOOKUP(Tableau4[[#This Row],[Colonne29]],table,20),""))))) ->  | K48: =IF(ISNA(IF(VLOOKUP(Tableau4[[#This Row],[Colonne29]],table,36,FALSE)=J$45,VLOOKUP(Tableau4[[#This Row],[Colonne29]],table,20),IF(VLOOKUP(Tableau4[[#This Row],[Colonne29]],table,37,FALSE)=J$45,VLOOKUP(Tableau4[[#This Row],[Colonne29]],table,20),IF(VLOOKUP(Tableau4[[#This Row],[Colonne29]],table,38,FALSE)=J$45,VLOOKUP(Tableau4[[#This Row],[Colonne29]],table,20),IF(VLOOKUP(Tableau4[[#This Row],[Colonne29]],table,39,FALSE)=J$45,VLOOKUP(Tableau4[[#This Row],[Colonne29]],table,20),""))))),"",IF(VLOOKUP(Tableau4[[#This Row],[Colonne29]],table,36,FALSE)=J$45,VLOOKUP(Tableau4[[#This Row],[Colonne29]],table,21),IF(VLOOKUP(Tableau4[[#This Row],[Colonne29]],table,37,FALSE)=J$45,VLOOKUP(Tableau4[[#This Row],[Colonne29]],table,21),IF(VLOOKUP(Tableau4[[#This Row],[Colonne29]],table,38,FALSE)=J$45,VLOOKUP(Tableau4[[#This Row],[Colonne29]],table,21),IF(VLOOKUP(Tableau4[[#This Row],[Colonne29]],table,39,FALSE)=J$45,VLOOKUP(Tableau4[[#This Row],[Colonne29]],table,21),""))))) ->  | L48: =IF(ISNA(IF(VLOOKUP(Tableau4[[#This Row],[Colonne29]],table,36,FALSE)=L$45,VLOOKUP(Tableau4[[#This Row],[Colonne29]],table,20),IF(VLOOKUP(Tableau4[[#This Row],[Colonne29]],table,37,FALSE)=L$45,VLOOKUP(Tableau4[[#This Row],[Colonne29]],table,20),IF(VLOOKUP(Tableau4[[#This Row],[Colonne29]],table,38,FALSE)=L$45,VLOOKUP(Tableau4[[#This Row],[Colonne29]],table,20),IF(VLOOKUP(Tableau4[[#This Row],[Colonne29]],table,39,FALSE)=L$45,VLOOKUP(Tableau4[[#This Row],[Colonne29]],table,20),""))))),"",IF(VLOOKUP(Tableau4[[#This Row],[Colonne29]],table,36,FALSE)=L$45,VLOOKUP(Tableau4[[#This Row],[Colonne29]],table,20),IF(VLOOKUP(Tableau4[[#This Row],[Colonne29]],table,37,FALSE)=L$45,VLOOKUP(Tableau4[[#This Row],[Colonne29]],table,20),IF(VLOOKUP(Tableau4[[#This Row],[Colonne29]],table,38,FALSE)=L$45,VLOOKUP(Tableau4[[#This Row],[Colonne29]],table,20),IF(VLOOKUP(Tableau4[[#This Row],[Colonne29]],table,39,FALSE)=L$45,VLOOKUP(Tableau4[[#This Row],[Colonne29]],table,20),""))))) ->  | M48: =IF(ISNA(IF(VLOOKUP(Tableau4[[#This Row],[Colonne29]],table,36,FALSE)=L$45,VLOOKUP(Tableau4[[#This Row],[Colonne29]],table,20),IF(VLOOKUP(Tableau4[[#This Row],[Colonne29]],table,37,FALSE)=L$45,VLOOKUP(Tableau4[[#This Row],[Colonne29]],table,20),IF(VLOOKUP(Tableau4[[#This Row],[Colonne29]],table,38,FALSE)=L$45,VLOOKUP(Tableau4[[#This Row],[Colonne29]],table,20),IF(VLOOKUP(Tableau4[[#This Row],[Colonne29]],table,39,FALSE)=L$45,VLOOKUP(Tableau4[[#This Row],[Colonne29]],table,20),""))))),"",IF(VLOOKUP(Tableau4[[#This Row],[Colonne29]],table,36,FALSE)=L$45,VLOOKUP(Tableau4[[#This Row],[Colonne29]],table,21),IF(VLOOKUP(Tableau4[[#This Row],[Colonne29]],table,37,FALSE)=L$45,VLOOKUP(Tableau4[[#This Row],[Colonne29]],table,21),IF(VLOOKUP(Tableau4[[#This Row],[Colonne29]],table,38,FALSE)=L$45,VLOOKUP(Tableau4[[#This Row],[Colonne29]],table,21),IF(VLOOKUP(Tableau4[[#This Row],[Colonne29]],table,39,FALSE)=L$45,VLOOKUP(Tableau4[[#This Row],[Colonne29]],table,21),""))))) ->  | N48: =IF(ISNA(IF(VLOOKUP(Tableau4[[#This Row],[Colonne29]],table,36,FALSE)=N$45,VLOOKUP(Tableau4[[#This Row],[Colonne29]],table,20),IF(VLOOKUP(Tableau4[[#This Row],[Colonne29]],table,37,FALSE)=N$45,VLOOKUP(Tableau4[[#This Row],[Colonne29]],table,20),IF(VLOOKUP(Tableau4[[#This Row],[Colonne29]],table,38,FALSE)=N$45,VLOOKUP(Tableau4[[#This Row],[Colonne29]],table,20),IF(VLOOKUP(Tableau4[[#This Row],[Colonne29]],table,39,FALSE)=N$45,VLOOKUP(Tableau4[[#This Row],[Colonne29]],table,20),""))))),"",IF(VLOOKUP(Tableau4[[#This Row],[Colonne29]],table,36,FALSE)=N$45,VLOOKUP(Tableau4[[#This Row],[Colonne29]],table,20),IF(VLOOKUP(Tableau4[[#This Row],[Colonne29]],table,37,FALSE)=N$45,VLOOKUP(Tableau4[[#This Row],[Colonne29]],table,20),IF(VLOOKUP(Tableau4[[#This Row],[Colonne29]],table,38,FALSE)=N$45,VLOOKUP(Tableau4[[#This Row],[Colonne29]],table,20),IF(VLOOKUP(Tableau4[[#This Row],[Colonne29]],table,39,FALSE)=N$45,VLOOKUP(Tableau4[[#This Row],[Colonne29]],table,20),""))))) ->  | O48: =IF(ISNA(IF(VLOOKUP(Tableau4[[#This Row],[Colonne29]],table,36,FALSE)=N$45,VLOOKUP(Tableau4[[#This Row],[Colonne29]],table,20),IF(VLOOKUP(Tableau4[[#This Row],[Colonne29]],table,37,FALSE)=N$45,VLOOKUP(Tableau4[[#This Row],[Colonne29]],table,20),IF(VLOOKUP(Tableau4[[#This Row],[Colonne29]],table,38,FALSE)=N$45,VLOOKUP(Tableau4[[#This Row],[Colonne29]],table,20),IF(VLOOKUP(Tableau4[[#This Row],[Colonne29]],table,39,FALSE)=N$45,VLOOKUP(Tableau4[[#This Row],[Colonne29]],table,20),""))))),"",IF(VLOOKUP(Tableau4[[#This Row],[Colonne29]],table,36,FALSE)=N$45,VLOOKUP(Tableau4[[#This Row],[Colonne29]],table,21),IF(VLOOKUP(Tableau4[[#This Row],[Colonne29]],table,37,FALSE)=N$45,VLOOKUP(Tableau4[[#This Row],[Colonne29]],table,21),IF(VLOOKUP(Tableau4[[#This Row],[Colonne29]],table,38,FALSE)=N$45,VLOOKUP(Tableau4[[#This Row],[Colonne29]],table,21),IF(VLOOKUP(Tableau4[[#This Row],[Colonne29]],table,39,FALSE)=N$45,VLOOKUP(Tableau4[[#This Row],[Colonne29]],table,21),""))))) ->  | P48: =IF(ISNA(IF(VLOOKUP(Tableau4[[#This Row],[Colonne29]],table,36,FALSE)=P$45,VLOOKUP(Tableau4[[#This Row],[Colonne29]],table,20),IF(VLOOKUP(Tableau4[[#This Row],[Colonne29]],table,37,FALSE)=P$45,VLOOKUP(Tableau4[[#This Row],[Colonne29]],table,20),IF(VLOOKUP(Tableau4[[#This Row],[Colonne29]],table,38,FALSE)=P$45,VLOOKUP(Tableau4[[#This Row],[Colonne29]],table,20),IF(VLOOKUP(Tableau4[[#This Row],[Colonne29]],table,39,FALSE)=P$45,VLOOKUP(Tableau4[[#This Row],[Colonne29]],table,20),""))))),"",IF(VLOOKUP(Tableau4[[#This Row],[Colonne29]],table,36,FALSE)=P$45,VLOOKUP(Tableau4[[#This Row],[Colonne29]],table,20),IF(VLOOKUP(Tableau4[[#This Row],[Colonne29]],table,37,FALSE)=P$45,VLOOKUP(Tableau4[[#This Row],[Colonne29]],table,20),IF(VLOOKUP(Tableau4[[#This Row],[Colonne29]],table,38,FALSE)=P$45,VLOOKUP(Tableau4[[#This Row],[Colonne29]],table,20),IF(VLOOKUP(Tableau4[[#This Row],[Colonne29]],table,39,FALSE)=P$45,VLOOKUP(Tableau4[[#This Row],[Colonne29]],table,20),""))))) ->  | Q48: =IF(ISNA(IF(VLOOKUP(Tableau4[[#This Row],[Colonne29]],table,36,FALSE)=P$45,VLOOKUP(Tableau4[[#This Row],[Colonne29]],table,20),IF(VLOOKUP(Tableau4[[#This Row],[Colonne29]],table,37,FALSE)=P$45,VLOOKUP(Tableau4[[#This Row],[Colonne29]],table,20),IF(VLOOKUP(Tableau4[[#This Row],[Colonne29]],table,38,FALSE)=P$45,VLOOKUP(Tableau4[[#This Row],[Colonne29]],table,20),IF(VLOOKUP(Tableau4[[#This Row],[Colonne29]],table,39,FALSE)=P$45,VLOOKUP(Tableau4[[#This Row],[Colonne29]],table,20),""))))),"",IF(VLOOKUP(Tableau4[[#This Row],[Colonne29]],table,36,FALSE)=P$45,VLOOKUP(Tableau4[[#This Row],[Colonne29]],table,21),IF(VLOOKUP(Tableau4[[#This Row],[Colonne29]],table,37,FALSE)=P$45,VLOOKUP(Tableau4[[#This Row],[Colonne29]],table,21),IF(VLOOKUP(Tableau4[[#This Row],[Colonne29]],table,38,FALSE)=P$45,VLOOKUP(Tableau4[[#This Row],[Colonne29]],table,21),IF(VLOOKUP(Tableau4[[#This Row],[Colonne29]],table,39,FALSE)=P$45,VLOOKUP(Tableau4[[#This Row],[Colonne29]],table,21),""))))) ->  | R48: =IF(ISNA(IF(VLOOKUP(Tableau4[[#This Row],[Colonne29]],table,36,FALSE)=R$45,VLOOKUP(Tableau4[[#This Row],[Colonne29]],table,20),IF(VLOOKUP(Tableau4[[#This Row],[Colonne29]],table,37,FALSE)=R$45,VLOOKUP(Tableau4[[#This Row],[Colonne29]],table,20),IF(VLOOKUP(Tableau4[[#This Row],[Colonne29]],table,38,FALSE)=R$45,VLOOKUP(Tableau4[[#This Row],[Colonne29]],table,20),IF(VLOOKUP(Tableau4[[#This Row],[Colonne29]],table,39,FALSE)=R$45,VLOOKUP(Tableau4[[#This Row],[Colonne29]],table,20),""))))),"",IF(VLOOKUP(Tableau4[[#This Row],[Colonne29]],table,36,FALSE)=R$45,VLOOKUP(Tableau4[[#This Row],[Colonne29]],table,20),IF(VLOOKUP(Tableau4[[#This Row],[Colonne29]],table,37,FALSE)=R$45,VLOOKUP(Tableau4[[#This Row],[Colonne29]],table,20),IF(VLOOKUP(Tableau4[[#This Row],[Colonne29]],table,38,FALSE)=R$45,VLOOKUP(Tableau4[[#This Row],[Colonne29]],table,20),IF(VLOOKUP(Tableau4[[#This Row],[Colonne29]],table,39,FALSE)=R$45,VLOOKUP(Tableau4[[#This Row],[Colonne29]],table,20),""))))) ->  | S48: =IF(ISNA(IF(VLOOKUP(Tableau4[[#This Row],[Colonne29]],table,36,FALSE)=R$45,VLOOKUP(Tableau4[[#This Row],[Colonne29]],table,20),IF(VLOOKUP(Tableau4[[#This Row],[Colonne29]],table,37,FALSE)=R$45,VLOOKUP(Tableau4[[#This Row],[Colonne29]],table,20),IF(VLOOKUP(Tableau4[[#This Row],[Colonne29]],table,38,FALSE)=R$45,VLOOKUP(Tableau4[[#This Row],[Colonne29]],table,20),IF(VLOOKUP(Tableau4[[#This Row],[Colonne29]],table,39,FALSE)=R$45,VLOOKUP(Tableau4[[#This Row],[Colonne29]],table,20),""))))),"",IF(VLOOKUP(Tableau4[[#This Row],[Colonne29]],table,36,FALSE)=R$45,VLOOKUP(Tableau4[[#This Row],[Colonne29]],table,21),IF(VLOOKUP(Tableau4[[#This Row],[Colonne29]],table,37,FALSE)=R$45,VLOOKUP(Tableau4[[#This Row],[Colonne29]],table,21),IF(VLOOKUP(Tableau4[[#This Row],[Colonne29]],table,38,FALSE)=R$45,VLOOKUP(Tableau4[[#This Row],[Colonne29]],table,21),IF(VLOOKUP(Tableau4[[#This Row],[Colonne29]],table,39,FALSE)=R$45,VLOOKUP(Tableau4[[#This Row],[Colonne29]],table,21),""))))) ->  | T48: =IF(ISNA(IF(VLOOKUP(Tableau4[[#This Row],[Colonne29]],table,36,FALSE)=T$45,VLOOKUP(Tableau4[[#This Row],[Colonne29]],table,20),IF(VLOOKUP(Tableau4[[#This Row],[Colonne29]],table,37,FALSE)=T$45,VLOOKUP(Tableau4[[#This Row],[Colonne29]],table,20),IF(VLOOKUP(Tableau4[[#This Row],[Colonne29]],table,38,FALSE)=T$45,VLOOKUP(Tableau4[[#This Row],[Colonne29]],table,20),IF(VLOOKUP(Tableau4[[#This Row],[Colonne29]],table,39,FALSE)=T$45,VLOOKUP(Tableau4[[#This Row],[Colonne29]],table,20),""))))),"",IF(VLOOKUP(Tableau4[[#This Row],[Colonne29]],table,36,FALSE)=T$45,VLOOKUP(Tableau4[[#This Row],[Colonne29]],table,20),IF(VLOOKUP(Tableau4[[#This Row],[Colonne29]],table,37,FALSE)=T$45,VLOOKUP(Tableau4[[#This Row],[Colonne29]],table,20),IF(VLOOKUP(Tableau4[[#This Row],[Colonne29]],table,38,FALSE)=T$45,VLOOKUP(Tableau4[[#This Row],[Colonne29]],table,20),IF(VLOOKUP(Tableau4[[#This Row],[Colonne29]],table,39,FALSE)=T$45,VLOOKUP(Tableau4[[#This Row],[Colonne29]],table,20),""))))) ->  | U48: =IF(ISNA(IF(VLOOKUP(Tableau4[[#This Row],[Colonne29]],table,36,FALSE)=T$45,VLOOKUP(Tableau4[[#This Row],[Colonne29]],table,20),IF(VLOOKUP(Tableau4[[#This Row],[Colonne29]],table,37,FALSE)=T$45,VLOOKUP(Tableau4[[#This Row],[Colonne29]],table,20),IF(VLOOKUP(Tableau4[[#This Row],[Colonne29]],table,38,FALSE)=T$45,VLOOKUP(Tableau4[[#This Row],[Colonne29]],table,20),IF(VLOOKUP(Tableau4[[#This Row],[Colonne29]],table,39,FALSE)=T$45,VLOOKUP(Tableau4[[#This Row],[Colonne29]],table,20),""))))),"",IF(VLOOKUP(Tableau4[[#This Row],[Colonne29]],table,36,FALSE)=T$45,VLOOKUP(Tableau4[[#This Row],[Colonne29]],table,21),IF(VLOOKUP(Tableau4[[#This Row],[Colonne29]],table,37,FALSE)=T$45,VLOOKUP(Tableau4[[#This Row],[Colonne29]],table,21),IF(VLOOKUP(Tableau4[[#This Row],[Colonne29]],table,38,FALSE)=T$45,VLOOKUP(Tableau4[[#This Row],[Colonne29]],table,21),IF(VLOOKUP(Tableau4[[#This Row],[Colonne29]],table,39,FALSE)=T$45,VLOOKUP(Tableau4[[#This Row],[Colonne29]],table,21),""))))) ->  | V48: =IF(ISNA(IF(VLOOKUP(Tableau4[[#This Row],[Colonne29]],table,36,FALSE)=V$45,VLOOKUP(Tableau4[[#This Row],[Colonne29]],table,20),IF(VLOOKUP(Tableau4[[#This Row],[Colonne29]],table,37,FALSE)=V$45,VLOOKUP(Tableau4[[#This Row],[Colonne29]],table,20),IF(VLOOKUP(Tableau4[[#This Row],[Colonne29]],table,38,FALSE)=V$45,VLOOKUP(Tableau4[[#This Row],[Colonne29]],table,20),IF(VLOOKUP(Tableau4[[#This Row],[Colonne29]],table,39,FALSE)=V$45,VLOOKUP(Tableau4[[#This Row],[Colonne29]],table,20),""))))),"",IF(VLOOKUP(Tableau4[[#This Row],[Colonne29]],table,36,FALSE)=V$45,VLOOKUP(Tableau4[[#This Row],[Colonne29]],table,20),IF(VLOOKUP(Tableau4[[#This Row],[Colonne29]],table,37,FALSE)=V$45,VLOOKUP(Tableau4[[#This Row],[Colonne29]],table,20),IF(VLOOKUP(Tableau4[[#This Row],[Colonne29]],table,38,FALSE)=V$45,VLOOKUP(Tableau4[[#This Row],[Colonne29]],table,20),IF(VLOOKUP(Tableau4[[#This Row],[Colonne29]],table,39,FALSE)=V$45,VLOOKUP(Tableau4[[#This Row],[Colonne29]],table,20),""))))) ->  | W48: =IF(ISNA(IF(VLOOKUP(Tableau4[[#This Row],[Colonne29]],table,36,FALSE)=V$45,VLOOKUP(Tableau4[[#This Row],[Colonne29]],table,20),IF(VLOOKUP(Tableau4[[#This Row],[Colonne29]],table,37,FALSE)=V$45,VLOOKUP(Tableau4[[#This Row],[Colonne29]],table,20),IF(VLOOKUP(Tableau4[[#This Row],[Colonne29]],table,38,FALSE)=V$45,VLOOKUP(Tableau4[[#This Row],[Colonne29]],table,20),IF(VLOOKUP(Tableau4[[#This Row],[Colonne29]],table,39,FALSE)=V$45,VLOOKUP(Tableau4[[#This Row],[Colonne29]],table,20),""))))),"",IF(VLOOKUP(Tableau4[[#This Row],[Colonne29]],table,36,FALSE)=V$45,VLOOKUP(Tableau4[[#This Row],[Colonne29]],table,21),IF(VLOOKUP(Tableau4[[#This Row],[Colonne29]],table,37,FALSE)=V$45,VLOOKUP(Tableau4[[#This Row],[Colonne29]],table,21),IF(VLOOKUP(Tableau4[[#This Row],[Colonne29]],table,38,FALSE)=V$45,VLOOKUP(Tableau4[[#This Row],[Colonne29]],table,21),IF(VLOOKUP(Tableau4[[#This Row],[Colonne29]],table,39,FALSE)=V$45,VLOOKUP(Tableau4[[#This Row],[Colonne29]],table,21),""))))) ->  | X48: =IF(ISNA(IF(VLOOKUP(Tableau4[[#This Row],[Colonne29]],table,36,FALSE)=X$45,VLOOKUP(Tableau4[[#This Row],[Colonne29]],table,20),IF(VLOOKUP(Tableau4[[#This Row],[Colonne29]],table,37,FALSE)=X$45,VLOOKUP(Tableau4[[#This Row],[Colonne29]],table,20),IF(VLOOKUP(Tableau4[[#This Row],[Colonne29]],table,38,FALSE)=X$45,VLOOKUP(Tableau4[[#This Row],[Colonne29]],table,20),IF(VLOOKUP(Tableau4[[#This Row],[Colonne29]],table,39,FALSE)=X$45,VLOOKUP(Tableau4[[#This Row],[Colonne29]],table,20),""))))),"",IF(VLOOKUP(Tableau4[[#This Row],[Colonne29]],table,36,FALSE)=X$45,VLOOKUP(Tableau4[[#This Row],[Colonne29]],table,20),IF(VLOOKUP(Tableau4[[#This Row],[Colonne29]],table,37,FALSE)=X$45,VLOOKUP(Tableau4[[#This Row],[Colonne29]],table,20),IF(VLOOKUP(Tableau4[[#This Row],[Colonne29]],table,38,FALSE)=X$45,VLOOKUP(Tableau4[[#This Row],[Colonne29]],table,20),IF(VLOOKUP(Tableau4[[#This Row],[Colonne29]],table,39,FALSE)=X$45,VLOOKUP(Tableau4[[#This Row],[Colonne29]],table,20),""))))) ->  | Y48: =IF(ISNA(IF(VLOOKUP(Tableau4[[#This Row],[Colonne29]],table,36,FALSE)=X$45,VLOOKUP(Tableau4[[#This Row],[Colonne29]],table,20),IF(VLOOKUP(Tableau4[[#This Row],[Colonne29]],table,37,FALSE)=X$45,VLOOKUP(Tableau4[[#This Row],[Colonne29]],table,20),IF(VLOOKUP(Tableau4[[#This Row],[Colonne29]],table,38,FALSE)=X$45,VLOOKUP(Tableau4[[#This Row],[Colonne29]],table,20),IF(VLOOKUP(Tableau4[[#This Row],[Colonne29]],table,39,FALSE)=X$45,VLOOKUP(Tableau4[[#This Row],[Colonne29]],table,20),""))))),"",IF(VLOOKUP(Tableau4[[#This Row],[Colonne29]],table,36,FALSE)=X$45,VLOOKUP(Tableau4[[#This Row],[Colonne29]],table,21),IF(VLOOKUP(Tableau4[[#This Row],[Colonne29]],table,37,FALSE)=X$45,VLOOKUP(Tableau4[[#This Row],[Colonne29]],table,21),IF(VLOOKUP(Tableau4[[#This Row],[Colonne29]],table,38,FALSE)=X$45,VLOOKUP(Tableau4[[#This Row],[Colonne29]],table,21),IF(VLOOKUP(Tableau4[[#This Row],[Colonne29]],table,39,FALSE)=X$45,VLOOKUP(Tableau4[[#This Row],[Colonne29]],table,21),""))))) ->  | Z48: =IF(ISNA(IF(VLOOKUP(Tableau4[[#This Row],[Colonne29]],table,36,FALSE)=Z$45,VLOOKUP(Tableau4[[#This Row],[Colonne29]],table,20),IF(VLOOKUP(Tableau4[[#This Row],[Colonne29]],table,37,FALSE)=Z$45,VLOOKUP(Tableau4[[#This Row],[Colonne29]],table,20),IF(VLOOKUP(Tableau4[[#This Row],[Colonne29]],table,38,FALSE)=Z$45,VLOOKUP(Tableau4[[#This Row],[Colonne29]],table,20),IF(VLOOKUP(Tableau4[[#This Row],[Colonne29]],table,39,FALSE)=Z$45,VLOOKUP(Tableau4[[#This Row],[Colonne29]],table,20),""))))),"",IF(VLOOKUP(Tableau4[[#This Row],[Colonne29]],table,36,FALSE)=Z$45,VLOOKUP(Tableau4[[#This Row],[Colonne29]],table,20),IF(VLOOKUP(Tableau4[[#This Row],[Colonne29]],table,37,FALSE)=Z$45,VLOOKUP(Tableau4[[#This Row],[Colonne29]],table,20),IF(VLOOKUP(Tableau4[[#This Row],[Colonne29]],table,38,FALSE)=Z$45,VLOOKUP(Tableau4[[#This Row],[Colonne29]],table,20),IF(VLOOKUP(Tableau4[[#This Row],[Colonne29]],table,39,FALSE)=Z$45,VLOOKUP(Tableau4[[#This Row],[Colonne29]],table,20),""))))) ->  | AA48: =IF(ISNA(IF(VLOOKUP(Tableau4[[#This Row],[Colonne29]],table,36,FALSE)=Z$45,VLOOKUP(Tableau4[[#This Row],[Colonne29]],table,20),IF(VLOOKUP(Tableau4[[#This Row],[Colonne29]],table,37,FALSE)=Z$45,VLOOKUP(Tableau4[[#This Row],[Colonne29]],table,20),IF(VLOOKUP(Tableau4[[#This Row],[Colonne29]],table,38,FALSE)=Z$45,VLOOKUP(Tableau4[[#This Row],[Colonne29]],table,20),IF(VLOOKUP(Tableau4[[#This Row],[Colonne29]],table,39,FALSE)=Z$45,VLOOKUP(Tableau4[[#This Row],[Colonne29]],table,20),""))))),"",IF(VLOOKUP(Tableau4[[#This Row],[Colonne29]],table,36,FALSE)=Z$45,VLOOKUP(Tableau4[[#This Row],[Colonne29]],table,21),IF(VLOOKUP(Tableau4[[#This Row],[Colonne29]],table,37,FALSE)=Z$45,VLOOKUP(Tableau4[[#This Row],[Colonne29]],table,21),IF(VLOOKUP(Tableau4[[#This Row],[Colonne29]],table,38,FALSE)=Z$45,VLOOKUP(Tableau4[[#This Row],[Colonne29]],table,21),IF(VLOOKUP(Tableau4[[#This Row],[Colonne29]],table,39,FALSE)=Z$45,VLOOKUP(Tableau4[[#This Row],[Colonne29]],table,21),""))))) ->  | AB48: =IF(ISNA(IF(VLOOKUP(Tableau4[[#This Row],[Colonne29]],table,36,FALSE)=AB$45,VLOOKUP(Tableau4[[#This Row],[Colonne29]],table,20),IF(VLOOKUP(Tableau4[[#This Row],[Colonne29]],table,37,FALSE)=AB$45,VLOOKUP(Tableau4[[#This Row],[Colonne29]],table,20),IF(VLOOKUP(Tableau4[[#This Row],[Colonne29]],table,38,FALSE)=AB$45,VLOOKUP(Tableau4[[#This Row],[Colonne29]],table,20),IF(VLOOKUP(Tableau4[[#This Row],[Colonne29]],table,39,FALSE)=AB$45,VLOOKUP(Tableau4[[#This Row],[Colonne29]],table,20),""))))),"",IF(VLOOKUP(Tableau4[[#This Row],[Colonne29]],table,36,FALSE)=AB$45,VLOOKUP(Tableau4[[#This Row],[Colonne29]],table,20),IF(VLOOKUP(Tableau4[[#This Row],[Colonne29]],table,37,FALSE)=AB$45,VLOOKUP(Tableau4[[#This Row],[Colonne29]],table,20),IF(VLOOKUP(Tableau4[[#This Row],[Colonne29]],table,38,FALSE)=AB$45,VLOOKUP(Tableau4[[#This Row],[Colonne29]],table,20),IF(VLOOKUP(Tableau4[[#This Row],[Colonne29]],table,39,FALSE)=AB$45,VLOOKUP(Tableau4[[#This Row],[Colonne29]],table,20),""))))) ->  | AC48: =IF(ISNA(IF(VLOOKUP(Tableau4[[#This Row],[Colonne29]],table,36,FALSE)=AB$45,VLOOKUP(Tableau4[[#This Row],[Colonne29]],table,20),IF(VLOOKUP(Tableau4[[#This Row],[Colonne29]],table,37,FALSE)=AB$45,VLOOKUP(Tableau4[[#This Row],[Colonne29]],table,20),IF(VLOOKUP(Tableau4[[#This Row],[Colonne29]],table,38,FALSE)=AB$45,VLOOKUP(Tableau4[[#This Row],[Colonne29]],table,20),IF(VLOOKUP(Tableau4[[#This Row],[Colonne29]],table,39,FALSE)=AB$45,VLOOKUP(Tableau4[[#This Row],[Colonne29]],table,20),""))))),"",IF(VLOOKUP(Tableau4[[#This Row],[Colonne29]],table,36,FALSE)=AB$45,VLOOKUP(Tableau4[[#This Row],[Colonne29]],table,21),IF(VLOOKUP(Tableau4[[#This Row],[Colonne29]],table,37,FALSE)=AB$45,VLOOKUP(Tableau4[[#This Row],[Colonne29]],table,21),IF(VLOOKUP(Tableau4[[#This Row],[Colonne29]],table,38,FALSE)=AB$45,VLOOKUP(Tableau4[[#This Row],[Colonne29]],table,21),IF(VLOOKUP(Tableau4[[#This Row],[Colonne29]],table,39,FALSE)=AB$45,VLOOKUP(Tableau4[[#This Row],[Colonne29]],table,21),""))))) -> 
A49: Thématique - Audit CMU-C - 2016 | B49: =IF(ISNA(IF(VLOOKUP(Tableau4[[#This Row],[Colonne29]],table,36,FALSE)=B$45,VLOOKUP(Tableau4[[#This Row],[Colonne29]],table,20),IF(VLOOKUP(Tableau4[[#This Row],[Colonne29]],table,37,FALSE)=B$45,VLOOKUP(Tableau4[[#This Row],[Colonne29]],table,20),IF(VLOOKUP(Tableau4[[#This Row],[Colonne29]],table,38,FALSE)=B$45,VLOOKUP(Tableau4[[#This Row],[Colonne29]],table,20),IF(VLOOKUP(Tableau4[[#This Row],[Colonne29]],table,39,FALSE)=B$45,VLOOKUP(Tableau4[[#This Row],[Colonne29]],table,20),""))))),"",IF(VLOOKUP(Tableau4[[#This Row],[Colonne29]],table,36,FALSE)=B$45,VLOOKUP(Tableau4[[#This Row],[Colonne29]],table,20),IF(VLOOKUP(Tableau4[[#This Row],[Colonne29]],table,37,FALSE)=B$45,VLOOKUP(Tableau4[[#This Row],[Colonne29]],table,20),IF(VLOOKUP(Tableau4[[#This Row],[Colonne29]],table,38,FALSE)=B$45,VLOOKUP(Tableau4[[#This Row],[Colonne29]],table,20),IF(VLOOKUP(Tableau4[[#This Row],[Colonne29]],table,39,FALSE)=B$45,VLOOKUP(Tableau4[[#This Row],[Colonne29]],table,20),""))))) ->  | C49: =IF(ISNA(IF(VLOOKUP(Tableau4[[#This Row],[Colonne29]],table,36,FALSE)=B$45,VLOOKUP(Tableau4[[#This Row],[Colonne29]],table,20),IF(VLOOKUP(Tableau4[[#This Row],[Colonne29]],table,37,FALSE)=B$45,VLOOKUP(Tableau4[[#This Row],[Colonne29]],table,20),IF(VLOOKUP(Tableau4[[#This Row],[Colonne29]],table,38,FALSE)=B$45,VLOOKUP(Tableau4[[#This Row],[Colonne29]],table,20),IF(VLOOKUP(Tableau4[[#This Row],[Colonne29]],table,39,FALSE)=B$45,VLOOKUP(Tableau4[[#This Row],[Colonne29]],table,20),""))))),"",IF(VLOOKUP(Tableau4[[#This Row],[Colonne29]],table,36,FALSE)=B$45,VLOOKUP(Tableau4[[#This Row],[Colonne29]],table,21),IF(VLOOKUP(Tableau4[[#This Row],[Colonne29]],table,37,FALSE)=B$45,VLOOKUP(Tableau4[[#This Row],[Colonne29]],table,21),IF(VLOOKUP(Tableau4[[#This Row],[Colonne29]],table,38,FALSE)=B$45,VLOOKUP(Tableau4[[#This Row],[Colonne29]],table,21),IF(VLOOKUP(Tableau4[[#This Row],[Colonne29]],table,39,FALSE)=B$45,VLOOKUP(Tableau4[[#This Row],[Colonne29]],table,21),""))))) ->  | D49: =IF(ISNA(IF(VLOOKUP(Tableau4[[#This Row],[Colonne29]],table,36,FALSE)=D$45,VLOOKUP(Tableau4[[#This Row],[Colonne29]],table,20),IF(VLOOKUP(Tableau4[[#This Row],[Colonne29]],table,37,FALSE)=D$45,VLOOKUP(Tableau4[[#This Row],[Colonne29]],table,20),IF(VLOOKUP(Tableau4[[#This Row],[Colonne29]],table,38,FALSE)=D$45,VLOOKUP(Tableau4[[#This Row],[Colonne29]],table,20),IF(VLOOKUP(Tableau4[[#This Row],[Colonne29]],table,39,FALSE)=D$45,VLOOKUP(Tableau4[[#This Row],[Colonne29]],table,20),""))))),"",IF(VLOOKUP(Tableau4[[#This Row],[Colonne29]],table,36,FALSE)=D$45,VLOOKUP(Tableau4[[#This Row],[Colonne29]],table,20),IF(VLOOKUP(Tableau4[[#This Row],[Colonne29]],table,37,FALSE)=D$45,VLOOKUP(Tableau4[[#This Row],[Colonne29]],table,20),IF(VLOOKUP(Tableau4[[#This Row],[Colonne29]],table,38,FALSE)=D$45,VLOOKUP(Tableau4[[#This Row],[Colonne29]],table,20),IF(VLOOKUP(Tableau4[[#This Row],[Colonne29]],table,39,FALSE)=D$45,VLOOKUP(Tableau4[[#This Row],[Colonne29]],table,20),""))))) ->  | E49: =IF(ISNA(IF(VLOOKUP(Tableau4[[#This Row],[Colonne29]],table,36,FALSE)=D$45,VLOOKUP(Tableau4[[#This Row],[Colonne29]],table,20),IF(VLOOKUP(Tableau4[[#This Row],[Colonne29]],table,37,FALSE)=D$45,VLOOKUP(Tableau4[[#This Row],[Colonne29]],table,20),IF(VLOOKUP(Tableau4[[#This Row],[Colonne29]],table,38,FALSE)=D$45,VLOOKUP(Tableau4[[#This Row],[Colonne29]],table,20),IF(VLOOKUP(Tableau4[[#This Row],[Colonne29]],table,39,FALSE)=D$45,VLOOKUP(Tableau4[[#This Row],[Colonne29]],table,20),""))))),"",IF(VLOOKUP(Tableau4[[#This Row],[Colonne29]],table,36,FALSE)=D$45,VLOOKUP(Tableau4[[#This Row],[Colonne29]],table,21),IF(VLOOKUP(Tableau4[[#This Row],[Colonne29]],table,37,FALSE)=D$45,VLOOKUP(Tableau4[[#This Row],[Colonne29]],table,21),IF(VLOOKUP(Tableau4[[#This Row],[Colonne29]],table,38,FALSE)=D$45,VLOOKUP(Tableau4[[#This Row],[Colonne29]],table,21),IF(VLOOKUP(Tableau4[[#This Row],[Colonne29]],table,39,FALSE)=D$45,VLOOKUP(Tableau4[[#This Row],[Colonne29]],table,21),""))))) ->  | F49: =IF(ISNA(IF(VLOOKUP(Tableau4[[#This Row],[Colonne29]],table,36,FALSE)=F$45,VLOOKUP(Tableau4[[#This Row],[Colonne29]],table,20),IF(VLOOKUP(Tableau4[[#This Row],[Colonne29]],table,37,FALSE)=F$45,VLOOKUP(Tableau4[[#This Row],[Colonne29]],table,20),IF(VLOOKUP(Tableau4[[#This Row],[Colonne29]],table,38,FALSE)=F$45,VLOOKUP(Tableau4[[#This Row],[Colonne29]],table,20),IF(VLOOKUP(Tableau4[[#This Row],[Colonne29]],table,39,FALSE)=F$45,VLOOKUP(Tableau4[[#This Row],[Colonne29]],table,20),""))))),"",IF(VLOOKUP(Tableau4[[#This Row],[Colonne29]],table,36,FALSE)=F$45,VLOOKUP(Tableau4[[#This Row],[Colonne29]],table,20),IF(VLOOKUP(Tableau4[[#This Row],[Colonne29]],table,37,FALSE)=F$45,VLOOKUP(Tableau4[[#This Row],[Colonne29]],table,20),IF(VLOOKUP(Tableau4[[#This Row],[Colonne29]],table,38,FALSE)=F$45,VLOOKUP(Tableau4[[#This Row],[Colonne29]],table,20),IF(VLOOKUP(Tableau4[[#This Row],[Colonne29]],table,39,FALSE)=F$45,VLOOKUP(Tableau4[[#This Row],[Colonne29]],table,20),""))))) ->  | G49: =IF(ISNA(IF(VLOOKUP(Tableau4[[#This Row],[Colonne29]],table,36,FALSE)=F$45,VLOOKUP(Tableau4[[#This Row],[Colonne29]],table,20),IF(VLOOKUP(Tableau4[[#This Row],[Colonne29]],table,37,FALSE)=F$45,VLOOKUP(Tableau4[[#This Row],[Colonne29]],table,20),IF(VLOOKUP(Tableau4[[#This Row],[Colonne29]],table,38,FALSE)=F$45,VLOOKUP(Tableau4[[#This Row],[Colonne29]],table,20),IF(VLOOKUP(Tableau4[[#This Row],[Colonne29]],table,39,FALSE)=F$45,VLOOKUP(Tableau4[[#This Row],[Colonne29]],table,20),""))))),"",IF(VLOOKUP(Tableau4[[#This Row],[Colonne29]],table,36,FALSE)=F$45,VLOOKUP(Tableau4[[#This Row],[Colonne29]],table,21),IF(VLOOKUP(Tableau4[[#This Row],[Colonne29]],table,37,FALSE)=F$45,VLOOKUP(Tableau4[[#This Row],[Colonne29]],table,21),IF(VLOOKUP(Tableau4[[#This Row],[Colonne29]],table,38,FALSE)=F$45,VLOOKUP(Tableau4[[#This Row],[Colonne29]],table,21),IF(VLOOKUP(Tableau4[[#This Row],[Colonne29]],table,39,FALSE)=F$45,VLOOKUP(Tableau4[[#This Row],[Colonne29]],table,21),""))))) ->  | H49: =IF(ISNA(IF(VLOOKUP(Tableau4[[#This Row],[Colonne29]],table,36,FALSE)=H$45,VLOOKUP(Tableau4[[#This Row],[Colonne29]],table,20),IF(VLOOKUP(Tableau4[[#This Row],[Colonne29]],table,37,FALSE)=H$45,VLOOKUP(Tableau4[[#This Row],[Colonne29]],table,20),IF(VLOOKUP(Tableau4[[#This Row],[Colonne29]],table,38,FALSE)=H$45,VLOOKUP(Tableau4[[#This Row],[Colonne29]],table,20),IF(VLOOKUP(Tableau4[[#This Row],[Colonne29]],table,39,FALSE)=H$45,VLOOKUP(Tableau4[[#This Row],[Colonne29]],table,20),""))))),"",IF(VLOOKUP(Tableau4[[#This Row],[Colonne29]],table,36,FALSE)=H$45,VLOOKUP(Tableau4[[#This Row],[Colonne29]],table,20),IF(VLOOKUP(Tableau4[[#This Row],[Colonne29]],table,37,FALSE)=H$45,VLOOKUP(Tableau4[[#This Row],[Colonne29]],table,20),IF(VLOOKUP(Tableau4[[#This Row],[Colonne29]],table,38,FALSE)=H$45,VLOOKUP(Tableau4[[#This Row],[Colonne29]],table,20),IF(VLOOKUP(Tableau4[[#This Row],[Colonne29]],table,39,FALSE)=H$45,VLOOKUP(Tableau4[[#This Row],[Colonne29]],table,20),""))))) ->  | I49: =IF(ISNA(IF(VLOOKUP(Tableau4[[#This Row],[Colonne29]],table,36,FALSE)=H$45,VLOOKUP(Tableau4[[#This Row],[Colonne29]],table,20),IF(VLOOKUP(Tableau4[[#This Row],[Colonne29]],table,37,FALSE)=H$45,VLOOKUP(Tableau4[[#This Row],[Colonne29]],table,20),IF(VLOOKUP(Tableau4[[#This Row],[Colonne29]],table,38,FALSE)=H$45,VLOOKUP(Tableau4[[#This Row],[Colonne29]],table,20),IF(VLOOKUP(Tableau4[[#This Row],[Colonne29]],table,39,FALSE)=H$45,VLOOKUP(Tableau4[[#This Row],[Colonne29]],table,20),""))))),"",IF(VLOOKUP(Tableau4[[#This Row],[Colonne29]],table,36,FALSE)=H$45,VLOOKUP(Tableau4[[#This Row],[Colonne29]],table,21),IF(VLOOKUP(Tableau4[[#This Row],[Colonne29]],table,37,FALSE)=H$45,VLOOKUP(Tableau4[[#This Row],[Colonne29]],table,21),IF(VLOOKUP(Tableau4[[#This Row],[Colonne29]],table,38,FALSE)=H$45,VLOOKUP(Tableau4[[#This Row],[Colonne29]],table,21),IF(VLOOKUP(Tableau4[[#This Row],[Colonne29]],table,39,FALSE)=H$45,VLOOKUP(Tableau4[[#This Row],[Colonne29]],table,21),""))))) ->  | J49: =IF(ISNA(IF(VLOOKUP(Tableau4[[#This Row],[Colonne29]],table,36,FALSE)=J$45,VLOOKUP(Tableau4[[#This Row],[Colonne29]],table,20),IF(VLOOKUP(Tableau4[[#This Row],[Colonne29]],table,37,FALSE)=J$45,VLOOKUP(Tableau4[[#This Row],[Colonne29]],table,20),IF(VLOOKUP(Tableau4[[#This Row],[Colonne29]],table,38,FALSE)=J$45,VLOOKUP(Tableau4[[#This Row],[Colonne29]],table,20),IF(VLOOKUP(Tableau4[[#This Row],[Colonne29]],table,39,FALSE)=J$45,VLOOKUP(Tableau4[[#This Row],[Colonne29]],table,20),""))))),"",IF(VLOOKUP(Tableau4[[#This Row],[Colonne29]],table,36,FALSE)=J$45,VLOOKUP(Tableau4[[#This Row],[Colonne29]],table,20),IF(VLOOKUP(Tableau4[[#This Row],[Colonne29]],table,37,FALSE)=J$45,VLOOKUP(Tableau4[[#This Row],[Colonne29]],table,20),IF(VLOOKUP(Tableau4[[#This Row],[Colonne29]],table,38,FALSE)=J$45,VLOOKUP(Tableau4[[#This Row],[Colonne29]],table,20),IF(VLOOKUP(Tableau4[[#This Row],[Colonne29]],table,39,FALSE)=J$45,VLOOKUP(Tableau4[[#This Row],[Colonne29]],table,20),""))))) ->  | K49: =IF(ISNA(IF(VLOOKUP(Tableau4[[#This Row],[Colonne29]],table,36,FALSE)=J$45,VLOOKUP(Tableau4[[#This Row],[Colonne29]],table,20),IF(VLOOKUP(Tableau4[[#This Row],[Colonne29]],table,37,FALSE)=J$45,VLOOKUP(Tableau4[[#This Row],[Colonne29]],table,20),IF(VLOOKUP(Tableau4[[#This Row],[Colonne29]],table,38,FALSE)=J$45,VLOOKUP(Tableau4[[#This Row],[Colonne29]],table,20),IF(VLOOKUP(Tableau4[[#This Row],[Colonne29]],table,39,FALSE)=J$45,VLOOKUP(Tableau4[[#This Row],[Colonne29]],table,20),""))))),"",IF(VLOOKUP(Tableau4[[#This Row],[Colonne29]],table,36,FALSE)=J$45,VLOOKUP(Tableau4[[#This Row],[Colonne29]],table,21),IF(VLOOKUP(Tableau4[[#This Row],[Colonne29]],table,37,FALSE)=J$45,VLOOKUP(Tableau4[[#This Row],[Colonne29]],table,21),IF(VLOOKUP(Tableau4[[#This Row],[Colonne29]],table,38,FALSE)=J$45,VLOOKUP(Tableau4[[#This Row],[Colonne29]],table,21),IF(VLOOKUP(Tableau4[[#This Row],[Colonne29]],table,39,FALSE)=J$45,VLOOKUP(Tableau4[[#This Row],[Colonne29]],table,21),""))))) ->  | L49: =IF(ISNA(IF(VLOOKUP(Tableau4[[#This Row],[Colonne29]],table,36,FALSE)=L$45,VLOOKUP(Tableau4[[#This Row],[Colonne29]],table,20),IF(VLOOKUP(Tableau4[[#This Row],[Colonne29]],table,37,FALSE)=L$45,VLOOKUP(Tableau4[[#This Row],[Colonne29]],table,20),IF(VLOOKUP(Tableau4[[#This Row],[Colonne29]],table,38,FALSE)=L$45,VLOOKUP(Tableau4[[#This Row],[Colonne29]],table,20),IF(VLOOKUP(Tableau4[[#This Row],[Colonne29]],table,39,FALSE)=L$45,VLOOKUP(Tableau4[[#This Row],[Colonne29]],table,20),""))))),"",IF(VLOOKUP(Tableau4[[#This Row],[Colonne29]],table,36,FALSE)=L$45,VLOOKUP(Tableau4[[#This Row],[Colonne29]],table,20),IF(VLOOKUP(Tableau4[[#This Row],[Colonne29]],table,37,FALSE)=L$45,VLOOKUP(Tableau4[[#This Row],[Colonne29]],table,20),IF(VLOOKUP(Tableau4[[#This Row],[Colonne29]],table,38,FALSE)=L$45,VLOOKUP(Tableau4[[#This Row],[Colonne29]],table,20),IF(VLOOKUP(Tableau4[[#This Row],[Colonne29]],table,39,FALSE)=L$45,VLOOKUP(Tableau4[[#This Row],[Colonne29]],table,20),""))))) ->  | M49: =IF(ISNA(IF(VLOOKUP(Tableau4[[#This Row],[Colonne29]],table,36,FALSE)=L$45,VLOOKUP(Tableau4[[#This Row],[Colonne29]],table,20),IF(VLOOKUP(Tableau4[[#This Row],[Colonne29]],table,37,FALSE)=L$45,VLOOKUP(Tableau4[[#This Row],[Colonne29]],table,20),IF(VLOOKUP(Tableau4[[#This Row],[Colonne29]],table,38,FALSE)=L$45,VLOOKUP(Tableau4[[#This Row],[Colonne29]],table,20),IF(VLOOKUP(Tableau4[[#This Row],[Colonne29]],table,39,FALSE)=L$45,VLOOKUP(Tableau4[[#This Row],[Colonne29]],table,20),""))))),"",IF(VLOOKUP(Tableau4[[#This Row],[Colonne29]],table,36,FALSE)=L$45,VLOOKUP(Tableau4[[#This Row],[Colonne29]],table,21),IF(VLOOKUP(Tableau4[[#This Row],[Colonne29]],table,37,FALSE)=L$45,VLOOKUP(Tableau4[[#This Row],[Colonne29]],table,21),IF(VLOOKUP(Tableau4[[#This Row],[Colonne29]],table,38,FALSE)=L$45,VLOOKUP(Tableau4[[#This Row],[Colonne29]],table,21),IF(VLOOKUP(Tableau4[[#This Row],[Colonne29]],table,39,FALSE)=L$45,VLOOKUP(Tableau4[[#This Row],[Colonne29]],table,21),""))))) ->  | N49: =IF(ISNA(IF(VLOOKUP(Tableau4[[#This Row],[Colonne29]],table,36,FALSE)=N$45,VLOOKUP(Tableau4[[#This Row],[Colonne29]],table,20),IF(VLOOKUP(Tableau4[[#This Row],[Colonne29]],table,37,FALSE)=N$45,VLOOKUP(Tableau4[[#This Row],[Colonne29]],table,20),IF(VLOOKUP(Tableau4[[#This Row],[Colonne29]],table,38,FALSE)=N$45,VLOOKUP(Tableau4[[#This Row],[Colonne29]],table,20),IF(VLOOKUP(Tableau4[[#This Row],[Colonne29]],table,39,FALSE)=N$45,VLOOKUP(Tableau4[[#This Row],[Colonne29]],table,20),""))))),"",IF(VLOOKUP(Tableau4[[#This Row],[Colonne29]],table,36,FALSE)=N$45,VLOOKUP(Tableau4[[#This Row],[Colonne29]],table,20),IF(VLOOKUP(Tableau4[[#This Row],[Colonne29]],table,37,FALSE)=N$45,VLOOKUP(Tableau4[[#This Row],[Colonne29]],table,20),IF(VLOOKUP(Tableau4[[#This Row],[Colonne29]],table,38,FALSE)=N$45,VLOOKUP(Tableau4[[#This Row],[Colonne29]],table,20),IF(VLOOKUP(Tableau4[[#This Row],[Colonne29]],table,39,FALSE)=N$45,VLOOKUP(Tableau4[[#This Row],[Colonne29]],table,20),""))))) ->  | O49: =IF(ISNA(IF(VLOOKUP(Tableau4[[#This Row],[Colonne29]],table,36,FALSE)=N$45,VLOOKUP(Tableau4[[#This Row],[Colonne29]],table,20),IF(VLOOKUP(Tableau4[[#This Row],[Colonne29]],table,37,FALSE)=N$45,VLOOKUP(Tableau4[[#This Row],[Colonne29]],table,20),IF(VLOOKUP(Tableau4[[#This Row],[Colonne29]],table,38,FALSE)=N$45,VLOOKUP(Tableau4[[#This Row],[Colonne29]],table,20),IF(VLOOKUP(Tableau4[[#This Row],[Colonne29]],table,39,FALSE)=N$45,VLOOKUP(Tableau4[[#This Row],[Colonne29]],table,20),""))))),"",IF(VLOOKUP(Tableau4[[#This Row],[Colonne29]],table,36,FALSE)=N$45,VLOOKUP(Tableau4[[#This Row],[Colonne29]],table,21),IF(VLOOKUP(Tableau4[[#This Row],[Colonne29]],table,37,FALSE)=N$45,VLOOKUP(Tableau4[[#This Row],[Colonne29]],table,21),IF(VLOOKUP(Tableau4[[#This Row],[Colonne29]],table,38,FALSE)=N$45,VLOOKUP(Tableau4[[#This Row],[Colonne29]],table,21),IF(VLOOKUP(Tableau4[[#This Row],[Colonne29]],table,39,FALSE)=N$45,VLOOKUP(Tableau4[[#This Row],[Colonne29]],table,21),""))))) ->  | P49: =IF(ISNA(IF(VLOOKUP(Tableau4[[#This Row],[Colonne29]],table,36,FALSE)=P$45,VLOOKUP(Tableau4[[#This Row],[Colonne29]],table,20),IF(VLOOKUP(Tableau4[[#This Row],[Colonne29]],table,37,FALSE)=P$45,VLOOKUP(Tableau4[[#This Row],[Colonne29]],table,20),IF(VLOOKUP(Tableau4[[#This Row],[Colonne29]],table,38,FALSE)=P$45,VLOOKUP(Tableau4[[#This Row],[Colonne29]],table,20),IF(VLOOKUP(Tableau4[[#This Row],[Colonne29]],table,39,FALSE)=P$45,VLOOKUP(Tableau4[[#This Row],[Colonne29]],table,20),""))))),"",IF(VLOOKUP(Tableau4[[#This Row],[Colonne29]],table,36,FALSE)=P$45,VLOOKUP(Tableau4[[#This Row],[Colonne29]],table,20),IF(VLOOKUP(Tableau4[[#This Row],[Colonne29]],table,37,FALSE)=P$45,VLOOKUP(Tableau4[[#This Row],[Colonne29]],table,20),IF(VLOOKUP(Tableau4[[#This Row],[Colonne29]],table,38,FALSE)=P$45,VLOOKUP(Tableau4[[#This Row],[Colonne29]],table,20),IF(VLOOKUP(Tableau4[[#This Row],[Colonne29]],table,39,FALSE)=P$45,VLOOKUP(Tableau4[[#This Row],[Colonne29]],table,20),""))))) ->  | Q49: =IF(ISNA(IF(VLOOKUP(Tableau4[[#This Row],[Colonne29]],table,36,FALSE)=P$45,VLOOKUP(Tableau4[[#This Row],[Colonne29]],table,20),IF(VLOOKUP(Tableau4[[#This Row],[Colonne29]],table,37,FALSE)=P$45,VLOOKUP(Tableau4[[#This Row],[Colonne29]],table,20),IF(VLOOKUP(Tableau4[[#This Row],[Colonne29]],table,38,FALSE)=P$45,VLOOKUP(Tableau4[[#This Row],[Colonne29]],table,20),IF(VLOOKUP(Tableau4[[#This Row],[Colonne29]],table,39,FALSE)=P$45,VLOOKUP(Tableau4[[#This Row],[Colonne29]],table,20),""))))),"",IF(VLOOKUP(Tableau4[[#This Row],[Colonne29]],table,36,FALSE)=P$45,VLOOKUP(Tableau4[[#This Row],[Colonne29]],table,21),IF(VLOOKUP(Tableau4[[#This Row],[Colonne29]],table,37,FALSE)=P$45,VLOOKUP(Tableau4[[#This Row],[Colonne29]],table,21),IF(VLOOKUP(Tableau4[[#This Row],[Colonne29]],table,38,FALSE)=P$45,VLOOKUP(Tableau4[[#This Row],[Colonne29]],table,21),IF(VLOOKUP(Tableau4[[#This Row],[Colonne29]],table,39,FALSE)=P$45,VLOOKUP(Tableau4[[#This Row],[Colonne29]],table,21),""))))) ->  | R49: =IF(ISNA(IF(VLOOKUP(Tableau4[[#This Row],[Colonne29]],table,36,FALSE)=R$45,VLOOKUP(Tableau4[[#This Row],[Colonne29]],table,20),IF(VLOOKUP(Tableau4[[#This Row],[Colonne29]],table,37,FALSE)=R$45,VLOOKUP(Tableau4[[#This Row],[Colonne29]],table,20),IF(VLOOKUP(Tableau4[[#This Row],[Colonne29]],table,38,FALSE)=R$45,VLOOKUP(Tableau4[[#This Row],[Colonne29]],table,20),IF(VLOOKUP(Tableau4[[#This Row],[Colonne29]],table,39,FALSE)=R$45,VLOOKUP(Tableau4[[#This Row],[Colonne29]],table,20),""))))),"",IF(VLOOKUP(Tableau4[[#This Row],[Colonne29]],table,36,FALSE)=R$45,VLOOKUP(Tableau4[[#This Row],[Colonne29]],table,20),IF(VLOOKUP(Tableau4[[#This Row],[Colonne29]],table,37,FALSE)=R$45,VLOOKUP(Tableau4[[#This Row],[Colonne29]],table,20),IF(VLOOKUP(Tableau4[[#This Row],[Colonne29]],table,38,FALSE)=R$45,VLOOKUP(Tableau4[[#This Row],[Colonne29]],table,20),IF(VLOOKUP(Tableau4[[#This Row],[Colonne29]],table,39,FALSE)=R$45,VLOOKUP(Tableau4[[#This Row],[Colonne29]],table,20),""))))) ->  | S49: =IF(ISNA(IF(VLOOKUP(Tableau4[[#This Row],[Colonne29]],table,36,FALSE)=R$45,VLOOKUP(Tableau4[[#This Row],[Colonne29]],table,20),IF(VLOOKUP(Tableau4[[#This Row],[Colonne29]],table,37,FALSE)=R$45,VLOOKUP(Tableau4[[#This Row],[Colonne29]],table,20),IF(VLOOKUP(Tableau4[[#This Row],[Colonne29]],table,38,FALSE)=R$45,VLOOKUP(Tableau4[[#This Row],[Colonne29]],table,20),IF(VLOOKUP(Tableau4[[#This Row],[Colonne29]],table,39,FALSE)=R$45,VLOOKUP(Tableau4[[#This Row],[Colonne29]],table,20),""))))),"",IF(VLOOKUP(Tableau4[[#This Row],[Colonne29]],table,36,FALSE)=R$45,VLOOKUP(Tableau4[[#This Row],[Colonne29]],table,21),IF(VLOOKUP(Tableau4[[#This Row],[Colonne29]],table,37,FALSE)=R$45,VLOOKUP(Tableau4[[#This Row],[Colonne29]],table,21),IF(VLOOKUP(Tableau4[[#This Row],[Colonne29]],table,38,FALSE)=R$45,VLOOKUP(Tableau4[[#This Row],[Colonne29]],table,21),IF(VLOOKUP(Tableau4[[#This Row],[Colonne29]],table,39,FALSE)=R$45,VLOOKUP(Tableau4[[#This Row],[Colonne29]],table,21),""))))) ->  | T49: =IF(ISNA(IF(VLOOKUP(Tableau4[[#This Row],[Colonne29]],table,36,FALSE)=T$45,VLOOKUP(Tableau4[[#This Row],[Colonne29]],table,20),IF(VLOOKUP(Tableau4[[#This Row],[Colonne29]],table,37,FALSE)=T$45,VLOOKUP(Tableau4[[#This Row],[Colonne29]],table,20),IF(VLOOKUP(Tableau4[[#This Row],[Colonne29]],table,38,FALSE)=T$45,VLOOKUP(Tableau4[[#This Row],[Colonne29]],table,20),IF(VLOOKUP(Tableau4[[#This Row],[Colonne29]],table,39,FALSE)=T$45,VLOOKUP(Tableau4[[#This Row],[Colonne29]],table,20),""))))),"",IF(VLOOKUP(Tableau4[[#This Row],[Colonne29]],table,36,FALSE)=T$45,VLOOKUP(Tableau4[[#This Row],[Colonne29]],table,20),IF(VLOOKUP(Tableau4[[#This Row],[Colonne29]],table,37,FALSE)=T$45,VLOOKUP(Tableau4[[#This Row],[Colonne29]],table,20),IF(VLOOKUP(Tableau4[[#This Row],[Colonne29]],table,38,FALSE)=T$45,VLOOKUP(Tableau4[[#This Row],[Colonne29]],table,20),IF(VLOOKUP(Tableau4[[#This Row],[Colonne29]],table,39,FALSE)=T$45,VLOOKUP(Tableau4[[#This Row],[Colonne29]],table,20),""))))) ->  | U49: =IF(ISNA(IF(VLOOKUP(Tableau4[[#This Row],[Colonne29]],table,36,FALSE)=T$45,VLOOKUP(Tableau4[[#This Row],[Colonne29]],table,20),IF(VLOOKUP(Tableau4[[#This Row],[Colonne29]],table,37,FALSE)=T$45,VLOOKUP(Tableau4[[#This Row],[Colonne29]],table,20),IF(VLOOKUP(Tableau4[[#This Row],[Colonne29]],table,38,FALSE)=T$45,VLOOKUP(Tableau4[[#This Row],[Colonne29]],table,20),IF(VLOOKUP(Tableau4[[#This Row],[Colonne29]],table,39,FALSE)=T$45,VLOOKUP(Tableau4[[#This Row],[Colonne29]],table,20),""))))),"",IF(VLOOKUP(Tableau4[[#This Row],[Colonne29]],table,36,FALSE)=T$45,VLOOKUP(Tableau4[[#This Row],[Colonne29]],table,21),IF(VLOOKUP(Tableau4[[#This Row],[Colonne29]],table,37,FALSE)=T$45,VLOOKUP(Tableau4[[#This Row],[Colonne29]],table,21),IF(VLOOKUP(Tableau4[[#This Row],[Colonne29]],table,38,FALSE)=T$45,VLOOKUP(Tableau4[[#This Row],[Colonne29]],table,21),IF(VLOOKUP(Tableau4[[#This Row],[Colonne29]],table,39,FALSE)=T$45,VLOOKUP(Tableau4[[#This Row],[Colonne29]],table,21),""))))) ->  | V49: =IF(ISNA(IF(VLOOKUP(Tableau4[[#This Row],[Colonne29]],table,36,FALSE)=V$45,VLOOKUP(Tableau4[[#This Row],[Colonne29]],table,20),IF(VLOOKUP(Tableau4[[#This Row],[Colonne29]],table,37,FALSE)=V$45,VLOOKUP(Tableau4[[#This Row],[Colonne29]],table,20),IF(VLOOKUP(Tableau4[[#This Row],[Colonne29]],table,38,FALSE)=V$45,VLOOKUP(Tableau4[[#This Row],[Colonne29]],table,20),IF(VLOOKUP(Tableau4[[#This Row],[Colonne29]],table,39,FALSE)=V$45,VLOOKUP(Tableau4[[#This Row],[Colonne29]],table,20),""))))),"",IF(VLOOKUP(Tableau4[[#This Row],[Colonne29]],table,36,FALSE)=V$45,VLOOKUP(Tableau4[[#This Row],[Colonne29]],table,20),IF(VLOOKUP(Tableau4[[#This Row],[Colonne29]],table,37,FALSE)=V$45,VLOOKUP(Tableau4[[#This Row],[Colonne29]],table,20),IF(VLOOKUP(Tableau4[[#This Row],[Colonne29]],table,38,FALSE)=V$45,VLOOKUP(Tableau4[[#This Row],[Colonne29]],table,20),IF(VLOOKUP(Tableau4[[#This Row],[Colonne29]],table,39,FALSE)=V$45,VLOOKUP(Tableau4[[#This Row],[Colonne29]],table,20),""))))) ->  | W49: =IF(ISNA(IF(VLOOKUP(Tableau4[[#This Row],[Colonne29]],table,36,FALSE)=V$45,VLOOKUP(Tableau4[[#This Row],[Colonne29]],table,20),IF(VLOOKUP(Tableau4[[#This Row],[Colonne29]],table,37,FALSE)=V$45,VLOOKUP(Tableau4[[#This Row],[Colonne29]],table,20),IF(VLOOKUP(Tableau4[[#This Row],[Colonne29]],table,38,FALSE)=V$45,VLOOKUP(Tableau4[[#This Row],[Colonne29]],table,20),IF(VLOOKUP(Tableau4[[#This Row],[Colonne29]],table,39,FALSE)=V$45,VLOOKUP(Tableau4[[#This Row],[Colonne29]],table,20),""))))),"",IF(VLOOKUP(Tableau4[[#This Row],[Colonne29]],table,36,FALSE)=V$45,VLOOKUP(Tableau4[[#This Row],[Colonne29]],table,21),IF(VLOOKUP(Tableau4[[#This Row],[Colonne29]],table,37,FALSE)=V$45,VLOOKUP(Tableau4[[#This Row],[Colonne29]],table,21),IF(VLOOKUP(Tableau4[[#This Row],[Colonne29]],table,38,FALSE)=V$45,VLOOKUP(Tableau4[[#This Row],[Colonne29]],table,21),IF(VLOOKUP(Tableau4[[#This Row],[Colonne29]],table,39,FALSE)=V$45,VLOOKUP(Tableau4[[#This Row],[Colonne29]],table,21),""))))) ->  | X49: =IF(ISNA(IF(VLOOKUP(Tableau4[[#This Row],[Colonne29]],table,36,FALSE)=X$45,VLOOKUP(Tableau4[[#This Row],[Colonne29]],table,20),IF(VLOOKUP(Tableau4[[#This Row],[Colonne29]],table,37,FALSE)=X$45,VLOOKUP(Tableau4[[#This Row],[Colonne29]],table,20),IF(VLOOKUP(Tableau4[[#This Row],[Colonne29]],table,38,FALSE)=X$45,VLOOKUP(Tableau4[[#This Row],[Colonne29]],table,20),IF(VLOOKUP(Tableau4[[#This Row],[Colonne29]],table,39,FALSE)=X$45,VLOOKUP(Tableau4[[#This Row],[Colonne29]],table,20),""))))),"",IF(VLOOKUP(Tableau4[[#This Row],[Colonne29]],table,36,FALSE)=X$45,VLOOKUP(Tableau4[[#This Row],[Colonne29]],table,20),IF(VLOOKUP(Tableau4[[#This Row],[Colonne29]],table,37,FALSE)=X$45,VLOOKUP(Tableau4[[#This Row],[Colonne29]],table,20),IF(VLOOKUP(Tableau4[[#This Row],[Colonne29]],table,38,FALSE)=X$45,VLOOKUP(Tableau4[[#This Row],[Colonne29]],table,20),IF(VLOOKUP(Tableau4[[#This Row],[Colonne29]],table,39,FALSE)=X$45,VLOOKUP(Tableau4[[#This Row],[Colonne29]],table,20),""))))) ->  | Y49: =IF(ISNA(IF(VLOOKUP(Tableau4[[#This Row],[Colonne29]],table,36,FALSE)=X$45,VLOOKUP(Tableau4[[#This Row],[Colonne29]],table,20),IF(VLOOKUP(Tableau4[[#This Row],[Colonne29]],table,37,FALSE)=X$45,VLOOKUP(Tableau4[[#This Row],[Colonne29]],table,20),IF(VLOOKUP(Tableau4[[#This Row],[Colonne29]],table,38,FALSE)=X$45,VLOOKUP(Tableau4[[#This Row],[Colonne29]],table,20),IF(VLOOKUP(Tableau4[[#This Row],[Colonne29]],table,39,FALSE)=X$45,VLOOKUP(Tableau4[[#This Row],[Colonne29]],table,20),""))))),"",IF(VLOOKUP(Tableau4[[#This Row],[Colonne29]],table,36,FALSE)=X$45,VLOOKUP(Tableau4[[#This Row],[Colonne29]],table,21),IF(VLOOKUP(Tableau4[[#This Row],[Colonne29]],table,37,FALSE)=X$45,VLOOKUP(Tableau4[[#This Row],[Colonne29]],table,21),IF(VLOOKUP(Tableau4[[#This Row],[Colonne29]],table,38,FALSE)=X$45,VLOOKUP(Tableau4[[#This Row],[Colonne29]],table,21),IF(VLOOKUP(Tableau4[[#This Row],[Colonne29]],table,39,FALSE)=X$45,VLOOKUP(Tableau4[[#This Row],[Colonne29]],table,21),""))))) ->  | Z49: =IF(ISNA(IF(VLOOKUP(Tableau4[[#This Row],[Colonne29]],table,36,FALSE)=Z$45,VLOOKUP(Tableau4[[#This Row],[Colonne29]],table,20),IF(VLOOKUP(Tableau4[[#This Row],[Colonne29]],table,37,FALSE)=Z$45,VLOOKUP(Tableau4[[#This Row],[Colonne29]],table,20),IF(VLOOKUP(Tableau4[[#This Row],[Colonne29]],table,38,FALSE)=Z$45,VLOOKUP(Tableau4[[#This Row],[Colonne29]],table,20),IF(VLOOKUP(Tableau4[[#This Row],[Colonne29]],table,39,FALSE)=Z$45,VLOOKUP(Tableau4[[#This Row],[Colonne29]],table,20),""))))),"",IF(VLOOKUP(Tableau4[[#This Row],[Colonne29]],table,36,FALSE)=Z$45,VLOOKUP(Tableau4[[#This Row],[Colonne29]],table,20),IF(VLOOKUP(Tableau4[[#This Row],[Colonne29]],table,37,FALSE)=Z$45,VLOOKUP(Tableau4[[#This Row],[Colonne29]],table,20),IF(VLOOKUP(Tableau4[[#This Row],[Colonne29]],table,38,FALSE)=Z$45,VLOOKUP(Tableau4[[#This Row],[Colonne29]],table,20),IF(VLOOKUP(Tableau4[[#This Row],[Colonne29]],table,39,FALSE)=Z$45,VLOOKUP(Tableau4[[#This Row],[Colonne29]],table,20),""))))) ->  | AA49: =IF(ISNA(IF(VLOOKUP(Tableau4[[#This Row],[Colonne29]],table,36,FALSE)=Z$45,VLOOKUP(Tableau4[[#This Row],[Colonne29]],table,20),IF(VLOOKUP(Tableau4[[#This Row],[Colonne29]],table,37,FALSE)=Z$45,VLOOKUP(Tableau4[[#This Row],[Colonne29]],table,20),IF(VLOOKUP(Tableau4[[#This Row],[Colonne29]],table,38,FALSE)=Z$45,VLOOKUP(Tableau4[[#This Row],[Colonne29]],table,20),IF(VLOOKUP(Tableau4[[#This Row],[Colonne29]],table,39,FALSE)=Z$45,VLOOKUP(Tableau4[[#This Row],[Colonne29]],table,20),""))))),"",IF(VLOOKUP(Tableau4[[#This Row],[Colonne29]],table,36,FALSE)=Z$45,VLOOKUP(Tableau4[[#This Row],[Colonne29]],table,21),IF(VLOOKUP(Tableau4[[#This Row],[Colonne29]],table,37,FALSE)=Z$45,VLOOKUP(Tableau4[[#This Row],[Colonne29]],table,21),IF(VLOOKUP(Tableau4[[#This Row],[Colonne29]],table,38,FALSE)=Z$45,VLOOKUP(Tableau4[[#This Row],[Colonne29]],table,21),IF(VLOOKUP(Tableau4[[#This Row],[Colonne29]],table,39,FALSE)=Z$45,VLOOKUP(Tableau4[[#This Row],[Colonne29]],table,21),""))))) ->  | AB49: =IF(ISNA(IF(VLOOKUP(Tableau4[[#This Row],[Colonne29]],table,36,FALSE)=AB$45,VLOOKUP(Tableau4[[#This Row],[Colonne29]],table,20),IF(VLOOKUP(Tableau4[[#This Row],[Colonne29]],table,37,FALSE)=AB$45,VLOOKUP(Tableau4[[#This Row],[Colonne29]],table,20),IF(VLOOKUP(Tableau4[[#This Row],[Colonne29]],table,38,FALSE)=AB$45,VLOOKUP(Tableau4[[#This Row],[Colonne29]],table,20),IF(VLOOKUP(Tableau4[[#This Row],[Colonne29]],table,39,FALSE)=AB$45,VLOOKUP(Tableau4[[#This Row],[Colonne29]],table,20),""))))),"",IF(VLOOKUP(Tableau4[[#This Row],[Colonne29]],table,36,FALSE)=AB$45,VLOOKUP(Tableau4[[#This Row],[Colonne29]],table,20),IF(VLOOKUP(Tableau4[[#This Row],[Colonne29]],table,37,FALSE)=AB$45,VLOOKUP(Tableau4[[#This Row],[Colonne29]],table,20),IF(VLOOKUP(Tableau4[[#This Row],[Colonne29]],table,38,FALSE)=AB$45,VLOOKUP(Tableau4[[#This Row],[Colonne29]],table,20),IF(VLOOKUP(Tableau4[[#This Row],[Colonne29]],table,39,FALSE)=AB$45,VLOOKUP(Tableau4[[#This Row],[Colonne29]],table,20),""))))) ->  | AC49: =IF(ISNA(IF(VLOOKUP(Tableau4[[#This Row],[Colonne29]],table,36,FALSE)=AB$45,VLOOKUP(Tableau4[[#This Row],[Colonne29]],table,20),IF(VLOOKUP(Tableau4[[#This Row],[Colonne29]],table,37,FALSE)=AB$45,VLOOKUP(Tableau4[[#This Row],[Colonne29]],table,20),IF(VLOOKUP(Tableau4[[#This Row],[Colonne29]],table,38,FALSE)=AB$45,VLOOKUP(Tableau4[[#This Row],[Colonne29]],table,20),IF(VLOOKUP(Tableau4[[#This Row],[Colonne29]],table,39,FALSE)=AB$45,VLOOKUP(Tableau4[[#This Row],[Colonne29]],table,20),""))))),"",IF(VLOOKUP(Tableau4[[#This Row],[Colonne29]],table,36,FALSE)=AB$45,VLOOKUP(Tableau4[[#This Row],[Colonne29]],table,21),IF(VLOOKUP(Tableau4[[#This Row],[Colonne29]],table,37,FALSE)=AB$45,VLOOKUP(Tableau4[[#This Row],[Colonne29]],table,21),IF(VLOOKUP(Tableau4[[#This Row],[Colonne29]],table,38,FALSE)=AB$45,VLOOKUP(Tableau4[[#This Row],[Colonne29]],table,21),IF(VLOOKUP(Tableau4[[#This Row],[Colonne29]],table,39,FALSE)=AB$45,VLOOKUP(Tableau4[[#This Row],[Colonne29]],table,21),""))))) -> 

Sheet Macro-planning Auditeurs
B1: janvier | G1: février | K1: mars | P1: avril | T1: mai | X1: juin | AC1: juillet | AG1: août | AL1: septembre | AP1: octobre | AT1: novembre | AY1: décembre
B2: S1 | C2: S2 | D2: S3 | E2: S4 | F2: S5 | G2: S1 | H2: S2 | I2: S3 | J2: S4 | K2: S1 | L2: S2 | M2: S3 | N2: S4 | O2: S5 | P2: S1 | Q2: S2 | R2: S3 | S2: S4 | T2: S1 | U2: S2 | V2: S3 | W2: S4 | X2: S1 | Y2: S2 | Z2: S3 | AA2: S4 | AB2: S5 | AC2: S1 | AD2: S2 | AE2: S3 | AF2: S4 | AG2: S1 | AH2: S2 | AI2: S3 | AJ2: S4 | AK2: S5 | AL2: S1 | AM2: S2 | AN2: S3 | AO2: S4 | AP2: S1 | AQ2: S2 | AR2: S3 | AS2: S4 | AT2: S1 | AU2: S2 | AV2: S3 | AW2: S4 | AX2: S5 | AY2: S1 | AZ2: S2 | BA2: S3 | BB2: S4
B3: 1 | C3: 2 | D3: 3 | E3: 4 | F3: 5 | G3: 6 | H3: 7 | I3: 8 | J3: 9 | K3: 10 | L3: 11 | M3: 12 | N3: 13 | O3: 14 | P3: 15 | Q3: 16 | R3: 17 | S3: 18 | T3: 19 | U3: 20 | V3: 21 | W3: 22 | X3: 23 | Y3: 24 | Z3: 25 | AA3: 26 | AB3: 27 | AC3: 28 | AD3: 29 | AE3: 30 | AF3: 31 | AG3: 32 | AH3: 33 | AI3: 34 | AJ3: 35 | AK3: 36 | AL3: 37 | AM3: 38 | AN3: 39 | AO3: 40 | AP3: 41 | AQ3: 42 | AR3: 43 | AS3: 44 | AT3: 45 | AU3: 46 | AV3: 47 | AW3: 48 | AX3: 49 | AY3: 50 | AZ3: 51 | BA3: 52 | BB3: 53
A4: Alain SPAENLE
A5: Alexandre LE CORRE
A6: Arnaud MUDRY
A7: Christine PREVOT
A8: Corinne GALODE
A9: Joel MOSSARD
A10: Loic LE DEUNFF
A11: Mathias DIEZ
A12: Oliviana PIAZZA
A13: Patricia DAVANNE
A14: Said BOUNOUA
A15: Teddy FEUILLASTRE
A16: -
A17: -

Sheet Saisie budgétaire
B2: FICHE DE SUIVI BUDGETAIRE
B4: Audit:
B6: Nom de l'organisme:
B8: Catégorie de l'organisme: | C8: =IF(D8="","",IF(D8="CTI Prestations","TableCTIPrestations",IF(D8="CTI Missions Nationales","TableCTIMissionsNationales",IF(D8="CTI Centres Nationaux","TableCTICentreNationaux",CONCATENATE("Table",D8))))) ->  | D8: =IF(D6="","",IF(ISNA(VLOOKUP(D6,'Code des CPAM'!$A$1:$C$164,3,FALSE)),"",VLOOKUP(D6,'Code des CPAM'!$A$1:$C$164,3,FALSE))) -> 
B10: Prestataire:
A12: Choix des modules: | C12: Modules | D12: Montant
B14: Module 1 | D14: =IF(C14="",0,IF(C14="Non audité",0,VLOOKUP(F14,INDIRECT($C$8),4,FALSE))) -> 0 | F14: =CONCATENATE(B14,C14) -> Module 1
F15: =CONCATENATE(B15,C15) -> 
B16: Module 2 | D16: =IF(C16="",0,IF(C16="Non audité",0,VLOOKUP(F16,INDIRECT($C$8),4,FALSE))) -> 0 | F16: Module 2
B18: Module 3 | D18: =IF(C18="",0,IF(C18="Non audité",0,VLOOKUP(F18,INDIRECT($C$8),4,FALSE))) -> 0 | F18: Module 3
B20: Module 4 | D20: =IF(C20="",0,IF(C20="Non audité",0,VLOOKUP(F20,INDIRECT($C$8),4,FALSE))) -> 0 | F20: Module 4
B22: Module 5 | D22: =IF(C22="",0,IF(C22="Non audité",0,VLOOKUP(F22,INDIRECT($C$8),4,FALSE))) -> 0 | F22: Module 5
B24: Module 6 | D24: =IF(C24="",0,IF(C24="Non audité",0,VLOOKUP(F24,INDIRECT($C$8),4,FALSE))) -> 0 | F24: Module 6
B26: Module 7 | D26: =IF(C26="",0,IF(C26="Non audité",0,VLOOKUP(F26,INDIRECT($C$8),4,FALSE))) -> 0 | F26: Module 7
B28: Module 8 | D28: =IF(C28="",0,IF(C28="Non audité",0,VLOOKUP(F28,INDIRECT($C$8),4,FALSE))) -> 0 | F28: Module 8
B30: Module 9 | D30: =IF(C30="",0,IF(C30="Non audité",0,VLOOKUP(F30,INDIRECT($C$8),4,FALSE))) -> 0 | F30: Module 9
B32: Module 10 | D32: =IF(C32="",0,IF(C32="Non audité",0,VLOOKUP(F32,INDIRECT($C$8),4,FALSE))) -> 0 | F32: Module 10
B34: Module 11 | D34: =IF(C34="",0,IF(C34="Non audité",0,VLOOKUP(F34,INDIRECT($C$8),4,FALSE))) -> 0 | F34: Module 11
B36: Total: | D36: =SUM(D14:D34) -> 0
B38: Frais de mission: | D38: =IF(C38="",0,IF(LEFT(D8,3)="CTI",IF(C39="Oui",'Table de prix_Lot2'!F53*'Saisie budgétaire'!C38,'Table de prix_Lot2'!F54*'Saisie budgétaire'!C38),IF(VLOOKUP(D6,'Code des CPAM'!A1:D164,4,FALSE)="HM",C38*'MBC Tarifs Mazars'!F119,IF(C39="Oui",IF(VLOOKUP(D6,'Code des CPAM'!A1:D164,4,FALSE)="M",C38*'MBC Tarifs Mazars'!F112),C38*'MBC Tarifs Mazars'!F113)))) -> 0
B40: Frais de transport: | D40: =IF(C40="",0,IF(LEFT(D8,3)="CTI",IF(VLOOKUP(D6,'Code des CPAM'!A1:D164,4,FALSE)="M",C40*'Table de prix_Lot2'!F56,C40*'Table de prix_Lot2'!F55),IF(VLOOKUP(D6,'Code des CPAM'!A1:D164,4,FALSE)="IDF",0,IF(VLOOKUP(D6,'Code des CPAM'!A1:D164,4,FALSE)="M",'Saisie budgétaire'!C40*'MBC Tarifs Mazars'!F115,'Saisie budgétaire'!C40*'MBC Tarifs Mazars'!F120)))) -> 0
B42: Total engagé: | D42: =D40+D38+D36 -> 0

Sheet Suivi budgétaire
K1: Analyse du retard sur la phase terrain de l'audit | O1: Validation rapport provisoire | U1: Validation interne | AA1: Diffusion raport | AH1: Analyse des équipes d'audit | AK1: Analyse de la qualité | AL1: Analyse des pénalités
A2: Audit | B2: Organisme | C2: Classe | D2: Consultant | E2: Montant BC TTC (ENGAGES) | F2: Montant réel TTC | G2: Date d'envoi de la lettre de mission | H2: Envoi lettre de mission réel | I2: Date envoi Bon de Commande | J2: Envoi bon de commande réel | K2: Date phase terrain | L2: Date terrain réelle | M2: Durée terrain théorique | N2: Durée terrain réel | O2: Date de réception | P2: Date réception réelle | Q2: Date envoi du rapport validé au prestataire | R2: Date validation réelle interne | S2: Date d'envoi du rapport modifié à l'organisme par le prestataire | T2: Date réelle d'envoi aux organismes | U2: Date de réception rapport définitif | V2: Date réelle de réception du RD | W2: Date de transmission FG | X2: Transmission réelle à FG | Y2: Retour FG/PF | Z2: Retour réel | AA2: Date transmission DG | AB2: Transmission DG réelle | AC2: Date de diffusion rapport définitif | AD2: Date de diffusion réelle | AE2: Date du séminaire | AF2: Date réelle du seminaire | AG2: Délai mission total | AH2: Junior (<3) | AI2: Senior (3<5) | AJ2: Manager (>5) | AK2: Nombre de défauts | AL2: Pénalité sur composition des équipes d'audit | AM2: Pénalité de retard dans le commencement de l'audit | AN2: Pénalité sur la durée d'audit | AO2: Pénalité sur la qualité du rapport | AP2: synthèse | AQ2: Pénalité max applicable | AR2: M1 | AS2: M2 | AT2: M3 | AU2: M4 | AV2: M5 | AW2: M6 | AX2: M7 | AY2: M8 | AZ2: M9 | BA2: M10 | BB2: M11 | BC2: hebergement | BD2: nbj | BE2: nbpersonne
C3: =IF(B3="","",IF(B3="Multiples","",VLOOKUP(B3,'Code des CPAM'!A3:C166,3,FALSE))) ->  | F3: =IF(AND(E3="",AQ3=""),"",IF(AQ3="",E3,E3-AQ3)) ->  | AG3: =IF(G3="","",IF(U3="",TODAY()-G3,U3-G3)) ->  | AM3: =IF(OR(J3="",L3=""),0,(IF(J3="",0,IF(L3>(J3+15),((L3-(J3+15))*1000),0)))) -> 0 | AN3: =IF(M3="",0,IF(N3<M3,(E3*(M3-N3)/M3),0)) -> 0 | AO3: =IF(AK3="",0,AK3*350) -> 0 | AP3: =IF(AND(AL3="",AM3="",AN3="",AO3=""),0,IF((AM3+AN3+AL3+AO3)>0.3*E3,0.3*E3,AM3+AN3+AL3+AO3)) -> 0 | AQ3: =IF(AP3=0,"",AP3) ->  | AR3: Audité | AS3: Niveau 2 | AT3: Niveau 2 | AU3: Niveau 1 | AV3: Niveau 1 | AW3: Niveau 2 | AX3: Niveau 2 | AY3: Non audité | BC3: Oui | BD3: 4

Sheet staff (hidden)
A1: staff | B1: DM | C1: Prestataire
A2: Alain SPAENLE | B2: Anne Sanchez | C2: Interne
A3: Alexandre LE CORRE | B3: Francine Scherpereel | C3: BearingPoint
A4: Arnaud MUDRY | B4: Jacqueline Perez | C4: Eurogroup
A5: Christine PREVOT | B5: Jean-Michel Vallet | C5: Grant Thornton
A6: Corinne GALODE | B6: Externe | C6: Mazars
A7: Joel MOSSARD
A8: Loic LE DEUNFF
A9: Mathias DIEZ
A10: Oliviana PIAZZA
A11: Patricia DAVANNE
A12: Said BOUNOUA
A13: Teddy FEUILLASTRE
B25: Alain SPAENLE | C25: Alexandre LE CORRE | D25: Arnaud MUDRY | E25: Christine PREVOT | F25: Corinne GALODE | G25: Joel MOSSARD | H25: Loic LE DEUNFF | I25: Mathias DIEZ | J25: Oliviana PIAZZA | K25: Patricia DAVANNE | L25: Said BOUNOUA | M25: Teddy FEUILLASTRE

Sheet Code des CPAM (hidden)
A1: CCSS Lozère | B1: C | C1: =IF(B1="A",1,IF(B1="B",2,3)) -> 3 | D1: M
A2: CGSS Guadeloupe | B2: B | C2: =IF(B2="A",1,IF(B2="B",2,3)) -> 2 | D2: HM
A3: CGSS Guyane | B3: B | C3: 2 | D3: HM
A4: CGSS Martinique | B4: B | C4: 2 | D4: HM
A5: CGSS Réunion | B5: B | C5: 2 | D5: HM
A6: CPAM Charente-Maritime | B6: B | C6: 2 | D6: M
A7: CPAM Haute-Loire | B7: D | C7: 3 | D7: M
A8: CPAM Ain | B8: C | C8: 3 | D8: M
A9: CPAM Aisne | B9: C | C9: 3 | D9: M
A10: CPAM Allier | B10: C | C10: 3 | D10: M
A11: CPAM Alpes-de-Haute-Provence | B11: D | C11: 3 | D11: M
A12: CPAM Alpes-Maritimes | B12: B | C12: 2 | D12: M
A13: CPAM Ardèche | B13: D | C13: 3 | D13: M
A14: CPAM Ardennes | B14: D | C14: 3 | D14: M
A15: CPAM Ariège | B15: D | C15: 3 | D15: M
A16: CPAM Artois | B16: B | C16: 2 | D16: M
A17: CPAM Aube | B17: D | C17: 3 | D17: M
A18: CPAM Aude | B18: C | C18: 3 | D18: M
A19: CPAM Aveyron | B19: D | C19: 3 | D19: M
A20: CPAM Bas-Rhin | B20: B | C20: 2 | D20: M
A21: CPAM Bayonne | B21: C | C21: 3 | D21: M
A22: CPAM Boûches-du-Rhône | B22: A | C22: 1 | D22: M
A23: CPAM Calvados | B23: B | C23: 2 | D23: M
A24: CPAM Cantal | B24: D | C24: 3 | D24: M
A25: CPAM Charente | B25: C | C25: 3 | D25: M
A26: CPAM Cher | B26: D | C26: 3 | D26: M
A27: CPAM Corrèze | B27: D | C27: 3 | D27: M
A28: CPAM Corse-du-sud | B28: D | C28: 3 | D28: HM
A29: CPAM Côte-d'Or | B29: C | C29: 3 | D29: M
A30: CPAM Côte-d'Opale | B30: B | C30: 2 | D30: M
A31: CPAM Côtes d'Armor | B31: C | C31: 3 | D31: M
A32: CPAM Creuse | B32: D | C32: 3 | D32: M
A33: CPAM Deux-Sèvres | B33: D | C33: 3 | D33: M
A34: CPAM Dordogne | B34: C | C34: 3 | D34: M
A35: CPAM Doubs | B35: C | D35: M
A36: CPAM Drôme | B36: C | C36: 3 | D36: M
A37: CPAM Essonne | B37: B | C37: 2 | D37: IDF
A38: CPAM Eure | B38: B | C38: 2 | D38: M
A39: CPAM Eure-et-Loir | B39: C | C39: 3 | D39: M
A40: CPAM Finistère | B40: B | C40: 2 | D40: M
A41: CPAM Flandres-Dunkerque-Armentières | B41: C | C41: 3 | D41: M
A42: CPAM Gard | B42: B | C42: 2 | D42: M
A43: CPAM Gers | B43: D | C43: 3 | D43: M
A44: CPAM Gironde | B44: A | C44: 1 | D44: M
A45: CPAM Hainaut | B45: B | C45: 2 | D45: M
A46: CPAM Haute-Corse | B46: D | C46: 3 | D46: HM
A47: CPAM Haute-Garonne | B47: B | C47: 2 | D47: M
A48: CPAM Haute-Marne | B48: D | C48: 3 | D48: M
A49: CPAM Hautes-Alpes | B49: D | C49: 3 | D49: M
A50: CPAM Haute-Saône | B50: D | C50: 3 | D50: M
A51: CPAM Haute-Savoie | B51: B | C51: 2 | D51: M
A52: CPAM Hautes-Pyrénées | B52: D | C52: 3 | D52: M
A53: CPAM Haute-Vienne | B53: C | C53: 3 | D53: M
A54: CPAM Haut-Rhin | B54: B | C54: 2 | D54: M
A55: CPAM Hauts-de-Seine | B55: A | C55: 1 | D55: IDF
A56: CPAM Hérault | B56: B | C56: 2 | D56: M
A57: CPAM Ille-et-Vilaine | B57: B | C57: 2 | D57: M
A58: CPAM Indre | B58: D | C58: 3 | D58: M
A59: CPAM Indre-et-Loire | B59: B | C59: 2 | D59: M
A60: CPAM Isère | B60: B | C60: 2 | D60: M
A61: CPAM Jura | B61: D | C61: 3 | D61: M
A62: CPAM Landes | B62: C | C62: 3 | D62: M
A63: CPAM Le Havre | B63: C | C63: 3 | D63: M
A64: CPAM Lille-Douai | B64: B | C64: 2 | D64: M
A65: CPAM Loire | B65: B | C65: 2 | D65: M
A66: CPAM Loire-Atlantique | B66: B | C66: =IF(B66="A",1,IF(B66="B",2,3)) -> 2 | D66: M
A67: CPAM Loiret | B67: B | C67: 2 | D67: M
A68: CPAM Loir-et-Cher | B68: D | C68: 3 | D68: M
A69: CPAM Lot | B69: D | C69: 3 | D69: M
A70: CPAM Lot-et-Garonne | B70: D | C70: 3 | D70: M
A71: CPAM Maine-et-Loir | B71: B | C71: 2 | D71: M
A72: CPAM Manche | B72: C | C72: 3 | D72: M
A73: CPAM Marne | B73: C | C73: 3 | D73: M
A74: CPAM Mayenne | B74: D | C74: 3 | D74: M
A75: CPAM Meurthe-et-Moselle | B75: B | C75: 2 | D75: M
A76: CPAM Meuse | B76: D | C76: 3 | D76: M
A77: CPAM Morbihan | B77: B | C77: 2 | D77: M
A78: CPAM Moselle | B78: B | C78: 2 | D78: M
A79: CPAM Nièvre | B79: D | C79: 3 | D79: M
A80: CPAM Oise | B80: B | C80: 2 | D80: M
A81: CPAM Orne | B81: D | C81: 3 | D81: M
A82: CPAM Paris | B82: A | C82: 1 | D82: IDF
A83: CPAM Pau | B83: C | C83: 3 | D83: M
A84: CPAM Puy-de-Dôme | B84: B | C84: 2 | D84: M
A85: CPAM Pyrénées-Orientales | B85: C | C85: 3 | D85: M
A86: CPAM Rhône | B86: A | C86: 1 | D86: M
A87: CPAM Roubaix-Tourcoing | B87: B | C87: 2 | D87: M
A88: CPAM Rouen-Elbeuf-Dieppe-Seine-Maritime | B88: B | C88: 2 | D88: M
A89: CPAM Saône-et-Loire | B89: C | C89: 3 | D89: M
A90: CPAM Sarthe | B90: C | C90: 3 | D90: M
A91: CPAM Savoie | B91: C | C91: 3 | D91: M
A92: CPAM Seine-et-Marne | B92: B | C92: 2 | D92: IDF
A93: CPAM Seine-Saint-Denis | B93: A | C93: 1 | D93: IDF
A94: CPAM Somme | B94: B | C94: 2 | D94: M
A95: CPAM Tarn | B95: C | C95: 3 | D95: M
A96: CPAM Tarn-et-Garonne | B96: D | C96: 3 | D96: M
A97: CPAM Territoire-de-Belfort | B97: D | C97: 3 | D97: M
A98: CPAM Val-de-Marne | B98: B | C98: 2 | D98: IDF
A99: CPAM Val-d'Oise | B99: B | C99: 2 | D99: IDF
A100: CPAM Var | B100: B | C100: 2 | D100: M
A101: CPAM Vaucluse | B101: B | C101: 2 | D101: M
A102: CPAM Vendée | B102: B | C102: 2 | D102: M
A103: CPAM Vienne | B103: C | C103: 3 | D103: M
A104: CPAM Vosges | B104: C | C104: 3 | D104: M
A105: CPAM Yonne | B105: C | C105: 3 | D105: M
A106: CPAM Yvelines | B106: B | C106: 2 | D106: IDF
A107: CSSM Mayotte | B107: B | C107: =IF(B107="A",1,IF(B107="B",2,3)) -> 2 | D107: HM
A108: DRSM Alsace-Moselle | C108: DRSM | D108: M
A109: DRSM Aquitaine | C109: DRSM | D109: M
A110: DRSM Auvergne | C110: DRSM | D110: M
A111: DRSM Bourgogne-Franche-Comté | C111: DRSM | D111: M
A112: DRSM Bretagne | C112: DRSM | D112: M
A113: DRSM Centre | C113: DRSM | D113: M
A114: DRSM Centre-Ouest | C114: DRSM | D114: M
A115: DRSM Guadeloupe | C115: DRSM | D115: HM
A116: DRSM Guyane | C116: DRSM | D116: HM
A117: DRSM Ile de France | C117: DRSM | D117: IDF
A118: DRSM La Réunion | C118: DRSM | D118: HM
A119: DRSM Languedoc-Rousillon | C119: DRSM | D119: M
A120: DRSM Martinique | C120: DRSM | D120: HM
A121: DRSM Midi-Pyrénées | C121: DRSM | D121: M
A122: DRSM Nord-Est | C122: DRSM | D122: M
A123: DRSM Nord-Picardie | C123: DRSM | D123: M
A124: DRSM Normandie | C124: DRSM | D124: M
A125: DRSM Pays de Loire | C125: DRSM | D125: M
A126: DRSM Rhône-Alpes | C126: DRSM | D126: M
A127: DRSM Sud-Est-Corse | C127: DRSM | D127: M
A128: UGECAM Alsace | C128: UGECAM | D128: M
A129: UGECAM Aquitaine | C129: UGECAM | D129: M
A130: UGECAM Auvergne Limousin Poitou-Charente | C130: UGECAM | D130: M
A131: UGECAM Bourgogne Franche-Compté | C131: UGECAM | D131: M
A132: UGECAM Bretagne Pays de la Loire | C132: UGECAM | D132: M
A133: UGECAM Centre | C133: UGECAM | D133: M
A134: UGECAM Ile-de-France | C134: UGECAM | D134: IDF
A135: UGECAM Languedoc-Roussillon Midi-Pyrénées | C135: UGECAM | D135: M
A136: UGECAM Nord Pas-de-Calais Picardie | C136: UGECAM | D136: M
A137: UGECAM Nord-Est | C137: UGECAM | D137: M
A138: UGECAM Normandie | C138: UGECAM | D138: M
A139: UGECAM PACA-Corse | C139: UGECAM | D139: M
A140: UGECAM Rhône Alpes | C140: UGECAM | D140: M
A141: CARSAT Alsace Moselle | C141: CARSAT | D141: M
A142: CARSAT Aquitaine | C142: CARSAT | D142: M
A143: CARSAT Auvergne | C143: CARSAT | D143: M
A144: CARSAT Bourgogne Franche-Compté | C144: CARSAT | D144: M
A145: CARSAT Bretagne | C145: CARSAT | D145: M
A146: CARSAT Centre | C146: CARSAT | D146: M
A147: CARSAT Centre-Ouest | C147: CARSAT | D147: M
A148: CARSAT Languedoc Roussillon | C148: CARSAT | D148: M
A149: CARSAT Midi-Pyrénées | C149: CARSAT | D149: M
A150: CARSAT Nord Est | C150: CARSAT | D150: M
A151: CARSAT Nord Picardie | C151: CARSAT | D151: M
A152: CARSAT Normandie | C152: CARSAT | D152: M
A153: CARSAT Pays de la Loire | C153: CARSAT | D153: M
A154: CARSAT Rhône-Alpes | C154: CARSAT | D154: M
A155: CARSAT Sud-Est | C155: CARSAT | D155: M
A156: CRAMIF | C156: CARSAT | D156: IDF
A157: CTI Bretagne - Pays de Loire | C157: CTIMissionsNationales | D157: M | E157: CTIMissionsNationales
A158: CTI Grand Est | C158: CTICentresNationaux | D158: M | E158: CTICentresNationaux | F158: CTIPrestations
A159: CTI PACAC | C159: CTIPrestations | D159: M | E159: CTIPrestations
A160: CTI Rhône Alpes Auvergne | C160: CTIPrestations | D160: M | E160: CTIPrestations
A161: CTI NP-NP | C161: CTIMissionsNationales | D161: M | E161: CTIMissionsNationales
A162: CTI Sud Toulouse | C162: CTICentresNationaux | D162: M | E162: CTICentresNationaux | F162: CTIPrestations
A163: CICOA | C163: CTIMissionsNationales | D163: M | E163: CTIMissionsNationales
A164: CESTIF | C164: CTIPrestations | D164: M | E164: CTIPrestations

Sheet MBC Tarifs Mazars (hidden)
E1: A
A2: Unités d'œuvre | B2: Modules d'audit | C2: Niveau de profondeur de l'audit | E2: Prix forfaitaire HT | F2: TVA | G2: Prix forfaitaire TTC
A3: UO 1 | B3: Module 1 | C3: Audité | D3: =CONCATENATE(B3,C3) -> Module 1Audité | E3: 20444 | F3: 0.2 | G3: =E3*(1+F3) -> 24532.8
A4: UO 2.1 | B4: Module 2 | C4: Niveau 1 | D4: =CONCATENATE(B4,C4) -> Module 2Niveau 1 | E4: 4114 | F4: 0.2 | G4: =E4*(1+F4) -> 4936.8
A5: UO 2.2 | C5: Niveau 2 | D5: =CONCATENATE(B4,C5) -> Module 2Niveau 2 | E5: 4114 | F5: 0.2 | G5: 4936.8
A6: UO 3.1 | B6: Module 3 | C6: Niveau 1 | D6: =CONCATENATE(B6,C6) -> Module 3Niveau 1 | E6: 2447 | F6: 0.2 | G6: 2936.4
A7: UO 3.2 | C7: Niveau 2 | D7: =CONCATENATE(B6,C7) -> Module 3Niveau 2 | E7: 3671 | F7: 0.2 | G7: 4405.2
A8: UO 4.1 | B8: Module 4 | C8: Niveau 1 | D8: =CONCATENATE(B8,C8) -> Module 4Niveau 1 | E8: 2575 | F8: 0.2 | G8: 3090
A9: UO 4.2 | C9: Niveau 2 | D9: =CONCATENATE(B8,C9) -> Module 4Niveau 2 | E9: 2575 | F9: 0.2 | G9: 3090
A10: UO 5.1 | B10: Module 5 | C10: Niveau 1 | D10: =CONCATENATE(B10,C10) -> Module 5Niveau 1 | E10: 4655 | F10: 0.2 | G10: 5586
A11: UO 5.2 | C11: Niveau 2 | D11: =CONCATENATE(B10,C11) -> Module 5Niveau 2 | E11: 4655 | F11: 0.2 | G11: 5586
A12: UO 6.1 | B12: Module 6 | C12: Niveau 1 | D12: =CONCATENATE(B12,C12) -> Module 6Niveau 1 | E12: 2888 | F12: 0.2 | G12: 3465.6
A13: UO 6.2 | C13: Niveau 2 | D13: =CONCATENATE(B12,C13) -> Module 6Niveau 2 | E13: 4332 | F13: 0.2 | G13: 5198.4
A14: UO 7.1 | B14: Module 7 | C14: Niveau 1 | D14: =CONCATENATE(B14,C14) -> Module 7Niveau 1 | E14: 9599 | F14: 0.2 | G14: 11518.8
A15: UO 7.2 | C15: Niveau 2 | D15: =CONCATENATE(B14,C15) -> Module 7Niveau 2 | E15: 6931 | F15: 0.2 | G15: 8317.2
A16: UO 8.1 | B16: Module 8 | C16: Niveau 1 | D16: =CONCATENATE(B16,C16) -> Module 8Niveau 1 | E16: 5149 | F16: 0.2 | G16: 6178.8
A17: UO 8.2 | C17: Niveau 2 | D17: =CONCATENATE(B16,C17) -> Module 8Niveau 2 | E17: 5149 | F17: 0.2 | G17: 6178.8
A18: UO 9 | B18: Module 9 | C18: Audité | D18: =CONCATENATE(B18,C18) -> Module 9Audité | E18: 9154 | F18: 0.2 | G18: 10984.8
A19: UO 10 | B19: Module 10 | C19: Audité | D19: =CONCATENATE(B19,C19) -> Module 10Audité | E19: 4577 | F19: 0.2 | G19: 5492.4
A20: UO 11 | B20: Module 11 | C20: Audité | D20: =CONCATENATE(B20,C20) -> Module 11Audité | E20: 4750 | F20: 0.2 | G20: 5700
E22: B
A23: Unités d'œuvre | B23: Modules d'audit | C23: Niveau de profondeur de l'audit | E23: Prix forfaitaire HT | F23: TVA | G23: Prix forfaitaire TTC
A24: UO 12 | B24: Module 1 | C24: Audité | D24: =CONCATENATE(B24,C24) -> Module 1Audité | E24: 15960 | F24: 0.2 | G24: =E24*(1+F24) -> 19152
A25: 13.1 | B25: Module 2 | C25: Niveau 1 | D25: =CONCATENATE(B25,C25) -> Module 2Niveau 1 | E25: 3667 | F25: 0.2 | G25: =E25*(1+F25) -> 4400.4
A26: 13.2 | C26: Niveau 2 | D26: =CONCATENATE(B25,C26) -> Module 2Niveau 2 | E26: 3667 | F26: 0.2 | G26: 4400.4
A27: 14.1 | B27: Module 3 | C27: Niveau 1 | D27: =CONCATENATE(B27,C27) -> Module 3Niveau 1 | E27: 2166 | F27: 0.2 | G27: 2599.2
A28: 14.2 | C28: Niveau 2 | D28: =CONCATENATE(B27,C28) -> Module 3Niveau 2 | E28: 3249 | F28: 0.2 | G28: 3898.8
A29: 15.1 | B29: Module 4 | C29: Niveau 1 | D29: =CONCATENATE(B29,C29) -> Module 4Niveau 1 | E29: 2176 | F29: 0.2 | G29: 2611.2
A30: 15.2 | C30: Niveau 2 | D30: =CONCATENATE(B29,C30) -> Module 4Niveau 2 | E30: 2176 | F30: 0.2 | G30: 2611.2
A31: 16.1 | B31: Module 5 | C31: Niveau 1 | D31: =CONCATENATE(B31,C31) -> Module 5Niveau 1 | E31: 4104 | F31: 0.2 | G31: 4924.8
A32: 16.2 | C32: Niveau 2 | D32: =CONCATENATE(B31,C32) -> Module 5Niveau 2 | E32: 4104 | F32: 0.2 | G32: 4924.8
A33: 17.1 | B33: Module 6 | C33: Niveau 1 | D33: =CONCATENATE(B33,C33) -> Module 6Niveau 1 | E33: 2512 | F33: 0.2 | G33: 3014.4
A34: 17.2 | C34: Niveau 2 | D34: =CONCATENATE(B33,C34) -> Module 6Niveau 2 | E34: 3768 | F34: 0.2 | G34: 4521.6
A35: 18.1 | B35: Module 7 | C35: Niveau 1 | D35: =CONCATENATE(B35,C35) -> Module 7Niveau 1 | E35: 8375 | F35: 0.2 | G35: 10050
A36: 18.2 | C36: Niveau 2 | D36: =CONCATENATE(B35,C36) -> Module 7Niveau 2 | E36: 6036 | F36: 0.2 | G36: 7243.2
A37: 19.1 | B37: Module 8 | C37: Niveau 1 | D37: =CONCATENATE(B37,C37) -> Module 8Niveau 1 | E37: 4551 | F37: 0.2 | G37: 5461.2
A38: 19.2 | C38: Niveau 2 | D38: =CONCATENATE(B37,C38) -> Module 8Niveau 2 | E38: 4551 | F38: 0.2 | G38: 5461.2
A39: UO 20 | B39: Module 9 | C39: Audité | D39: =CONCATENATE(B39,C39) -> Module 9Audité | E39: 8531 | F39: 0.2 | G39: 10237.2
A40: UO 21 | B40: Module 10 | C40: Audité | D40: =CONCATENATE(B40,C40) -> Module 10Audité | E40: 4266 | F40: 0.2 | G40: 5119.2
A41: UO 22 | B41: Module 11 | C41: Audité | D41: =CONCATENATE(B41,C41) -> Module 11Audité | E41: 4750 | F41: 0.2 | G41: 5700
E43: C
A44: Unités d'œuvre | B44: Modules d'audit | C44: Niveau de profondeur de l'audit | E44: Prix forfaitaire HT | F44: TVA | G44: Prix forfaitaire TTC
A45: UO 23 | B45: Module 1 | C45: Audité | D45: =CONCATENATE(B45,C45) -> Module 1Audité | E45: 15960 | F45: 0.2 | G45: =E45*(1+F45) -> 19152
A46: UO 24.1 | B46: Module 2 | C46: Niveau 1 | D46: =CONCATENATE(B46,C46) -> Module 2Niveau 1 | E46: 3040 | F46: 0.2 | G46: 3648
A47: UO 24.2 | C47: Niveau 2 | D47: =CONCATENATE(B46,C47) -> Module 2Niveau 2 | E47: 3040 | F47: 0.2 | G47: 3648
A48: UO 25.1 | B48: Module 3 | C48: Niveau 1 | D48: =CONCATENATE(B48,C48) -> Module 3Niveau 1 | E48: 1824 | F48: 0.2 | G48: 2188.8
A49: UO 25.2 | C49: Niveau 2 | D49: =CONCATENATE(B48,C49) -> Module 3Niveau 2 | E49: 2736 | F49: 0.2 | G49: 3283.2
A50: UO 26.1 | B50: Module 4 | C50: Niveau 1 | D50: =CONCATENATE(B50,C50) -> Module 4Niveau 1 | E50: 1919 | F50: 0.2 | G50: 2302.8
A51: UO 26.2 | C51: Niveau 2 | D51: =CONCATENATE(B50,C51) -> Module 4Niveau 2 | E51: 1919 | F51: 0.2 | G51: 2302.8
A52: UO 27.1 | B52: Module 5 | C52: Niveau 1 | D52: =CONCATENATE(B52,C52) -> Module 5Niveau 1 | E52: 3420 | F52: 0.2 | G52: 4104
A53: UO 27.2 | C53: Niveau 2 | D53: =CONCATENATE(B52,C53) -> Module 5Niveau 2 | E53: 3420 | F53: 0.2 | G53: 4104
A54: UO 28.1 | B54: Module 6 | C54: Niveau 1 | D54: =CONCATENATE(B54,C54) -> Module 6Niveau 1 | E54: 2075 | F54: 0.2 | G54: 2490
A55: UO 28.2 | C55: Niveau 2 | D55: =CONCATENATE(B54,C55) -> Module 6Niveau 2 | E55: 3112 | F55: 0.2 | G55: 3734.4
A56: UO 29.1 | B56: Module 7 | C56: Niveau 1 | D56: =CONCATENATE(B56,C56) -> Module 7Niveau 1 | E56: 7021 | F56: 0.2 | G56: =(E56*(1+F56)) -> 8425.2
A57: UO 29.2 | C57: Niveau 2 | D57: =CONCATENATE(B56,C57) -> Module 7Niveau 2 | E57: 5072 | F57: 0.2 | G57: 6086.4
A58: UO 30.1 | B58: Module 8 | C58: Niveau 1 | D58: =CONCATENATE(B58,C58) -> Module 8Niveau 1 | E58: 3810 | F58: 0.2 | G58: 4572
A59: UO 30.2 | C59: Niveau 2 | D59: =CONCATENATE(B58,C59) -> Module 8Niveau 2 | E59: 3810 | F59: 0.2 | G59: 4572
A60: UO 32 | B60: Module 9 | C60: Audité | D60: =CONCATENATE(B60,C60) -> Module 9Audité | E60: 6756 | F60: 0.2 | G60: 8107.2
A61: UO 33 | B61: Module 10 | C61: Audité | D61: =CONCATENATE(B61,C61) -> Module 10Audité | E61: 3378 | F61: 0.2 | G61: 4053.6
A62: UO 34 | B62: Module 11 | C62: Audité | D62: =CONCATENATE(B62,C62) -> Module 11Audité | E62: 4750 | F62: 0.2 | G62: 5700
A64: Unités d'œuvre | B64: Modules d'audit | C64: Niveau de profondeur de l'audit | E64: Prix forfaitaire HT | F64: TVA | G64: Prix forfaitaire TTC
A65: UO 34.1 | B65: Module 7.1 | C65: Niveau 1 | E65: 3360 | F65: 0.2 | G65: =E65*(1+F65) -> 4032
A66: UO 34.2 | C66: Niveau 2 | E66: 2310 | F66: 0.2 | G66: 2772
A67: UO 35.1 | B67: Module 7.2 | C67: Niveau 1 | E67: 2400 | F67: 0.2 | G67: 2880
A68: UO 35.2 | C68: Niveau 2 | E68: 2310 | F68: 0.2 | G68: 2772
A69: UO 36.1 | B69: Module 7.3 | C69: Niveau 1 | E69: 3840 | F69: 0.2 | G69: 4608
A70: UO 36.2 | C70: Niveau 2 | E70: 2310 | F70: 0.2 | G70: 2772
C72: DRSM
A73: Unités d'œuvre | B73: Modules d'audit | C73: Niveau de profondeur de l'audit | E73: Prix forfaitaire HT | F73: TVA | G73: Prix forfaitaire TTC
A74: UO 37 | B74: Module 1 | C74: Audité | D74: Module 1Audité | E74: 14298 | F74: 0.2 | G74: =E74*(1+F74) -> 17157.6
A75: UO 38 | B75: Module 2 | C75: Audité | D75: Module 2Audité | E75: 2641 | F75: 0.2 | G75: =E75*(1+F75) -> 3169.2
A76: UO 39 | B76: Module 3 | C76: Audité | D76: Module 3Audité | E76: 2033 | F76: 0.2 | G76: 2439.6
A77: UO 40 | B77: Module 4 | C77: Audité | D77: Module 4Audité | E77: 1710 | F77: 0.2 | G77: 2052
A78: UO 41 | B78: Module 6 | C78: Audité | D78: Module 6Audité | E78: 2328 | F78: 0.2 | G78: 2793.6
A79: UO 42 | B79: Module 7 | C79: Audité | D79: Module 7Audité | E79: 5073 | F79: 0.2 | G79: 6087.6
A80: UO 43 | B80: Module 8 | C80: Audité | D80: Module 8Audité | E80: 3230 | F80: 0.2 | G80: 3876
A81: UO 44 | B81: Module 9 | C81: Audité | D81: Module 9Audité | E81: 5654 | F81: 0.2 | G81: 6784.8
A82: UO 45 | B82: Module 10 | C82: Audité | D82: Module 10Audité | E82: 2827 | F82: 0.2 | G82: 3392.4
A83: UO 46 | B83: Module 11 | C83: Audité | D83: Module 11Audité | E83: 4750 | F83: 0.2 | G83: 5700
C85: CARSAT
A86: Unités d'œuvre | B86: Modules d'audit | C86: Niveau de profondeur de l'audit | E86: Prix forfaitaire HT | F86: TVA | G86: Prix forfaitaire TTC
A87: UO 47 | B87: Module 1 | C87: Audité | D87: =CONCATENATE(B87,C87) -> Module 1Audité | E87: 9690 | F87: 0.2 | G87: =E87*(1+F87) -> 11628
A88: UO 48 | B88: Module 2 | C88: Audité | D88: Module 2Audité | E88: 1729 | F88: 0.2 | G88: 2074.8
A89: UO 49 | B89: Module 3 | C89: Audité | D89: Module 3Audité | E89: 1273 | F89: 0.2 | G89: 1527.6
A90: UO 50 | B90: Module 4 | C90: Audité | D90: Module 4Audité | E90: 1045 | F90: 0.2 | G90: 1254
A91: UO 51 | B91: Module 5 | C91: Audité | D91: Module 5Audité | E91: 1957 | F91: 0.2 | G91: 2348.4
A92: UO 52 | B92: Module 6 | C92: Audité | D92: Module 6Audité | E92: 1501 | F92: 0.2 | G92: 1801.2
A93: UO 53 | B93: Module 7 | C93: Audité | D93: Module 7Audité | E93: 3553 | F93: 0.2 | G93: 4263.6
A94: UO 54 | B94: Module 8 | C94: Audité | D94: Module 8Audité | E94: 2413 | F94: 0.2 | G94: 2895.6
A95: UO 55 | B95: Module 9 | C95: Audité | D95: Module 9Audité | E95: 5366 | F95: 0.2 | G95: 6439.2
A96: UO 56 | B96: Module 10 | C96: Audité | D96: Module 10Audité | E96: 2683 | F96: 0.2 | G96: 3219.6
A97: UO 57 | B97: Module 11 | C97: Audité | D97: Module 11Audité | E97: 4750 | F97: 0.2 | G97: 5700
C99: UGECAM
A100: Unités d'œuvre | B100: Modules d'audit | C100: Niveau de profondeur de l'audit | E100: Prix forfaitaire HT | F100: TVA | G100: Prix forfaitaire TTC
A101: UO 58 | B101: Module 1 | C101: Audité | D101: =CONCATENATE(B34:B101,"Audité") -> Module 1Audité | E101: 10545 | F101: 0.2 | G101: =E101*(1+F101) -> 12654
A102: UO 59 | B102: Module 2 | C102: Audité | D102: Module 2Audité | E102: 4427 | F102: 0.2 | G102: 5312.4
A103: UO 60 | B103: Module 3 | C103: Audité | D103: Module 3Audité | E103: 3990 | F103: 0.2 | G103: 4788
A104: UO 61 | B104: Module 4 | C104: Audité | D104: Module 4Audité | E104: 3097 | F104: 0.2 | G104: 3716.4
A105: UO 62 | B105: Module 5 | C105: Audité | D105: Module 5Audité | E105: 4788 | F105: 0.2 | G105: 5745.6
A106: UO 63 | B106: Module 9 | C106: Audité | D106: Module 9Audité | E106: 5753 | F106: 0.2 | G106: 6903.6
A107: UO 64 | B107: Module 10 | C107: Audité | D107: Module 10Audité | E107: 2877 | F107: 0.2 | G107: 3452.4
A108: UO 65 | B108: Module 11 | C108: Audité | D108: Module 11Audité | E108: 4750 | F108: 0.2 | G108: 5700
C110: Metropole
A111: Unités d'œuvre | B111: Libellé | C111: Prix forfaitaire HT | E111: TVA | F111: Prix forfaitaire TTC
A112: UO 66 | B112: Frais de mission hors transport (avec hébergement) | C112: 150 | E112: 0.2 | F112: =C112*(1+E112) -> 180 | G112: nb de j
A113: UO 67 | B113: Frais de mission hors transport (sans hébergement) | C113: 50 | E113: 0.2 | F113: =C113*(1+E113) -> 60 | G113: nb de j
A114: UO 68 | B114: Frais de Transport (en Ile de France) | C114: 0 | E114: 0.2 | F114: =C114*(1+E114) -> 0
A115: UO 69 | B115: Frais de Transport (hors Ile de France) | C115: 50 | E115: 0.2 | F115: =C115*(1+E115) -> 60 | G115: nb de p
C117: DOM et Corse
A118: Unités d'œuvre | B118: Libellé | C118: Prix forfaitaire HT | E118: TVA | F118: Prix forfaitaire TTC
A119: UO 70 | B119: Frais de mission hors transport (avec hébergement) | C119: 150 | E119: 0.2 | F119: =C119*(1+E119) -> 180
A120: UO 71 | B120: Frais de Transport | C120: 2200 | E120: 0.2 | F120: =C120*(1+E120) -> 2640

Sheet Table de prix_Lot2 (hidden)
E1: CTI PRESTATIONS
A2: Unités d'œuvre | B2: Modules d'audit | C2: Niveau de profondeur de l'audit | E2: Prix forfaitaire HT | F2: TVA | G2: Prix forfaitaire TTC
A3: UO 1 | B3: Module 1 | C3: Audité | D3: =CONCATENATE(B3,C3) -> Module 1Audité | E3: 23564.3 | F3: 0.2 | G3: =E3*(1+F3) -> 28277.16
A4: UO 2.1 | B4: Module 2 | C4: Niveau 1 | D4: =CONCATENATE(B4,C4) -> Module 2Niveau 1 | E4: 9246.6 | F4: 0.2 | G4: =E4*(1+F4) -> 11095.92
A5: UO 2.2 | C5: Niveau 2 | D5: =CONCATENATE(B4,C5) -> Module 2Niveau 2 | E5: 10886.55 | F5: 0.2 | G5: 13063.86
A6: UO 3.1 | B6: Module 3 | C6: Niveau 1 | D6: Module 3Niveau 1
A7: UO 3.2 | C7: Niveau 2 | D7: =CONCATENATE(B6,C7) -> Module 3Niveau 2
A8: UO 4.1 | B8: Module 4 | C8: Niveau 1 | D8: Module 4Niveau 1 | E8: 9246.6 | F8: 0.2 | G8: 11095.92
A9: UO 4.2 | C9: Niveau 2 | D9: =CONCATENATE(B8,C9) -> Module 4Niveau 2 | E9: 10886.55 | F9: 0.2 | G9: 13063.86
A10: UO 5.1 | B10: Module 5 | C10: Niveau 1 | D10: Module 5Niveau 1 | E10: 7606.65 | F10: 0.2 | G10: 9127.98
A11: UO 5.2 | C11: Niveau 2 | D11: =CONCATENATE(B10,C11) -> Module 5Niveau 2 | E11: 8351 | F11: 0.2 | G11: 10021.2
A12: UO 6.1 | B12: Module 6 | C12: Niveau 1 | D12: Module 6Niveau 1 | E12: 10886.55 | F12: 0.2 | G12: 13063.86
A13: UO 6.2 | C13: Niveau 2 | D13: =CONCATENATE(B12,C13) -> Module 6Niveau 2 | E13: 12526.5 | F13: 0.2 | G13: 15031.8
A14: UO 7 | B14: Module 7 | C14: Audité | D14: Module 7Audité | E14: 3840.5 | F14: 0.2 | G14: 4608.6
A15: UO 8 | B15: Module 8 | C15: Audité | D15: Module 8Audité | E15: 2126.2 | F15: 0.2 | G15: 2551.44
A16: UO 9 | B16: Module 9 | C16: Audité | D16: Module 9Audité | E16: 9804.65 | F16: 0.2 | G16: 11765.58
E18: CTI MISSIONS NATIONALES
A19: Unités d'œuvre | B19: Modules d'audit | C19: Niveau de profondeur de l'audit | E19: Prix forfaitaire HT | F19: TVA | G19: Prix forfaitaire TTC
A20: UO 1 | B20: Module 1 | C20: Audité | D20: =CONCATENATE(B20,C20) -> Module 1Audité | E20: 25355.5 | F20: 0.2 | G20: =E20*(1+F20) -> 30426.6
A21: UO 2.1 | B21: Module 2 | C21: Niveau 1 | D21: =CONCATENATE(B21,C21) -> Module 2Niveau 1 | E21: 9246.6 | F21: 0.2 | G21: =E21*(1+F21) -> 11095.92
A22: UO 2.2 | C22: Niveau 2 | D22: =CONCATENATE(B21,C22) -> Module 2Niveau 2 | E22: 10886.55 | F22: 0.2 | G22: =E22*(1+F22) -> 13063.86
A23: UO 3.1 | B23: Module 3 | C23: Niveau 1 | D23: Module 3Niveau 1
A24: UO 3.2 | C24: Niveau 2 | D24: =CONCATENATE(B23,C24) -> Module 3Niveau 2
A25: UO 4.1 | B25: Module 4 | C25: Niveau 1 | D25: Module 4Niveau 1 | E25: 9246.6 | F25: 0.2 | G25: =E25*(1+F25) -> 11095.92
A26: UO 4.2 | C26: Niveau 2 | D26: =CONCATENATE(B25,C26) -> Module 4Niveau 2 | E26: 10886.55 | F26: 0.2 | G26: 13063.86
A27: UO 5.1 | B27: Module 5 | C27: Niveau 1 | D27: Module 5Niveau 1 | E27: 7606.65 | F27: 0.2 | G27: 9127.98
A28: UO 5.2 | C28: Niveau 2 | D28: =CONCATENATE(B27,C28) -> Module 5Niveau 2 | E28: 8351 | F28: 0.2 | G28: 10021.2
A29: UO 6.1 | B29: Module 6 | C29: Niveau 1 | D29: Module 6Niveau 1 | E29: 12677.75 | F29: 0.2 | G29: 15213.3
A30: UO 6.2 | C30: Niveau 2 | D30: =CONCATENATE(B29,C30) -> Module 6Niveau 2 | E30: 13831.45 | F30: 0.2 | G30: 16597.74
A31: UO 7 | B31: Module 7 | C31: Audité | D31: Module 7Audité | E31: 3840.5 | F31: 0.2 | G31: 4608.6
A32: UO 8 | B32: Module 8 | C32: Audité | D32: Module 8Audité | E32: 2126.2 | F32: 0.2 | G32: 2551.44
A33: UO 9 | B33: Module 9 | C33: Audité | D33: Module 9Audité | E33: 9804.65 | F33: 0.2 | G33: 11765.58
E35: CENTRES NATIONAUX
A36: Unités d'œuvre | B36: Modules d'audit | C36: Niveau de profondeur de l'audit | E36: Prix forfaitaire HT | F36: TVA | G36: Prix forfaitaire TTC
A37: UO 1 | B37: Module 1 | C37: Audité | D37: =CONCATENATE(B37,C37) -> Module 1Audité | E37: 23564.3 | F37: 0.2 | G37: =E37*(1+F37) -> 28277.16
A38: UO 2.1 | B38: Module 2 | C38: Niveau 1 | D38: =CONCATENATE(B38,C38) -> Module 2Niveau 1
A39: UO 2.2 | C39: Niveau 2 | D39: =CONCATENATE(B38,C39) -> Module 2Niveau 2
A40: UO 3.1 | B40: Module 3 | C40: Niveau 1 | D40: Module 3Niveau 1 | E40: 8351 | F40: 0.2 | G40: =E40*(1+F40) -> 10021.2
A41: UO 3.2 | C41: Niveau 2 | D41: =CONCATENATE(B40,C41) -> Module 3Niveau 2 | E41: 10142.2 | F41: 0.2 | G41: 12170.64
A42: UO 4.1 | B42: Module 4 | C42: Niveau 1 | D42: Module 4Niveau 1 | E42: 9246.6 | F42: 0.2 | G42: 11095.92
A43: UO 4.2 | C43: Niveau 2 | D43: =CONCATENATE(B42,C43) -> Module 4Niveau 2 | E43: 10886.55 | F43: 0.2 | G43: 13063.86
A44: UO 5.1 | B44: Module 5 | C44: Niveau 1 | D44: Module 5Niveau 1 | E44: 7606.65 | F44: 0.2 | G44: 9127.98
A45: UO 5.2 | C45: Niveau 2 | D45: =CONCATENATE(B44,C45) -> Module 5Niveau 2 | E45: 8351 | F45: 0.2 | G45: 10021.2
A46: UO 6.1 | B46: Module 6 | C46: Niveau 1 | D46: Module 6Niveau 1 | E46: 10886.55 | F46: 0.2
A47: UO 6.2 | C47: Niveau 2 | D47: =CONCATENATE(B46,C47) -> Module 6Niveau 2 | E47: 12526.5 | F47: 0.2 | G47: 15031.8
A48: UO 7 | B48: Module 7 | C48: Audité | D48: Module 7Audité | E48: 3840.5 | F48: 0.2 | G48: 4608.6
A49: UO 8 | B49: Module 8 | C49: Audité | D49: Module 8Audité | E49: 2126.2 | F49: 0.2 | G49: 2551.44
A50: UO 9 | B50: Module 9 | C50: Audité | D50: Module 9Audité | E50: 9804.65 | F50: 0.2 | G50: 11765.58
A52: Unités d'œuvre | B52: Libellé | C52: Prix forfaitaire HT | E52: TVA | F52: Prix forfaitaire TTC
A53: UO 10 | B53: Frais de mission hors transport (avec hébergement) | C53: 100 | E53: 0.2 | F53: =C53*(1+E53) -> 120
A54: UO 11 | B54: Frais de mission hors transport (sans hébergement) | C54: 20 | E54: 0.2 | F54: =C54*(1+E54) -> 24
A55: UO 12 | B55: Frais de Transport (en Ile de France) | C55: 20 | E55: 0.2 | F55: =C55*(1+E55) -> 24
A56: UO 13 | B56: Frais de Transport (hors Ile de France) | C56: 150 | E56: 0.2 | F56: =C56*(1+E56) -> 180

Sheet Sauvegarde_Formules (hidden)
C1: =IF(B1="","",IF(B1="Multiples","",VLOOKUP(B1,'Code des CPAM'!A1:C164,3,FALSE))) ->  | D1: a | E1: 0 | F1: =IF(AND(E1="",AQ1=""),"",IF(AQ1="",E1,E1-AQ1)) -> 0 | G1: 14/03/2016 | H1: 14/03/2016 | I1: 13/04/2016 | J1: 01/04/2016 | K1: 18/04/2016 | L1: 18/04/2016 | O1: 27/06/2016 | S1: 12/07/2016 | T1: 13/05/2016 | U1: 27/07/2016 | AC1: 11/08/2016 | AE1: 26/08/2016 | AG1: =IF(G1="","",IF(U1="",TODAY()-G1,U1-G1)) -> 135 | AL1: =IF(AND(AH1="",AI1="",AJ1=""),0,(IF(OR(AH1>(0.2*SUM(AH1:AJ1)),SUM(AI1:AJ1)<3,AJ1<SUM(AH1:AJ1)*0.3),0.25*E1,0))) -> 0 | AM1: =IF(OR(J1="",L1=""),0,(IF(J1="",0,IF(L1>(J1+15),((L1-(J1+15))*1000),0)))) -> 2000 | AN1: =IF(M1="",0,IF(N1<M1,(E1*(M1-N1)/M1),0)) -> 0 | AO1: =IF(AK1="",0,AK1*350) -> 0 | AP1: =IF(AND(AL1="",AM1="",AN1="",AO1=""),0,IF((AM1+AN1+AL1+AO1)>0.3*E1,0.3*E1,AM1+AN1+AL1+AO1)) -> 0 | AQ1: =IF(AP1=0,"",AP1) -> 

Sheet MBC Tarifs BP (hidden)

Sheet AC Tarifs GT (hidden)

Sheet AC Tarifs Mazars (hidden)
